{"text_format":"1","workbook":"xlsx","n_sheets":22,"sheets":["居宅介護支援","介護予防支援","訪問介護","訪問入浴","訪問看護・訪リハ","通所介護","通所リハビリテーション（みなし指定を含む）","短期入所生活介護","特定施設入居者生活介護","福祉用具","介護老人福祉施設","介護老人保健施設、介護療養型、医療院","地域密着型通所介護","認知症デイ等","小多機等","地密特養","サービスA ","サービスB ","表紙","地区名一覧","公称町名一覧","入力注意"],"not_rendered":{"charts":0,"images":0,"macros":1,"external_links":1,"defined_names":51,"comments":2,"pivot_tables":0},"unopened":[],"bounds":{"document_bytes":16777216,"sheet_cells":100000,"rows_first":2000,"rows_last":500,"rows_between":2000,"halvings":0,"cell_chars":16384,"cell_head_chars":4096},"cells_cut":0,"cells_raw":0,"read":"whole","date_system":"1900"}

{"sheet":"居宅介護支援","index":0,"n_rows":75,"n_cols":10,"rows_kept":75,"cut":false,"hidden":false,"merged":[[0,0,0,7]]}
["居宅介護支援"]
["No","所在地","事業所名","事業所〒","事業所住所","事業所電話","事業所FAX","申請(開設)者名","地区CD","町名CD"]
["1",{"$f":"VLOOKUP(I3,地区名一覧!B2:C33,2,FALSE)","v":"本　庁"},"四日市医師会\n居宅介護支援事業所","510-0087","西新地14-20","059-355-0099","059-350-2888","公益社団法人\n四日市医師会",1,11]
["2",{"$f":"VLOOKUP(I4,地区名一覧!B2:C33,2,FALSE)","v":"本　庁"},"居宅介護支援事業所\nりんりん","510-0067","浜田町18-3\n酢文ビル2B","059-350-5335","059-350-5336","合同会社りんりん",1,19]
["3",{"$f":"VLOOKUP(I5,地区名一覧!B2:C33,2,FALSE)","v":"本　庁"},"セントケア四日市","510-0064","新正四丁目7-5","059-350-1210","059-356-4622","セントケア三重\n株式会社",1,27]
["4",{"$f":"VLOOKUP(I6,地区名一覧!B2:C33,2,FALSE)","v":"本　庁"},"居宅介護支援事業所\nココロン","510-0098","北条町10-6","059-324-2671","059-340-3015","有限会社\nマミーサイドキュア",1,30]
["5",{"$f":"VLOOKUP(I7,地区名一覧!B2:C33,2,FALSE)","v":"本　庁"},"社会福祉法人風薫会\nみなと在宅介護サービスセンター","510-0042","高砂町7-6","059-359-6611","059-359-6612","社会福祉法人風薫会",1,46]
["6",{"$f":"VLOOKUP(I8,地区名一覧!B2:C33,2,FALSE)","v":"富洲原"},"天カ須賀\n在宅介護サービスセンター","510-8001","天カ須賀四丁目\n7-25","059-361-5361","059-361-5362","社会福祉法人徳寿会",2,4]
["7",{"$f":"VLOOKUP(I9,地区名一覧!B2:C33,2,FALSE)","v":"富洲原"},"ライト　ケア　サービス","510-8016","富州原町5-14","059-363-1289","059-366-1065","合資会社天南",2,9]
["8",{"$f":"VLOOKUP(I10,地区名一覧!B2:C33,2,FALSE)","v":"富　田"},"富田浜\n在宅介護サービスセンター\n指定居宅介護支援事業所","510-8008","富田浜町26-14","059-365-5203","059-365-5208","社会福祉法人\n富田浜福祉会",3,6]
["9",{"$f":"VLOOKUP(I11,地区名一覧!B2:C33,2,FALSE)","v":"富　田"},"居宅介護支援事業所\nフォーエバーライフ","510-8012","茂福町1-21","059-363-7157","050-3153-3371","有限会社\nフォーエバーライフ",3,9]
["10",{"$f":"VLOOKUP(I12,地区名一覧!B2:C33,2,FALSE)","v":"羽　津"},"四日市羽津医療センター附属\n居宅介護支援センター","510-0016","羽津山町10-8","059-334-3387","059-334-3377","独立行政法人\n地域医療機能推進機構",4,5]
["11",{"$f":"VLOOKUP(I13,地区名一覧!B2:C33,2,FALSE)","v":"羽　津"},"YMCA\n在宅介護サービスセンター\n居宅介護支援事業所","510-0016","羽津山町1番19号","059-333-9831","059-327-7071","社会福祉法人\n三重ワイエムシイエイ福祉会",4,5]
["12",{"$f":"VLOOKUP(I14,地区名一覧!B2:C33,2,FALSE)","v":"羽　津"},"居宅介護支援事業所\nかすみの里","510-0018","白須賀一丁目\n12-8","059-334-1181","059-334-1172","社会福祉法人永甲会",4,8]
["13",{"$f":"VLOOKUP(I15,地区名一覧!B2:C33,2,FALSE)","v":"常　磐"},"居宅介護支援事業所\nあすか","510-0827","赤堀南町6-7","059-340-6700","059-373-7201","株式会社ＨＡＢＩＬＩＳ",5,1]
["14",{"$f":"VLOOKUP(I16,地区名一覧!B2:C33,2,FALSE)","v":"常　磐"},"医心館　居宅介護支援事業所\n四日市Ⅱ","510-0822","芝田一丁目1-20","059-350-4330","059-350-4331","株式会社アンビス",5,12]
["15",{"$f":"VLOOKUP(I17,地区名一覧!B2:C33,2,FALSE)","v":"常　磐"},"医療法人徳新会　\n四日市徳新会介護センター","510-0821","久保田二丁目\n1-2","059-355-2980","059-355-2983","医療法人徳新会",5,19]
["16",{"$f":"VLOOKUP(I18,地区名一覧!B2:C33,2,FALSE)","v":"常　磐"},"ユートピア\n在宅介護支援センター\n（居宅介護支援事業所）","510-0821","久保田二丁目\n12-8","059-355-2573","059-355-3576","社会福祉法人\nユートピア",5,19]
["17",{"$f":"VLOOKUP(I19,地区名一覧!B2:C33,2,FALSE)","v":"常　磐"},"ケアまちパーク\n介護支援事業所","510-0836","松本三丁目5-19","059-340-7795","059-340-7796","合同会社佐藤建材",5,34]
["18",{"$f":"VLOOKUP(I20,地区名一覧!B2:C33,2,FALSE)","v":"常　磐"},"川村居宅支援事業所","510-0823","城北町8-1","059-355-4393","059-355-4394","医療法人社団主体会",5,39]
["19",{"$f":"VLOOKUP(I21,地区名一覧!B2:C33,2,FALSE)","v":"常　磐"},"ケアプランぴーす","510-0838","南松本町9-11","059-322-5541","059-318-5548","合同会社ぴーす",5,42]
["20",{"$f":"VLOOKUP(I22,地区名一覧!B2:C33,2,FALSE)","v":"日　永"},"居宅介護支援事業所\nＴＥＡＭ　紬","510-0944","泊町13番10号　1号室","080-1621-1901","059-325-6131","株式会社　HIMENO",6,7]
["21",{"$f":"VLOOKUP(I23,地区名一覧!B2:C33,2,FALSE)","v":"日　永"},"日永英水苑\n在宅介護サービスセンター","510-0885","日永5530-23","059-347-9977","059-347-6661","社会福祉法人英水会",6,21]
["22",{"$f":"VLOOKUP(I24,地区名一覧!B2:C33,2,FALSE)","v":"日　永"},"居宅介護支援事業所\nしらゆりケア","510-0891","日永西二丁目9-11","059-347-0600","059-347-0601","株式会社しらゆりケア",6,29]
["23",{"$f":"VLOOKUP(I25,地区名一覧!B2:C33,2,FALSE)","v":"日　永"},"居宅介護支援事業所\nケアヒルズ四日市","510-0891","日永西三丁目3-20　田中ビル101","059-327-6777","059-327-6707","株式会社ノースアップ",6,30]
["24",{"$f":"VLOOKUP(I26,地区名一覧!B2:C33,2,FALSE)","v":"四　郷"},"居宅介護支援事業所\nオリーブ","510-0946","小林町3018-23","059-340-5001","059-321-2000","株式会社エスポワール",7,1]
["25",{"$f":"VLOOKUP(I27,地区名一覧!B2:C33,2,FALSE)","v":"四　郷"},"マーベラス\n居宅介護支援事業所","510-0948","室山町225-1","059-323-0081","059-323-0582","株式会社家楽",7,8]
["26",{"$f":"VLOOKUP(I28,地区名一覧!B2:C33,2,FALSE)","v":"四　郷"},"居宅介護支援事業所\nつばさ","510-0948","室山町226","059-329-5678","059-321-5798","有限会社\nライフサービス翔",7,8]
["27",{"$f":"VLOOKUP(I29,地区名一覧!B2:C33,2,FALSE)","v":"四　郷"},"四郷\n在宅介護サービスセンター","510-0943","西日野町4015","059-322-1761","059-322-1769","社会福祉法人\n青山里会",7,9]
["28",{"$f":"VLOOKUP(I30,地区名一覧!B2:C33,2,FALSE)","v":"四　郷"},"ケアプランセンター\n花びより","510-0944","笹川三丁目21-1","059-321-0129","059-321-0187","株式会社福村屋",7,13]
["29",{"$f":"VLOOKUP(I31,地区名一覧!B2:C33,2,FALSE)","v":"内　部"},"在宅介護サービスセンター\nうねめの里","510-0954","釆女町418-1","059-348-3988","059-348-7761","社会福祉法人永甲会",8,7]
["30",{"$f":"VLOOKUP(I32,地区名一覧!B3:C34,2,FALSE)","v":"内　部"},"ケアライフ　ホスタ","510-0954","釆女町９３８番地１","059-390-0778","059-324-8890","株式会社ホスタ",8,7]
["31",{"$f":"VLOOKUP(I33,地区名一覧!B4:C35,2,FALSE)","v":"内　部"},"居宅介護支援事業所\nリンクアップ","50-0954","釆女町167番地1","059-324-5206","059-346-0671","合同会社リンクアップ",8,7]
["32",{"$f":"VLOOKUP(I34,地区名一覧!B2:C33,2,FALSE)","v":"内　部"},"居宅介護支援事業所\nケアプラン一花","510-0961","波木町124-11","059-336-5560","059-336-5565","合同会社\nケアプラン一花",8,8]
["33",{"$f":"VLOOKUP(I35,地区名一覧!B3:C34,2,FALSE)","v":"内　部"},"こごみ　\n居宅介護支援事業所","510-0971","南小松町615-13","059-325-6232","059-322-4104","株式会社ラカポシ",8,11]
["34",{"$f":"VLOOKUP(I36,地区名一覧!B2:C33,2,FALSE)","v":"塩　浜"},"社会福祉法人風薫会\nしおはま\n在宅介護サービスセンター","510-0863","塩浜栄町471","059-349-6381","059-349-6382","社会福祉法人風薫会",9,26]
["35",{"$f":"VLOOKUP(I37,地区名一覧!B2:C33,2,FALSE)","v":"小山田"},"小山田\n在宅介護サービスセンター","512-1111","山田町5500-3","059-328-1814","059-328-3432","社会福祉法人\n青山里会",10,1]
["36",{"$f":"VLOOKUP(I38,地区名一覧!B3:C34,2,FALSE)","v":"川　島"},"ケアプランオフィス\nＨＡＲＵＫＡ","512-0933","三滝台三丁目5-14","090-6009-9880","059-324-0534","合同会社はるか",11,5]
["37",{"$f":"VLOOKUP(I39,地区名一覧!B2:C33,2,FALSE)","v":"川　島"},"居宅介護支援\nキョウユウサービス","512-0931","浮橋二丁目23-11","059-358-9059","059-328-5428","キョウユウサービス\n株式会社",11,8]
["38",{"$f":"VLOOKUP(I40,地区名一覧!B2:C33,2,FALSE)","v":"桜"},"英水苑\n在宅介護サービスセンター","512-1212","智積町34-1","059-326-6618","059-326-7557","社会福祉法人英水会",13,1]
["39",{"$f":"VLOOKUP(I41,地区名一覧!B2:C33,2,FALSE)","v":"桜"},"ケアプランサービスのぞみ","512-1212","智積町806","059-327-1150","059-327-1151","株式会社のぞみ",13,1]
["40",{"$f":"VLOOKUP(I42,地区名一覧!B2:C33,2,FALSE)","v":"桜"},"ケアプランセンター\nＫｉｃｏｒｉ（きこり）","512-1213","桜台本町51-1","059-329-7956","059-329-7957","株式会社Toytree",13,5]
["41",{"$f":"VLOOKUP(I43,地区名一覧!B3:C34,2,FALSE)","v":"三　重"},"CarePlanステーションこころ","512-0904","東坂部町53番地1","059-336-6127","059-336-6128","株式会社ゲレンデ",14,1]
["42",{"$f":"VLOOKUP(I44,地区名一覧!B2:C33,2,FALSE)","v":"三　重"},"陽光苑\n在宅介護サービスセンター","512-0913","西坂部町1127","059-333-4622","059-334-7841","社会福祉法人\n三重福祉会",14,10]
["43",{"$f":"VLOOKUP(I45,地区名一覧!B2:C33,2,FALSE)","v":"三　重"},"すこやか\n居宅介護支援センター","512-0911","生桑町655-1","059-330-0133","059-330-0134","株式会社有隣会",14,11]
["44",{"$f":"VLOOKUP(I46,地区名一覧!B2:C33,2,FALSE)","v":"三　重"},"みたき在宅ケアセンター","512-0911","生桑町458-1","059-330-6556","059-330-6537","医療法人尚豊会",14,11]
["45",{"$f":"VLOOKUP(I47,地区名一覧!B2:C33,2,FALSE)","v":"三　重"},"みえ医療福祉生協\n居宅介護支援事業所いくわ","512-0911","生桑町1455","059-333-6475","059-333-6483","みえ医療福祉\n生活協同組合",14,11]
["46",{"$f":"VLOOKUP(I48,地区名一覧!B2:C33,2,FALSE)","v":"三　重"},"居宅介護支援\nえいとえいと","512-0911","生桑町2048-8","059-327-7826","059-327-7827","合同会社８えいと",14,11]
["47",{"$f":"VLOOKUP(I49,地区名一覧!B3:C34,2,FALSE)","v":"三　重"},"ケアプランセンター不二","512-0911","生桑町2452-6","059-327-5736","059-327-5737","石井燃商株式会社",14,11]
["48",{"$f":"VLOOKUP(I50,地区名一覧!B2:C33,2,FALSE)","v":"県"},"居宅介護支援事業所\nくぬぎの木","512-1204","赤水町1245-7","059-327-2827","059-327-1177","社会福祉法人\nあがた福祉の会",15,1]
["49",{"$f":"VLOOKUP(I51,地区名一覧!B2:C33,2,FALSE)","v":"八　郷"},"ハピネスやさと\n在宅介護支援センター","512-8065","千代田町325-1","059-366-3301","059-366-3302","社会福祉法人\nアパティア福祉会",16,11]
["50",{"$f":"VLOOKUP(I52,地区名一覧!B2:C33,2,FALSE)","v":"下　野"},"けあまねセンター\n四日市もも","512-8054","朝明町441-1","059-336-3330","059-328-4440","有限会社だいち",17,1]
["51",{"$f":"VLOOKUP(I53,地区名一覧!B2:C33,2,FALSE)","v":"下　野"},"居宅介護支援シリウス","512-8048","山城町770-2","059-336-2404","059-336-2405","医療法人ＳＩＲＩＵＳ",17,2]
["52",{"$f":"VLOOKUP(I54,地区名一覧!B2:C33,2,FALSE)","v":"下　野"},"居宅介護支援事業所\nにっこり山城","512-8048","山城町1014","059-337-3311","059-337-1118","株式会社山武館",17,2]
["53",{"$f":"VLOOKUP(I55,地区名一覧!B2:C33,2,FALSE)","v":"下　野"},"よっかいち諧朋苑\n居宅介護支援サービス","512-8052","西大鐘町1580","059-338-3005","059-338-3008","社会福祉法人宏育会",17,5]
["54",{"$f":"VLOOKUP(I56,地区名一覧!B2:C33,2,FALSE)","v":"下　野"},"ケアサービス菜の花","512-8047","八千代台三丁目\n1-67","059-337-2838","059-337-2865","株式会社菜の花",17,12]
["55",{"$f":"VLOOKUP(I57,地区名一覧!B2:C33,2,FALSE)","v":"大矢知"},"居宅介護支援事業所　惠","510-8028","下之宮町326-1\nシティハイツポプラ\n105号室","059-337-8488","059-337-8455","株式会社アラウンド",18,1]
["56",{"$f":"VLOOKUP(I58,地区名一覧!B2:C33,2,FALSE)","v":"大矢知"},"ヴィラ四日市\n在宅介護サービスセンター","510-8037","垂坂町8-2","059-363-2121","059-363-3737","社会福祉法人\n平成福祉会",18,5]
["57",{"$f":"VLOOKUP(I59,地区名一覧!B3:C34,2,FALSE)","v":"大矢知"},"居宅介護支援事業所\nLight Up","510-8034","大矢知町498-6","090-4268-0825","059-390-1952","Light Up合同会社",18,7]
["58",{"$f":"VLOOKUP(I60,地区名一覧!B2:C33,2,FALSE)","v":"大矢知"},"居宅介護支援センター\nニコニコ","510-8021","松寺三丁目6-29","059-365-7576","059-365-7622","有限会社\nハートケアホーム松寺",18,19]
["59",{"$f":"VLOOKUP(I61,地区名一覧!B2:C33,2,FALSE)","v":"河原田"},"ケアサポートさち","510-0873","貝塚町280-19","059-335-3019","059-346-5131","合同会社\nケアサポートさち",19,1]
["60",{"$f":"VLOOKUP(I62,地区名一覧!B2:C33,2,FALSE)","v":"河原田"},"南部陽光苑\n在宅介護サービスセンター","510-0874","河原田町2146","059-347-7336","059-347-7338","社会福祉法人\n三重福祉会",19,4]
["61",{"$f":"VLOOKUP(I63,地区名一覧!B2:C33,2,FALSE)","v":"河原田"},"ＬＴＳ居宅介護支援センター","510-0875","大治田二丁目\n18-19","059-373-6621","059-373-6681","株式会社\nライフ・テクノサービス",19,7]
["62",{"$f":"VLOOKUP(I64,地区名一覧!B2:C33,2,FALSE)","v":"水　沢"},"三美介護支援センター","512-1105","水沢町2503-5","059-329-8051","059-329-8052","株式会社三陽",20,2]
["63",{"$f":"VLOOKUP(I65,地区名一覧!B2:C33,2,FALSE)","v":"水　沢"},"しあわせ\n居宅介護支援センター","512-1105","水沢町5131-1","059-329-3933","059-329-2971","有限会社しあわせ",20,2]
["64",{"$f":"VLOOKUP(I66,地区名一覧!B2:C33,2,FALSE)","v":"保　々"},"聖十字保々\n在宅介護サービスセンター","512-1304","中野町2492","059-339-7788","059-339-7211","社会福祉法人\n鈴鹿聖十字会",21,4]
["65",{"$f":"VLOOKUP(I67,地区名一覧!B2:C33,2,FALSE)","v":"橋　北"},"居宅介護支援センター\nさくら","510-0031","浜一色町15-14-1","059-340-0006","059-340-0101","社会福祉法人\n桜コミュニティ",23,3]
["66",{"$f":"VLOOKUP(I68,地区名一覧!B2:C33,2,FALSE)","v":"橋　北"},"桜園三聖\n居宅介護支援センター","510-0026","高浜町5-7","059-330-6665","059-330-6669","株式会社Loveulumelia",23,6]
["67",{"$f":"VLOOKUP(I69,地区名一覧!B2:C33,2,FALSE)","v":"橋　北"},"すずらん福祉会　楽々館","510-0026","高浜町8-26","059-334-8587","059-334-8589","社会福祉法人\nすずらん福祉会",23,6]
["68",{"$f":"VLOOKUP(I70,地区名一覧!B3:C34,2,FALSE)","v":"橋　北"},"居宅介護支援　しるビズバトン","510-0023","午起一丁目5番16号","059-331-2990","059-328-4030","I.S.ライフサービス株式会社",23,9]
["69",{"$f":"VLOOKUP(I71,地区名一覧!B2:C33,2,FALSE)","v":"楠"},"アルファ居宅サービス","510-0104","楠町南五味塚160番地4","059-336-5744","059-336-5745","株式会社Alfam",24,2]
["70",{"$f":"VLOOKUP(I72,地区名一覧!B2:C33,2,FALSE)","v":"楠"},"くす居宅介護支援事業所","510-0103","楠町北五味塚24\nサニーコート102号室","059-324-8331","059-324-0876","合同会社\nくす居宅介護支援事業所",24,3]
["71",{"$f":"VLOOKUP(I73,地区名一覧!B2:C33,2,FALSE)","v":"楠"},"四日市市社会福祉協議会\n指定居宅介護支援事業所\nゆりかもめ","510-0103","楠町北五味塚\n1450-1","059-398-2000","059-397-6861","社会福祉法人\n四日市市社会福祉協議会",24,3]
["72",{"$f":"VLOOKUP(I74,地区名一覧!B2:C33,2,FALSE)","v":"楠"},"居宅介護支援事業所\nケアサポート四日市楠館","510-0101","楠町小倉764-1","059-342-0018","059-398-2007","株式会社マザアス",24,5]
["73",{"$f":"VLOOKUP(I75,地区名一覧!B3:C34,2,FALSE)","v":"楠"},"居宅介護支援事業所\nすぎな","510-0106","楠町本郷1692　2階","059-327-6717","059-327-6718","株式会社\nケアサポートつくし",24,7]

{"sheet":"介護予防支援","index":1,"n_rows":85,"n_cols":10,"rows_kept":85,"cut":false,"hidden":false,"merged":[[0,0,0,7],[6,0,7,0],[6,1,7,1],[7,2,7,7],[2,0,3,0],[2,1,3,1],[3,2,3,7],[4,0,5,0],[4,1,5,1],[5,2,5,7]]}
["介護予防支援"]
["No","所在地","事業所名","事業所〒","事業所住所","事業所電話","事業所FAX","申請(開設)者名"]
[1,"本　庁","四日市市\n中地域包括支援センター","510-0093","本町9-8\n本町プラザ4階","059-354-8346","059-354-8326","社会福祉法人\n四日市市社会福祉協議会"]
[null,null,"　　担当地区：中部、川島、神前、桜、三重、県、橋北、常磐（久保田一丁目、二丁目のみ）"]
[2,"富　田","四日市市\n北地域包括支援センター","510-8008","富田浜町26-14","059-365-6215","059-365-6216","社会福祉法人\n富田浜福祉会"]
[null,null,"　　担当地区：富洲原、富田、羽津、八郷、下野、大矢知、保々、海蔵"]
[3,"小山田","四日市市\n南地域包括支援センター","512-1111","山田町5500-1","059-328-2618","059-328-2980","社会福祉法人\n青山里会"]
[null,null,"　　担当地区：常磐（久保田一丁目、二丁目を除く）、日永、四郷、内部、塩浜、小山田、河原田、水沢、楠"]
["4",{"$f":"VLOOKUP(I9,地区名一覧!B2:C33,2,FALSE)","v":"本　庁"},"居宅介護支援事業所\nりんりん","510-0067","浜田町18番3号\n酢文ビル2B号室","059-350-5335","059-350-5336","合同会社りんりん",1,19]
["5",{"$f":"VLOOKUP(I10,地区名一覧!B3:C34,2,FALSE)","v":"富洲原"},"ライト ケア サービス","510-8016","富州原町5-14","059-363-1289","059-366-1065","合資会社 天南",2,9]
["6",{"$f":"VLOOKUP(I11,地区名一覧!B4:C35,2,FALSE)","v":"富　田"},"富田浜\n介護予防支援事業所","510-8008","富田浜町26番14号","059-365-5203","059-365-5208","社会福祉法人\n富田浜福祉会",3,6]
["7",{"$f":"VLOOKUP(I12,地区名一覧!B5:C36,2,FALSE)","v":"常　磐"},"居宅介護支援事業所あすか","510-0827","赤堀南町6番7号","059-340-6700","059-373-7201","株式会社ＨＡＢＩＬＩＳ",5,1]
["8",{"$f":"VLOOKUP(I13,地区名一覧!B6:C37,2,FALSE)","v":"四　郷"},"四郷\n在宅介護サービスセンター","510-0943","西日野町字小溝野4015番地","059-322-1761","059-322-1769","社会福祉法人青山里会",7,9]
["9",{"$f":"VLOOKUP(I14,地区名一覧!B7:C38,2,FALSE)","v":"小山田"},"小山田\n在宅介護サービスセンター","512-1111","山田町5500-3","059-328-1814","059-328-3432","社会福祉法人青山里会",10,1]
["10",{"$f":"VLOOKUP(I15,地区名一覧!B8:C39,2,FALSE)","v":"三　重"},"CarePlanステーションこころ","512-0904","東坂部町53番地1","059-336-4003","059-336-6128","株式会社ゲレンデ",14,1]
["11",{"$f":"VLOOKUP(I16,地区名一覧!B9:C40,2,FALSE)","v":"三　重"},"みえ医療福祉生協\n居宅介護支援事業所いくわ","512-0911","生桑町1455番地","059-333-6475","059-333-6483","みえ医療福祉\n生活協同組合",14,11]
["12",{"$f":"VLOOKUP(I17,地区名一覧!B10:C41,2,FALSE)","v":"三　重"},"居宅介護支援\nえいとえいと","512-0911","生桑町2048-8","059-327-7826","059-327-7827","合同会社８えいと",14,11]
["13",{"$f":"VLOOKUP(I18,地区名一覧!B10:C41,2,FALSE)","v":"大矢知"},"居宅介護支援事業所\nLight Up","510-8034","大矢知町498-6","090-4268-0825","059-390-1952","Light Up合同会社",18,7]
["14",{"$f":"VLOOKUP(I19,地区名一覧!B11:C42,2,FALSE)","v":"橋　北"},"居宅介護支援センター\nさくら","510-0031","浜一色町15番14-1","059-340-0006","059-340-0101","社会福祉法人\n桜コミュニティ",23,7]
["15",{"$f":"VLOOKUP(I20,地区名一覧!B12:C43,2,FALSE)","v":"楠"},"居宅介護支援事業所\nすぎな","510-0106","楠町本郷1692　2階","059-327-6717","059-327-6718","株式会社\nケアサポートつくし",24,7]
[]
[]
[]
[]
[]
[]
[]
[]
[]
[]
[]
[]
[]
[]
[]
[]
[]
[]
[]
[]
[]
[null,null,"居宅介護支援事業所\nつばさ"]
[]
[]
[]
[null,null,null,null,"笹川一丁目15-1"]
[]
[]
[]
[]
[]
[]
[]
[]
[]
[]
[]
[]
[]
[]
[]
[]
[]
[]
[]
[]
[]
[]
[]
[]
[]
[]
[]
[]
[]
[]
[]
[]
[]
[]
[]
[null,null,null,null,null,null,"059-330-5067"]
[]
[]
[null,null,null,null,"阿倉川町10-26"]

{"sheet":"訪問介護","index":2,"n_rows":95,"n_cols":10,"rows_kept":95,"cut":false,"hidden":false,"merged":[[0,0,0,7]]}
["訪問介護"]
["No","所在地","事業所名","事業所〒","事業所住所","事業所電話","事業所FAX","申請(開設)者名","地区CD","町名CD"]
["1",{"$f":"VLOOKUP(I3,地区名一覧!B3:C34,2,FALSE)","v":"本　庁"},"訪問介護事業所よつば","510-0071","西浦二丁目９番４号","059-325-6736","059-325-6737","合同会社セオン",1,4]
["2",{"$f":"VLOOKUP(I4,地区名一覧!B2:C33,2,FALSE)","v":"本　庁"},"アースサポート四日市","510-0074","鵜の森二丁目\n2-1","059-356-4400","059-356-4411","アースサポート\n株式会社",1,8]
["3",{"$f":"VLOOKUP(I5,地区名一覧!B3:C34,2,FALSE)","v":"本　庁"},"ケア２１四日市","510-0074","鵜の森二丁目10-2　\n三幸ビル5階5A号室","059-350-6621","059-350-6721","株式会社ケア２１",1,8]
["4",{"$f":"VLOOKUP(I6,地区名一覧!B2:C33,2,FALSE)","v":"本　庁"},"さわやかネットワーク","510-0089","西町8-2","059-353-3011","059-359-2087","特定非営利活動法人\nさわやか",1,9]
["5",{"$f":"VLOOKUP(I7,地区名一覧!B2:C33,2,FALSE)","v":"本　庁"},"トラスト介護センター","510-0066","南浜田町8-18","059-354-3663","059-354-9414","株式会社トラスト",1,22]
["6",{"$f":"VLOOKUP(I8,地区名一覧!B2:C33,2,FALSE)","v":"本　庁"},"公益社団法人\n四日市市\nシルバー人材センター","510-0063","十七軒町9-10","059-354-3670","059-351-4830","公益社団法人\n四日市市\nシルバー人材センター",1,23]
["7",{"$f":"VLOOKUP(I9,地区名一覧!B2:C33,2,FALSE)","v":"本　庁"},"セントケア四日市","510-0064","新正四丁目7-5","059-350-1210","059-356-4622","セントケア三重\n株式会社",1,27]
["8",{"$f":"VLOOKUP(I10,地区名一覧!B2:C33,2,FALSE)","v":"本　庁"},"訪問介護ステーション\n四日市ひまわり","510-0064","新正五丁目4-35","059-340-7123","059-325-6559","株式会社ひまわり",1,28]
["9",{"$f":"VLOOKUP(I11,地区名一覧!B2:C33,2,FALSE)","v":"本　庁"},"社会福祉法人\n四日市市社会福祉協議会\n訪問介護事業所","510-0093","本町9-8","059-352-1297","059-352-1298","社会福祉法人\n四日市市社会福祉協議会",1,36]
["10",{"$f":"VLOOKUP(I12,地区名一覧!B2:C33,2,FALSE)","v":"本　庁"},"英水苑\nホームヘルプサービス","510-0072","九の城町9-17","059-340-5266","059-340-5256","社会福祉法人英水会",1,59]
["11",{"$f":"VLOOKUP(I13,地区名一覧!B2:C33,2,FALSE)","v":"本　庁"},"訪問介護\n未来予想図製作所","510-0072","九の城町5-12\n鵜の森ビル2C","059-325-7028","059-325-7029","株式会社\n未来予想図製作所",1,59]
["12",{"$f":"VLOOKUP(I14,地区名一覧!B2:C33,2,FALSE)","v":"富洲原"},"訪問介護ステーション\n富田ひまわり","510-8004","富田一色町9-15","059-364-3377","059-364-3381","株式会社ひまわり",2,7]
["13",{"$f":"VLOOKUP(I15,地区名一覧!B3:C34,2,FALSE)","v":"富洲原"},"訪問介護ステーション\nラーゴム","510-8004","富田一色町30-58","059-329-5558","050-3174-8004","株式会社Laget om",2,7]
["14",{"$f":"VLOOKUP(I16,地区名一覧!B3:C34,2,FALSE)","v":"富　田"},"医療法人富田浜病院\n訪問介護事業所","510-8011","東茂福町3-19","059-327-5507","059-327-7820","医療法人富田浜病院",3,10]
["15",{"$f":"VLOOKUP(I17,地区名一覧!B2:C33,2,FALSE)","v":"羽　津"},"YMCA\n在宅介護サービスセンター\n訪問介護事業所","510-0016","羽津山町1番19号","059-333-9831","059-327-7071","社会福祉法人\n三重ワイエムシイエイ福祉会",4,5]
["16",{"$f":"VLOOKUP(I18,地区名一覧!B2:C33,2,FALSE)","v":"常　磐"},"訪問介護リベル　\n四日市","510-0827","赤堀南町2-25","059-329-5270","059-329-5290","株式会社リベルケア",5,1]
["17",{"$f":"VLOOKUP(I19,地区名一覧!B2:C33,2,FALSE)","v":"常　磐"},"ゴールドエイジ\n四日市営業所","510-0829","城西町7-32","059-350-6988","059-350-6989","ゴールドエイジ株式会社",5,6]
["18",{"$f":"VLOOKUP(I20,地区名一覧!B3:C34,2,FALSE)","v":"常　磐"},"ゴールドエイジ\n三重営業所","510-0829","城西町7-32","059-329-5899","059-350-6989","ゴールドエイジ株式会社",5,6]
["19",{"$f":"VLOOKUP(I21,地区名一覧!B2:C33,2,FALSE)","v":"常　磐"},"ニチイケアセンター四日市","510-0829","城西町13-28\n第二大誠ビル1F","059-350-0855","059-350-0858","株式会社ニチイ学館",5,6]
["20",{"$f":"VLOOKUP(I22,地区名一覧!B2:C33,2,FALSE)","v":"常　磐"},"医心館　訪問介護ステーション\n四日市Ⅱ","510-0822","芝田一丁目1-20","059-350-4330","059-350-4331","株式会社アンビス",5,12]
["21",{"$f":"VLOOKUP(I23,地区名一覧!B2:C33,2,FALSE)","v":"常　磐"},"ケアサービスまる","510-0822","芝田二丁目4-20","059-359-3780","059-359-3787","イシズム株式会社",5,13]
["22",{"$f":"VLOOKUP(I24,地区名一覧!B3:C34,2,FALSE)","v":"常　磐"},"ホームケア土屋　三重","510-0821","久保田一丁目1-27\n安達ビル1階","050-3138-5905","050-6868-2649","株式会社土屋",5,18]
["23",{"$f":"VLOOKUP(I25,地区名一覧!B2:C33,2,FALSE)","v":"常　磐"},"ヘルパーステーションこまち","510-0821","久保田二丁目10-13\nTOYOTA　action　Build　オフィス棟２階","059-337-8770","059-336-4048","株式会社家楽",5,19]
["24",{"$f":"VLOOKUP(I26,地区名一覧!B2:C33,2,FALSE)","v":"常　磐"},"ケア工房　ゑまふ","510-0837","西松本町4番22号","059-359-2730","059-359-2731","株式会社エマウ",5,41]
["25",{"$f":"VLOOKUP(I27,地区名一覧!B2:C33,2,FALSE)","v":"常　磐"},"ヘルパーステイション\nぴーす",5100838,"南松本町9-11","059-322-5541","059-318-5548","合同会社ぴーす",5,42]
["26",{"$f":"VLOOKUP(I28,地区名一覧!B3:C34,2,FALSE)","v":"常　磐"},"訪問介護えいむ","510-0838","南松本町2-1","059-327-7730","059-327-7731","株式会社ＡＩＭ",5,42]
["27",{"$f":"VLOOKUP(I29,地区名一覧!B2:C33,2,FALSE)","v":"日　永"},"アバンセ介護センター\nよっかいち","510-0885","日永四丁目5-57","059-349-1720","059-349-1721","株式会社\nアバンセライフサポート",6,4]
["28",{"$f":"VLOOKUP(I30,地区名一覧!B2:C33,2,FALSE)","v":"日　永"},"あみーごライフ四日市日永","510-0885","日永五丁目1-21","059-327-7222","059-327-7223","株式会社\nセンチュリークリエイティブ",6,5]
["29",{"$f":"VLOOKUP(I31,地区名一覧!B2:C33,2,FALSE)","v":"日　永"},"ヘルパーステーション\nねこの手","510-0892","泊山崎町9-37","059-318-9208","059-318-9209","合同会社\nサポートカンパニー\nケアキャット",6,6]
["30",{"$f":"VLOOKUP(I32,地区名一覧!B3:C34,2,FALSE)","v":"日　永"},"訪問介護ステーション\nからふるサポート　日永","510-0885","大字日永字明徳谷5450-40","059-328-5611","059-328-5612","日本ライフケア\nソリューションズ株式会社",6,21]
["31",{"$f":"VLOOKUP(I33,地区名一覧!B2:C33,2,FALSE)","v":"日　永"},"訪問介護事業所\nケアヒルズ四日市","510-0885","日永5380-157","059-340-3010","059-340-3050","株式会社ノースアップ",6,32]
["32",{"$f":"VLOOKUP(I34,地区名一覧!B2:C33,2,FALSE)","v":"日　永"},"訪問介護しらゆりケア","510-0891","日永西二丁目\n9-10","059-327-5137","059-327-5138","株式会社しらゆりケア",6,29]
["33",{"$f":"VLOOKUP(I35,地区名一覧!B3:C34,2,FALSE)","v":"日　永"},"訪問介護　コラソン","510-0891","日永西二丁目10－20\nメゾン葛西　103号室","059-329-6123","059-329-6124","株式会社つじのや",6,29]
["34",{"$f":"VLOOKUP(I36,地区名一覧!B2:C33,2,FALSE)","v":"日　永"},"訪問介護事業所　るぴなす","510-0891","日永西三丁目\n22-24","059-336-5233","059-336-5337","株式会社ルピリクス",6,30]
["35",{"$f":"VLOOKUP(I37,地区名一覧!B2:C33,2,FALSE)","v":"四　郷"},"ヘルパーステーション\nオリーブ","510-0946","小林町3018-23","059-340-5001","059-321-2000","株式会社\nエスポワール",7,1]
["36",{"$f":"VLOOKUP(I38,地区名一覧!B3:C34,2,FALSE)","v":"四　郷"},"ヘルパーステーション\nよつば","510-0946","小林町3019-263","059-327-5884","059-327-5885","有限会社しあわせ",7,1]
["37",{"$f":"VLOOKUP(I39,地区名一覧!B2:C33,2,FALSE)","v":"四　郷"},"株式会社安心\n介護サービスセンター","510-0947","八王子町2474番地7\nパルネット笹川\n102号室","059-322-2204","059-322-2217","株式会社安心",7,7]
["38",{"$f":"VLOOKUP(I40,地区名一覧!B2:C33,2,FALSE)","v":"四　郷"},"マーベラス介護事業所","510-0948","室山町225番地1","059-323-0081","059-323-0582","株式会社家楽",7,8]
["39",{"$f":"VLOOKUP(I41,地区名一覧!B2:C33,2,FALSE)","v":"四　郷"},"有限会社\nライフサービス翔","510-0948","室山町226","059-321-5751","059-321-5798","有限会社\nライフサービス翔",7,8]
["40",{"$f":"VLOOKUP(I42,地区名一覧!B3:C34,2,FALSE)","v":"四　郷"},"ヘルパーステーション　傳々","510-0948","室山町1655番17","059-322-5588","059-322-5587","株式会社プロセスケア",7,8]
["41",{"$f":"VLOOKUP(I43,地区名一覧!B2:C33,2,FALSE)","v":"四　郷"},"訪問介護事業\nハッピーランプ","510-0943","西日野町\n2806-1","059-320-1011","059-322-2820","社会福祉法人\n四季の里",7,9]
["42",{"$f":"VLOOKUP(I44,地区名一覧!B2:C33,2,FALSE)","v":"四　郷"},"四郷\n在宅介護サービスセンター","510-0943","西日野町4015","059-322-1792","059-322-1753","社会福祉法人\n青山里会",7,9]
["43",{"$f":"VLOOKUP(I45,地区名一覧!B2:C33,2,FALSE)","v":"四　郷"},"ヘルパーステーション\n杉の木","510-0942","東日野町354-6","059-321-0078","059-318-8877","株式会社悠",7,10]
["44",{"$f":"VLOOKUP(I46,地区名一覧!B3:C34,2,FALSE)","v":"四　郷"},"ヘルパーステーション\nまほろば","510-0942","東日野町18番地3","059-322-1310",null,"合同会社まほろば",7,10]
["45",{"$f":"VLOOKUP(I47,地区名一覧!B4:C35,2,FALSE)","v":"四　郷"},"ヘルパーステーション\n晴れる家","510-0942","東日野町1228番地70","059-322-5389","059-390-0248","NPO法人\n晴れる家ふくふく",7,10]
["46",{"$f":"VLOOKUP(I48,地区名一覧!B2:C33,2,FALSE)","v":"四　郷"},"ヘルパーステーション\n花びより","510-0944","笹川三丁目21-1","059-322-8787","059-321-0187","株式会社福村屋",7,13]
["47",{"$f":"VLOOKUP(I49,地区名一覧!B2:C33,2,FALSE)","v":"四　郷"},"訪問介護事業所リーフ","510-0944","笹川三丁目76-1","059-336-6301","059-336-6302","株式会社ＦＬＡＴ",7,13]
["48",{"$f":"VLOOKUP(I50,地区名一覧!B3:C34,2,FALSE)","v":"四　郷"},"ケアステーション想桜","510-0944","笹川三丁目48","080-4524-7113","059-320-0321","有限会社コーブンシャ",7,13]
["49",{"$f":"VLOOKUP(I51,地区名一覧!B2:C33,2,FALSE)","v":"内　部"},"訪問介護　須美","510-0958","小古曽二丁目\n22-3","059-346-0861","059-318-9541","合同会社須美",8,2]
["50",{"$f":"VLOOKUP(I52,地区名一覧!B2:C33,2,FALSE)","v":"内　部"},"ヘルパーステーション\nまめ蔵","510-0954","釆女町1716-1","059-325-6825","059-325-6824","株式会社プロセスケア",8,7]
["51",{"$f":"VLOOKUP(I53,地区名一覧!B2:C33,2,FALSE)","v":"内　部"},"あみーごライフ四日市","510-0961","波木町2040-6","059-340-5335","059-340-5336","株式会社\nセンチュリークリエイティブ",8,8]
["52",{"$f":"VLOOKUP(I54,地区名一覧!B2:C33,2,FALSE)","v":"内　部"},"ヘルパーステーションくるみ","510-0971","南小松町615-13","080-9171-0964","059-322-4104","株式会社ラカポシ",8,11]
["53",{"$f":"VLOOKUP(I55,地区名一覧!B3:C34,2,FALSE)","v":"内　部"},"訪問介護ははごころ","510-0962","波木が丘町33番地3","090-6338-8556",null,"特定非営利活動法人\nははごころ",8,17]
["54",{"$f":"VLOOKUP(I56,地区名一覧!B3:C34,2,FALSE)","v":"小山田"},"稲穂","512-1111","山田町4405番地3","090-9937-8615","059-324-5004","合同会社稲穂の里",10,1]
["55",{"$f":"VLOOKUP(I57,地区名一覧!B2:C33,2,FALSE)","v":"川　島"},"介護予防・訪問介護\n織りがみ・南ステーション","512-0934","川島町6659","059-320-1133","059-320-1134","株式会社\nライフステージ",11,1]
["56",{"$f":"VLOOKUP(I58,地区名一覧!B2:C33,2,FALSE)","v":"川　島"},"ヘルプサービスまる四日市","512-0934","川島町736-2","059-320-1170","059-320-1171","株式会社ＴＮＧＭ",11,1]
["57",{"$f":"VLOOKUP(I59,地区名一覧!B2:C33,2,FALSE)","v":"川　島"},"訪問介護\nキョウユウサービス","512-0931","浮橋二丁目23-11","059-358-9059","059-328-5428","キョウユウサービス\n株式会社",11,8]
["58",{"$f":"VLOOKUP(I60,地区名一覧!B2:C33,2,FALSE)","v":"神　前"},"ヘルパーステーション\nまめ助","512-0921","尾平町195-1","059-340-3628","059-340-3652","株式会社プロセスケア",12,5]
["59",{"$f":"VLOOKUP(I61,地区名一覧!B2:C33,2,FALSE)","v":"桜"},"訪問介護ティーダアパラギ","512-1213","桜台本町62","059-326-1110","059-340-8885","株式会社ティーダ",13,5]
["60",{"$f":"VLOOKUP(I62,地区名一覧!B2:C33,2,FALSE)","v":"三　重"},"訪問介護事業所　福ちゃん","512-0902","小杉町299-1","059-327-7770","059-340-3156","株式会社福福",14,3]
["61",{"$f":"VLOOKUP(I62,地区名一覧!B2:C33,2,FALSE)","v":"三　重"},"いのうえサポート","512-0902","小杉町1892-1","059-324-5054","059-332-2098","いのうえサポート\n合同会社",14,3]
["62",{"$f":"VLOOKUP(I64,地区名一覧!B2:C33,2,FALSE)","v":"三　重"},"陽光苑","512-0913","西坂部町1127","059-333-4622","059-334-7841","社会福祉法人\n三重福祉会",14,10]
["63",{"$f":"VLOOKUP(I65,地区名一覧!B2:C33,2,FALSE)","v":"三　重"},"ヘルパーステーション\nすこやか","512-0911","生桑町654-1","059-330-0132","059-330-0134","株式会社有隣会",14,11]
["64",{"$f":"VLOOKUP(I66,地区名一覧!B2:C33,2,FALSE)","v":"三　重"},"みえ医療福祉生協\nヘルパーステーションいくわ","512-0911","生桑町1455","059-337-8885","059-333-6483","みえ医療福祉\n生活協同組合",14,11]
["65",{"$f":"VLOOKUP(I67,地区名一覧!B2:C33,2,FALSE)","v":"三　重"},"みたき在宅ケアセンター","512-0911","生桑町458-1","059-330-6536","059-330-6537","医療法人尚豊会",14,11]
["66",{"$f":"VLOOKUP(I68,地区名一覧!B3:C34,2,FALSE)","v":"三　重"},"エース","512-0911","生桑町77-1\nプロスパいくわ","059-328-5348","059-328-5349","合同会社ｂａｓｅ三重",14,11]
["67",{"$f":"VLOOKUP(I69,地区名一覧!B2:C33,2,FALSE)","v":"三　重"},"訪問介護きろろ","512-0912","三重一丁目105","059-324-0730","059-324-9152","きろろ株式会社",14,12]
["68",{"$f":"VLOOKUP(I70,地区名一覧!B2:C33,2,FALSE)","v":"八　郷"},"ケアサービスまる　北","512-8064","伊坂町1636-4","059-328-5058","059-328-5058","イシズム株式会社",16,4]
["69",{"$f":"VLOOKUP(I71,地区名一覧!B2:C33,2,FALSE)","v":"八　郷"},"指定訪問介護サービス\nぶどうの家","512-8046","あかつき台二丁目1-15","059-336-2166","059-336-2177","株式会社ぶどうの家",16,9]
["70",{"$f":"VLOOKUP(I72,地区名一覧!B2:C33,2,FALSE)","v":"八　郷"},"ハピネスやさと\n訪問介護事業所","512-8065","千代田町325-1","059-366-3303","059-366-3302","社会福祉法人\nアパティア福祉会",16,11]
["71",{"$f":"VLOOKUP(I73,地区名一覧!B2:C33,2,FALSE)","v":"八　郷"},"訪問介護なないろ","512-8046","あかつき台五丁目2番地5","059-327-7716","059-327-7717","株式会社二葉屋",16,15]
["72",{"$f":"VLOOKUP(I74,地区名一覧!B2:C33,2,FALSE)","v":"下　野"},"ヘルパーステーション\nにっこり山城","512-8048","山城町1014","059-337-2525","059-337-1118","株式会社山武館",17,2]
["73",{"$f":"VLOOKUP(I75,地区名一覧!B3:C34,2,FALSE)","v":"下　野"},"訪問介護事業所　和い輪い","512-8056","札場町511番地1","070-1661-5224","059-338-8700","和い輪い株式会社",17,3]
["74",{"$f":"VLOOKUP(I76,地区名一覧!B2:C33,2,FALSE)","v":"下　野"},"ケアサービス菜の花","512-8047","八千代台三丁目\n1-67","059-337-2838","059-337-2865","株式会社菜の花",17,12]
["75",{"$f":"VLOOKUP(I77,地区名一覧!B1:C32,2,FALSE)","v":"大矢知"},"ひまわりケアサービス富田","510-8028","下之宮町222-１","059-361-7015","059-361-7016","株式会社\nひまわりケアサービス",18,1]
["76",{"$f":"VLOOKUP(I78,地区名一覧!B2:C33,2,FALSE)","v":"大矢知"},"ヴィラ四日市\n在宅介護サービスセンター　","510-8037","垂坂町8-2","059-363-2121","059-363-3737","社会福祉法人\n平成福祉会",18,5]
["77",{"$f":"VLOOKUP(I79,地区名一覧!B2:C33,2,FALSE)","v":"大矢知"},"訪問介護事業所\nライフサポート","510-8034","大矢知町930-3","059-327-6360","059-327-6361","株式会社\nライフサポート",18,7]
["78",{"$f":"VLOOKUP(I80,地区名一覧!B2:C33,2,FALSE)","v":"大矢知"},"訪問介護ステーション\nよいかん四日市北","510-8021","松寺二丁目5-18","059-340-6375","059-340-6376","株式会社\nボンドワイエム",18,18]
["79",{"$f":"VLOOKUP(I81,地区名一覧!B2:C33,2,FALSE)","v":"大矢知"},"介護予防・訪問介護\n織りがみ・北ステーション","510-8031","川北一丁目11-11","059-358-7556","050-3153-2111","株式会社\nライフステージ",18,20]
["80",{"$f":"VLOOKUP(I82,地区名一覧!B2:C33,2,FALSE)","v":"大矢知"},"セントケア北四日市","510-8033","下さざらい町5-17","059-361-2121","059-361-2123","セントケア三重\n株式会社",18,23]
["81",{"$f":"VLOOKUP(I83,地区名一覧!B3:C34,2,FALSE)","v":"大矢知"},"訪問介護リベル\n四日市あさけ","510-8033","下さざらい町11-8","059-325-7556","059-325-7557","株式会社リベルケア",18,23]
["82",{"$f":"VLOOKUP(I84,地区名一覧!B3:C34,2,FALSE)","v":"河原田"},"すまいる介護　かなで","510-0874","河原田町228-1","059-337-8682","059-337-9840","合同会社那波",19,4]
["83",{"$f":"VLOOKUP(I85,地区名一覧!B2:C33,2,FALSE)","v":"河原田"},"ＬＴＳ\n訪問介護サービスセンター","510-0875","大治田二丁目\n18-19","059-373-6621","059-373-6681","株式会社\nライフ・テクノサービス",19,7]
["84",{"$f":"VLOOKUP(I86,地区名一覧!B3:C34,2,FALSE)","v":"河原田"},"訪問介護ステーション\nよいかん四日市南","510-0875","大治田三丁目\n2番38-6号","059-327-6234","059-327-6233","株式会社ボンドワイエム",19,8]
["85",{"$f":"VLOOKUP(I87,地区名一覧!B4:C35,2,FALSE)","v":"河原田"},"アクア大治田訪問介護","510-0875","大治田三丁目\n1番32号","059-329-6877","059-329-6477","株式会社\nスタッフシュウエイ",19,8]
["86",{"$f":"VLOOKUP(I88,地区名一覧!B5:C36,2,FALSE)","v":"海　蔵"},"訪問介護あじさい","510-0803","阿倉川町4番3号","059-340-7833","059-340-7835","合同会社あじさい",22,1]
["87",{"$f":"VLOOKUP(I89,地区名一覧!B3:C34,2,FALSE)","v":"海　蔵"},"訪問介護たすける","510-0803","阿倉川町10-26","059-327-7720","059-327-7721","株式会社たすける",22,1]
["88",{"$f":"VLOOKUP(I90,地区名一覧!B4:C35,2,FALSE)","v":"海　蔵"},"訪問介護すいーとぴぃ",5100815,"野田二丁目5-21","059-333-7117","059-333-7119","合同会社すいーとぴぃ",22,9]
["89",{"$f":"VLOOKUP(I91,地区名一覧!B2:C33,2,FALSE)","v":"海　蔵"},"有限会社ジョイフル・ケア","510-0805","東阿倉川410-1","059-333-7211","059-331-3604","有限会社\nジョイフル・ケア",22,13]
["90",{"$f":"VLOOKUP(I92,地区名一覧!B2:C33,2,FALSE)","v":"橋　北"},"ヘルパーステーション　紫","510-0033","川原町22-19","059-324-5439","059-324-2871","合同会社\nＫＵＲＯＫＯ’Ｓ",23,5]
["91",{"$f":"VLOOKUP(I93,地区名一覧!B2:C33,2,FALSE)","v":"楠"},"介護センターつくし","510-0103","楠町北五味塚\n1948-1","059-397-2771","059-397-2792","有限会社つくし",24,3]
["92",{"$f":"VLOOKUP(I94,地区名一覧!B2:C33,2,FALSE)","v":"楠"},"ヘルパーステーション\n四日市楠館","510-0101","楠町小倉764-1","059-342-0018","059-398-2007","株式会社マザアス",24,5]
["93",{"$f":"VLOOKUP(I95,地区名一覧!B3:C34,2,FALSE)","v":"楠"},"ヘルパーステーションつくし","510-0106","楠町本郷1692 2階","059-327-6717","059-327-6718","株式会社\nケアサポートつくし",24,7]

{"sheet":"訪問入浴","index":3,"n_rows":4,"n_cols":10,"rows_kept":4,"cut":false,"hidden":false,"merged":[[0,0,0,7]]}
["訪問入浴"]
["No","所在地","事業所名","事業所〒","事業所住所","事業所電話","事業所FAX","申請(開設)者名","地区CD","町名CD"]
["1",{"$f":"VLOOKUP(I3,地区名一覧!B2:C33,2,FALSE)","v":"本　庁"},"アスケア訪問入浴　四日市","510-0084","栄町6-5","050-3317-1702","059-350-3052","株式会社ＡＳＣａｒｅ",1,36]
["2",{"$f":"VLOOKUP(I4,地区名一覧!B2:C33,2,FALSE)","v":"常　磐"},"パナソニックエイジフリー\nケアセンター四日市芝田・\n訪問入浴","510-0822","芝田一丁目10-11","059-359-2232","059-353-8630","パナソニック\nエイジフリー株式会社",5,12]

{"sheet":"訪問看護・訪リハ","index":4,"n_rows":53,"n_cols":10,"rows_kept":53,"cut":false,"hidden":false,"merged":[[0,0,0,7],[49,0,49,7]]}
["訪問看護ステーション（医療機関みなし指定を除く）"]
["No","所在地","事業所名","事業所〒","事業所住所","事業所電話","事業所FAX","申請(開設)者名","地区CD","町名CD"]
["1",{"$f":"VLOOKUP(I3,地区名一覧!B2:C33,2,FALSE)","v":"本　庁"},"訪問看護ステーション\nデューン四日市","510-0071","西浦一丁目10-25\nマインドビル5階","059-356-1500","059-356-1501","株式会社\nＮ・フィールド",1,3]
["2",{"$f":"VLOOKUP(I4,地区名一覧!B2:C33,2,FALSE)","v":"本　庁"},"訪問看護ＳＮ’Ｕｐ（スナップ）","510-0075","安島二丁目11-8","059-327-6170","059-327-6171","株式会社紅怜羽",1,6]
["3",{"$f":"VLOOKUP(I5,地区名一覧!B2:C33,2,FALSE)","v":"本　庁"},"四日市医師会\n訪問看護ステーション","510-0087","西新地14-20","059-355-0099","059-350-2888","公益社団法人\n四日市医師会",1,11]
["4",{"$f":"VLOOKUP(I6,地区名一覧!B2:C33,2,FALSE)","v":"本　庁"},"リウォーク新正\n訪問看護リハビリステーション","510-0064","新正二丁目4-28","059-350-2810","059-350-2811","株式会社リウォーク",1,25]
["5",{"$f":"VLOOKUP(I7,地区名一覧!B2:C33,2,FALSE)","v":"本　庁"},"ケアーズ\n訪問看護リハビリステーション\nあやめ","510-0064","新正二丁目\n8-7-101","059-337-9992","059-337-9993","株式会社香久屋",1,25]
["6",{"$f":"VLOOKUP(I8,地区名一覧!B2:C33,2,FALSE)","v":"本　庁"},"セントケア\n訪問看護ステーション四日市","510-0064","新正四丁目7-5","059-356-8080","059-356-4622","セントケア三重\n株式会社",1,27]
["7",{"$f":"VLOOKUP(I9,地区名一覧!B3:C34,2,FALSE)","v":"本　庁"},"訪問看護ステーション\nベル・ティアラ","510-0072","九の城町4-23","059-327-6207","059-327-6208","株式会社ティアラ",1,59]
["8",{"$f":"VLOOKUP(I10,地区名一覧!B3:C34,2,FALSE)","v":"富洲原"},"訪問看護ステーション　\nプロケア",5108001,"天カ須賀四丁目\n7-28-2階","059-327-6553","059-327-6552","株式会社プロケア",2,4]
["9",{"$f":"VLOOKUP(I11,地区名一覧!B2:C33,2,FALSE)","v":"富　田"},"訪問看護\n浜っこステーション","510-8008","富田浜町26-14","059-365-5110","059-365-0412","医療法人\n富田浜病院",3,6]
["10",{"$f":"VLOOKUP(I12,地区名一覧!B2:C33,2,FALSE)","v":"羽　津"},"独立行政法人地域医療機能推進機構\n四日市羽津医療センター附属\n訪問看護ステーション","510-0016","羽津山町10-8","059-331-6044","059-331-1555","独立行政法人\n地域医療機能推進機構",4,5]
["11",{"$f":"VLOOKUP(I13,地区名一覧!B2:C33,2,FALSE)","v":"常　磐"},"訪問看護ステーション\nあやめ四日市","510-0827","赤堀南町2-23\nグレースマンション\n藤305","059-359-2560","059-359-2565","株式会社\nファーストナース",5,1]
["12",{"$f":"VLOOKUP(I14,地区名一覧!B2:C33,2,FALSE)","v":"常　磐"},"訪問看護リベル\n四日市","510-0827","赤堀南町2-25","059-329-5270","059-329-5290","株式会社リベルケア",5,1]
["13",{"$f":"VLOOKUP(I15,地区名一覧!B2:C33,2,FALSE)","v":"常　磐"},"訪問看護リハビリステーション\nあすか","510-0827","赤堀南町6-7","059-373-7200","059-373-7201","株式会社ＨＡＢＩＬＩＳ",5,1]
["14",{"$f":"VLOOKUP(I16,地区名一覧!B2:C33,2,FALSE)","v":"常　磐"},"ゴールドエイジ\n訪問看護ステーション","510-0829","城西町6-13","059-342-6622","059-342-6623","ゴールドエイジ株式会社",5,6]
["15",{"$f":"VLOOKUP(I17,地区名一覧!B2:C33,2,FALSE)","v":"常　磐"},"医心館　訪問看護ステーション\n四日市Ⅱ","510-0822","芝田一丁目1-20","059-350-4330","059-350-4331","株式会社アンビス",5,12]
["16",{"$f":"VLOOKUP(I18,地区名一覧!B3:C34,2,FALSE)","v":"常　磐"},"みんなのかかりつけ訪問看護\nステーション四日市","510-0822","芝田一丁目5-8\nシバタコーポラス303","059-328-5915","050-3737-6389","株式会社デザインケア",5,12]
["17",{"$f":"VLOOKUP(I19,地区名一覧!B4:C35,2,FALSE)","v":"常　磐"},"訪問看護リハビリステーション\nはぁちゃん四日市","510-0834","ときわ三丁目6-1\nときわ事務所103","059-355-3739","059-355-3740","ＦＪｓｔａｒ株式会社",5,26]
["18",{"$f":"VLOOKUP(I20,地区名一覧!B2:C33,2,FALSE)","v":"常　磐"},"ときわ訪問看護ステーション","510-0823","城北町8-1","059-355-4393","059-355-4394","医療法人社団主体会",5,39]
["19",{"$f":"VLOOKUP(I21,地区名一覧!B2:C33,2,FALSE)","v":"常　磐"},"訪問看護ステーション　えいむ","510-0838","南松本町2-1","059-327-7730","059-327-7731","株式会社ＡＩＭ",5,42]
["20",{"$f":"VLOOKUP(I22,地区名一覧!B3:C34,2,FALSE)","v":"日　永"},"訪問看護ステーション\nシェルホーム","510-0892","泊山崎町10-1","059-327-6603","059-327-6604","株式会社シェルハート",6,6]
["21",{"$f":"VLOOKUP(I23,地区名一覧!B2:C33,2,FALSE)","v":"日　永"},"心の訪問看護ステーション\nひなが","510-0891","日永西三丁目5-37\nヒナガ西ビル4F","059-348-5511","059-348-5512","社会医療法人居仁会",6,21]
["22",{"$f":"VLOOKUP(I24,地区名一覧!B2:C33,2,FALSE)","v":"日　永"},"訪問看護ステーション\nしらゆりケア","510-0891","日永西2-9-11","059-347-5081","059-347-5082","株式会社しらゆりケア",6,30]
["23",{"$f":"VLOOKUP(I25,地区名一覧!B3:C34,2,FALSE)","v":"日　永"},"ケアヒルズ訪問看護ステーション","510-0891","日永西三丁目3-20\n田中ビル101","059-327-6777","059-327-6707","株式会社ノースアップ",6,30]
["24",{"$f":"VLOOKUP(I26,地区名一覧!B2:C33,2,FALSE)","v":"日　永"},"ハピナス\n訪問看護ステーション","510-0891","日永西三丁目11-21\nコスモシティ日永5Ｂ","059-340-7788","059-340-7785","ハッピーライフ\n株式会社",6,30]
["25",{"$f":"VLOOKUP(I27,地区名一覧!B2:C33,2,FALSE)","v":"四　郷"},"訪問看護ステーション\nオリーブ","510-0946","小林町3018-23","059-340-5001","059-321-2000","株式会社エスポワール",7,1]
["26",{"$f":"VLOOKUP(I28,地区名一覧!B3:C34,2,FALSE)","v":"四　郷"},"訪問看護ステーションホワイトエイト","510-0945","高花平二丁目29-10","059-321-6766","059-321-6766","有限会社オオシマ",7,3]
["27",{"$f":"VLOOKUP(I29,地区名一覧!B2:C33,2,FALSE)","v":"四　郷"},"訪問看護ステーション\nプロセスケア","510-0948","室山町1655番17","059-340-5937","059-322-5587","株式会社プロセスケア",7,8]
["28",{"$f":"VLOOKUP(I30,地区名一覧!B3:C34,2,FALSE)","v":"四　郷"},"一燈\n訪問看護ステーション","510-0944","笹川三丁目141-3","059-321-5200","059-327-5221","株式会社ラカポシ",7,13]
["29",{"$f":"VLOOKUP(I31,地区名一覧!B4:C35,2,FALSE)","v":"四　郷"},"訪問看護ステーション\n想桜","510-0944","笹川三丁目48","070-1687-0401","059-320-0321","有限会社コーブンシャ",7,13]
["30",{"$f":"VLOOKUP(I32,地区名一覧!B5:C36,2,FALSE)","v":"内　部"},"訪問看護リハビリステーション　Green","510-0954","釆女町2997-122","059-348-0039","059-348-0040","合同会社　太西",8,7]
["31",{"$f":"VLOOKUP(I33,地区名一覧!B2:C33,2,FALSE)","v":"神　前"},"訪問看護リハステーション春","512-0921","尾平町1580-1\nロイヤルコート21\n1Ｆ","059-327-5275","059-327-5276","株式会社さくら",12,5]
["32",{"$f":"VLOOKUP(I34,地区名一覧!B3:C34,2,FALSE)","v":"三　重"},"訪問看護ステーション\nこころ","512-0904","東坂部町53-1","059-336-6127",null,"株式会社　ゲレンデ",14,1]
["33",{"$f":"VLOOKUP(I35,地区名一覧!B2:C33,2,FALSE)","v":"三　重"},"サンライズ\n訪問看護ステーション","512-0902","小杉町30\nサンヴィレッジ小杉\nB－102","059-333-0564","059-993-0768","合同会社サンライズ",14,3]
["34",{"$f":"VLOOKUP(I36,地区名一覧!B2:C33,2,FALSE)","v":"三　重"},"みたき在宅ケアセンター","512-0911","生桑町458-1","059-330-6536","059-330-6537","医療法人尚豊会",14,11]
["35",{"$f":"VLOOKUP(I37,地区名一覧!B2:C33,2,FALSE)","v":"三　重"},"みえ医療福祉生協\n訪問看護ステーションいくわ","512-0911","生桑町1455","059-333-6472","059-333-6483","みえ医療福祉\n生活協同組合",14,11]
["36",{"$f":"VLOOKUP(I38,地区名一覧!B2:C33,2,FALSE)","v":"八　郷"},"指定訪問看護事業所\nぶどうの家","512-8046","あかつき台二丁目\n1-15","059-336-2166","059-336-2177","株式会社ぶどうの家",16,9]
["37",{"$f":"VLOOKUP(I39,地区名一覧!B3:C34,2,FALSE)","v":"八　郷"},"訪問看護ステーション\nしらゆりケア四日市北","512-8046","あかつき台三丁目1-197","059-340-0135","059-340-0136","株式会社しらゆりケア",16,10]
["38",{"$f":"VLOOKUP(I40,地区名一覧!B2:C33,2,FALSE)","v":"下　野"},"ナーシングホーム\nもも四日市","512-8054","朝明町441-1","059-336-3330","059-328-4440","有限会社だいち",17,1]
["39",{"$f":"VLOOKUP(I41,地区名一覧!B3:C34,2,FALSE)","v":"下　野"},"訪問看護ステーションにっこり山城","512-8048","山城町1014","059-337-2525","059-337-1118","株式会社山武館",17,2]
["40",{"$f":"VLOOKUP(I42,地区名一覧!B3:C34,2,FALSE)","v":"大矢知"},"訪問看護ステーション\nむぎわら家","510-8021","松寺一丁目5番29号","059-337-8126","059-337-8126","東電工業株式会社",18,17]
["41",{"$f":"VLOOKUP(I43,地区名一覧!B3:C34,2,FALSE)","v":"大矢知"},"訪問看護ステーションよいかん四日市","510-8021","松寺二丁目5-18","059-340-6375","059-340-6376","株式会社ボンドワイエム",18,18]
["42",{"$f":"VLOOKUP(I44,地区名一覧!B4:C35,2,FALSE)","v":"大矢知"},"訪問看護リベル\n四日市あさけ","510-8033","下さざらい町11-8","059-325-7556","059-325-7557","株式会社リベルケア",18,23]
["43",{"$f":"VLOOKUP(I45,地区名一覧!B4:C35,2,FALSE)","v":"河原田"},"アクア大治田訪問看護","510-0875","大治田三丁目\n1番32号","059-329-6877","059-329-6477","株式会社\nスタッフシュウエイ",19,8]
["44",{"$f":"VLOOKUP(I46,地区名一覧!B3:C34,2,FALSE)","v":"橋　北"},"訪問看護ステーション\n夢眠よっかいち","510-0034","滝川町13-3","059-332-1156","059-332-1157","株式会社夢眠ホーム",23,2]
["45",{"$f":"VLOOKUP(I47,地区名一覧!B3:C34,2,FALSE)","v":"楠"},"あるふぁ訪問看護ST","510-0104","楠町南五味塚\n160－4","059-327-5719","059-327-5739","株式会社Ａｌｆａｍ",24,2]
["46",{"$f":"VLOOKUP(I48,地区名一覧!B2:C33,2,FALSE)","v":"楠"},"訪問看護ステーションくす","510-0103","楠町北五味塚\n2173-1","059-324-7456","059-324-7456","合同会社訪問看護\nステーションくす",24,3]
["47",{"$f":"VLOOKUP(I49,地区名一覧!B3:C34,2,FALSE)","v":"楠"},"ナースカンパニー","510-0103","楠町北五味塚2350\n2階","059-269-5570","059-269-5571","特定非営利活動法人\nナースカンパニー",24,3]
["訪問リハビリテーション（医療機関みなし指定を除く）"]
["No","所在地","事業所名","事業所〒","事業所住所","事業所電話","事業所FAX","申請(開設)者名","地区CD","町CD"]
["1",{"$f":"VLOOKUP(I52,地区名一覧!B7:C38,2,FALSE)","v":"常　磐"},"介護老人保健施設\nみえ川村老健","510-0824","城東町3-21","059-355-3838","059-355-3831","医療法人社団主体会",5,5]
["2",{"$f":"VLOOKUP(I53,地区名一覧!B8:C39,2,FALSE)","v":"小山田"},"小山田老人保健施設","512-1111","山田町5501-1","059-328-2847","059-328-2687","社会福祉法人青山里会",10,1]

{"sheet":"通所介護","index":5,"n_rows":71,"n_cols":10,"rows_kept":71,"cut":false,"hidden":false,"merged":[[0,0,0,7]]}
["通所介護"]
["No","所在地","事業所名","事業所〒","事業所住所","事業所電話","事業所FAX","申請(開設)者名","地区CD","町名CD"]
["1",{"$f":"VLOOKUP(I3,地区名一覧!B2:C33,2,FALSE)","v":"本　庁"},"リウォーク新正","510-0064","新正二丁目4-28","059-350-2810","059-350-2811","株式会社リウォーク",1,25]
["2",{"$f":"VLOOKUP(I4,地区名一覧!B2:C33,2,FALSE)","v":"本　庁"},"社会福祉法人風薫会\nみなとデイサービスセンター","510-0042","高砂町7-6","059-359-6611","059-359-6612","社会福祉法人風薫会",1,46]
["3",{"$f":"VLOOKUP(I5,地区名一覧!B2:C33,2,FALSE)","v":"富洲原"},"天カ須賀\n在宅介護サービスセンター","510-8001","天カ須賀四丁目　　7-25","059-361-5361","059-361-5362","社会福祉法人徳寿会",2,4]
["4",{"$f":"VLOOKUP(I6,地区名一覧!B2:C33,2,FALSE)","v":"富洲原"},"デイサービスセンター\n富田ひまわり","510-8004","富田一色町9-15","059-364-3377","059-364-3381","株式会社ひまわり",2,7]
["5",{"$f":"VLOOKUP(I7,地区名一覧!B2:C33,2,FALSE)","v":"富洲原"},"富州原通所介護センタ－","510-8016","富州原町2-80","059-364-0333","059-364-0306","社会福祉法人\n平成福祉会",2,9]
["6",{"$f":"VLOOKUP(I8,地区名一覧!B2:C33,2,FALSE)","v":"富　田"},"四季の郷\nデイサービス潮彩の家","510-8007","富田浜元町5-9","059-361-5533","059-361-5534","株式会社四季の郷",3,5]
["7",{"$f":"VLOOKUP(I9,地区名一覧!B2:C33,2,FALSE)","v":"富　田"},"富田浜\n在宅介護サービスセンター\n指定通所介護事業所","510-8008","富田浜町26-14","059-365-0066","059-365-0412","社会福祉法人\n富田浜福祉会",3,6]
["8",{"$f":"VLOOKUP(I10,地区名一覧!B2:C33,2,FALSE)","v":"常　磐"},"デイサービス笑門来福\nあかほり","510-0826","赤堀一丁目4-7","059-351-2929","059-356-0129","株式会社福村屋",5,2]
["9",{"$f":"VLOOKUP(I11,地区名一覧!B2:C33,2,FALSE)","v":"常　磐"},"常磐\n在宅介護サービスセンター","510-0824","城東町3-22","059-355-7590","059-358-0360","社会福祉法人\n青山里会",5,5]
["10",{"$f":"VLOOKUP(I12,地区名一覧!B2:C33,2,FALSE)","v":"常　磐"},"ゴールドエイジ\n城西デイサービス","510-0829","城西町6-13","059-355-1126","059-355-1127","ゴールドエイジ株式会社",5,6]
["11",{"$f":"VLOOKUP(I13,地区名一覧!B2:C33,2,FALSE)","v":"常　磐"},"はちデイサービスセンター\n四日市中川原","510-0833","中川原一丁目\n6-35","059-328-4032","059-328-4164","株式会社八鳥本家",5,8]
["12",{"$f":"VLOOKUP(I14,地区名一覧!B2:C33,2,FALSE)","v":"常　磐"},"パナソニック　エイジフリー\nケアセンター四日市芝田・\nデイサービス","510-0822","芝田一丁目10-11","059-359-2226","059-359-2235","パナソニック\nエイジフリー株式会社",5,12]
["13",{"$f":"VLOOKUP(I15,地区名一覧!B2:C33,2,FALSE)","v":"常　磐"},"ユートピア\n在宅介護サービスセンター\n（通所介護事業所）","510-0821","久保田二丁目\n12-8","059-355-2500","059-355-3571","社会福祉法人\nユートピア",5,19]
["14",{"$f":"VLOOKUP(I16,地区名一覧!B2:C33,2,FALSE)","v":"常　磐"},"デイサービスセンター\nからふる　ときわ","510-0837","西松本町14-25","059-353-1165","059-353-3633","日本ライフケアソリューションズ株式会社",5,41]
["15",{"$f":"VLOOKUP(I17,地区名一覧!B2:C33,2,FALSE)","v":"日　永"},"みどり\nデイサービスセンター","510-0885","日永二丁目5-45","059-348-5656","059-348-5858","株式会社吉昇幹",6,2]
["16",{"$f":"VLOOKUP(I18,地区名一覧!B2:C33,2,FALSE)","v":"日　永"},"日永英水苑\n在宅介護サービスセンター","510-0885","日永5530-23","059-347-9977","059-347-6661","社会福祉法人英水会",6,21]
["17",{"$f":"VLOOKUP(I19,地区名一覧!B2:C33,2,FALSE)","v":"日　永"},"通所介護事業所\nケアヒルズ四日市","510-0885","日永5380-157","059-340-3010","059-340-3050","株式会社ノースアップ",6,21]
["18",{"$f":"VLOOKUP(I20,地区名一覧!B2:C33,2,FALSE)","v":"日　永"},"デイサービスエクセレント","510-0886","日永東三丁目\n11-20","059-347-4381","059-346-8608","ゴールドエイジ株式会社",6,26]
["19",{"$f":"VLOOKUP(I21,地区名一覧!B2:C33,2,FALSE)","v":"日　永"},"デイサービスるぴなす","510-0891","日永西三丁目\n22-24","059-336-5233","059-336-5337","株式会社ルピリクス",6,30]
["20",{"$f":"VLOOKUP(I22,地区名一覧!B2:C33,2,FALSE)","v":"日　永"},"デイサービスエフ","510-0891","日永西四丁目\n11-21","059-348-0960","059-348-0965","ゴールドエイジ株式会社",6,31]
["21",{"$f":"VLOOKUP(I23,地区名一覧!B2:C33,2,FALSE)","v":"四　郷"},"デイサービスセンター\nオリーブ","510-0946","小林町3018-23","059-340-5001","059-321-2000","株式会社エスポワール",7,1]
["22",{"$f":"VLOOKUP(I24,地区名一覧!B2:C33,2,FALSE)","v":"四　郷"},"ケアヒルズよごう\nデイサービスセンター","510-0946","小林町3018-108","059-336-5666","059-320-1726","株式会社ノースアップ",7,1]
["23",{"$f":"VLOOKUP(I25,地区名一覧!B2:C33,2,FALSE)","v":"四　郷"},"クレア　デイサービス","510-0946","小林町3029-84","059-340-4310","059-340-4311","株式会社リブ",7,1]
["24",{"$f":"VLOOKUP(I26,地区名一覧!B2:C33,2,FALSE)","v":"四　郷"},"オーロラデイサービス","510-0943","西日野町2806-1","059-322-2800","059-322-2820","社会福祉法人\n四季の里",7,9]
["25",{"$f":"VLOOKUP(I27,地区名一覧!B2:C33,2,FALSE)","v":"四　郷"},"四郷\n在宅介護サービスセンター","510-0943","西日野町4015","059-322-1787","059-322-1769","社会福祉法人\n青山里会",7,9]
["26",{"$f":"VLOOKUP(I28,地区名一覧!B2:C33,2,FALSE)","v":"四　郷"},"デイサービス笑門来福","510-0944","笹川三丁目21-4","059-322-8787","059-321-0187","株式会社福村屋",7,13]
["27",{"$f":"VLOOKUP(I29,地区名一覧!B2:C33,2,FALSE)","v":"内　部"},"デイサービスセンターいつき\n小古曽","510-0958","小古曽二丁目\n10-10","059-340-4165","059-340-4166","株式会社樹",8,2]
["28",{"$f":"VLOOKUP(I30,地区名一覧!B3:C34,2,FALSE)","v":"内　部"},"デイサービスセンター\nねこカントリークラブ","510-0958","小古曽六丁目\n15-1","059-324-9034","059-324-9034","合同会社ぽかぽか",8,6]
["29",{"$f":"VLOOKUP(I31,地区名一覧!B2:C33,2,FALSE)","v":"内　部"},"在宅介護サービスセンター\nうねめの里","510-0954","釆女町418-1","059-348-2668","059-348-3989","社会福祉法人永甲会",8,7]
["30",{"$f":"VLOOKUP(I32,地区名一覧!B2:C33,2,FALSE)","v":"内　部"},"第二陽光苑\nデイサービスセンター","510-0961","波木町1168-4","059-337-8388","059-320-3111","株式会社\nヘルシーハウス",8,8]
["31",{"$f":"VLOOKUP(I33,地区名一覧!B2:C33,2,FALSE)","v":"塩　浜"},"デイサービスケア\nねこのおうち","510-0855","馳出町三丁目\n35-1","059-358-3611","059-358-3616","合同会社サポート\nカンパニーケアキャット",9,6]
["32",{"$f":"VLOOKUP(I34,地区名一覧!B2:C33,2,FALSE)","v":"塩　浜"},"社会福祉法人風薫会\nしおはまデイサービスセンター","510-0863","塩浜栄町471","059-349-6380","059-349-6382","社会福祉法人風薫会",9,26]
["33",{"$f":"VLOOKUP(I35,地区名一覧!B2:C33,2,FALSE)","v":"小山田"},"小山田\n在宅介護サービスセンター","512-1111","山田町5500-1","059-328-3237","059-328-2905","社会福祉法人\n青山里会",10,1]
["34",{"$f":"VLOOKUP(I36,地区名一覧!B2:C33,2,FALSE)","v":"川　島"},"川島\n在宅介護サービスセンター","512-0934","川島町4040","059-322-3612","059-322-3614","社会福祉法人\n青山里会",11,1]
["35",{"$f":"VLOOKUP(I37,地区名一覧!B2:C33,2,FALSE)","v":"川　島"},"デイサービス\nゴールドエイジ小生","512-0932","小生町608-6","059-327-6300","059-327-6301","ゴールドエイジ株式会社",11,2]
["36",{"$f":"VLOOKUP(I38,地区名一覧!B2:C33,2,FALSE)","v":"神　前"},"かんざき\n在宅介護サービスセンター","512-0924","寺方町986-4","059-327-2178","059-327-2228","社会福祉法人\n青山里会",12,2]
["37",{"$f":"VLOOKUP(I39,地区名一覧!B2:C33,2,FALSE)","v":"桜"},"英水苑\n在宅介護サービスセンター","512-1212","智積町34-1","059-326-7571","059-326-7557","社会福祉法人英水会",13,1]
["38",{"$f":"VLOOKUP(I40,地区名一覧!B2:C33,2,FALSE)","v":"桜"},"デイサービスセンター\nのぞみ","512-1212","智積町806","059-327-1150","059-327-1151","株式会社のぞみ",13,1]
["39",{"$f":"VLOOKUP(I41,地区名一覧!B2:C33,2,FALSE)","v":"三　重"},"陽光苑","512-0913","西坂部町1127","059-333-7225","059-334-7841","社会福祉法人\n三重福祉会",14,10]
["40",{"$f":"VLOOKUP(I42,地区名一覧!B2:C33,2,FALSE)","v":"三　重"},"デイサービスすこやか","512-0911","生桑町79-1","059-331-9001","059-331-8811","株式会社有隣会",14,11]
["41",{"$f":"VLOOKUP(I43,地区名一覧!B2:C33,2,FALSE)","v":"三　重"},"みえ医療福祉生協\nデイサービスいくわ","512-0911","生桑町1455","059-333-6756","059-333-6765","みえ医療福祉\n生活協同組合",14,11]
["42",{"$f":"VLOOKUP(I44,地区名一覧!B2:C33,2,FALSE)","v":"三　重"},"芽生え荘通所介護事業所","512-0911","生桑町328-1","059-334-8801","059-334-8803","有限会社\nプロップカワジ",14,11]
["43",{"$f":"VLOOKUP(I45,地区名一覧!B2:C33,2,FALSE)","v":"県"},"くぬぎの木\n在宅介護サービスセンター","512-1204","赤水町1274-14","059-327-2266","059-327-1160","社会福祉法人\nあがた福祉の会",15,1]
["44",{"$f":"VLOOKUP(I46,地区名一覧!B2:C33,2,FALSE)","v":"県"},"デイサービス菜の花","512-1201","上海老町1918-1","059-326-7787","059-326-7794","株式会社菜の花",15,6]
["45",{"$f":"VLOOKUP(I47,地区名一覧!B2:C33,2,FALSE)","v":"県"},"デイサービスセンター\nいつき","512-1205","平尾町3554-3","059-325-7630","059-325-7631","株式会社樹",15,7]
["46",{"$f":"VLOOKUP(I48,地区名一覧!B2:C33,2,FALSE)","v":"八　郷"},"ハピネスやさと\nデイサービスセンター","512-8065","千代田町325-1","059-366-3303","059-366-3302","社会福祉法人\nアパティア福祉会",16,11]
["47",{"$f":"VLOOKUP(I49,地区名一覧!B2:C33,2,FALSE)","v":"下　野"},"デイサービスにっこり山城","512-8048","山城町1014","059-337-2525","059-337-1118","株式会社山武館",17,2]
["48",{"$f":"VLOOKUP(I50,地区名一覧!B2:C33,2,FALSE)","v":"下　野"},"よっかいち諧朋苑\nデイサービス","512-8052","西大鐘町1580","059-338-3003","059-338-3008","社会福祉法人宏育会",17,5]
["49",{"$f":"VLOOKUP(I51,地区名一覧!B2:C33,2,FALSE)","v":"下　野"},"機能訓練特化型　菜の花","512-8055","あさけが丘二丁目\n1-42","059-327-7087","059-327-7086","株式会社菜の花",17,8]
["50",{"$f":"VLOOKUP(I52,地区名一覧!B2:C33,2,FALSE)","v":"大矢知"},"デイサービス\n下之宮ルピナス","510-8028","下之宮町71-1　1階","059-361-2022","059-361-2012","ゴールドエイジ株式会社",18,1]
["51",{"$f":"VLOOKUP(I53,地区名一覧!B2:C33,2,FALSE)","v":"大矢知"},"デイサービスセンター\nマザーアース","510-8028","下之宮町260-1","059-365-1165","059-363-6511","株式会社アラウンド",18,1]
["52",{"$f":"VLOOKUP(I54,地区名一覧!B2:C33,2,FALSE)","v":"大矢知"},"ツクイ四日市下之宮","510-8028","下之宮町292-1","059-361-1260","059-361-1261","株式会社ツクイ",18,1]
["53",{"$f":"VLOOKUP(I55,地区名一覧!B2:C33,2,FALSE)","v":"大矢知"},"ヴィラ四日市\n通所介護センター","510-8037","垂坂町8-2","059-363-2121","059-363-3737","社会福祉法人\n平成福祉会",18,5]
["54",{"$f":"VLOOKUP(I56,地区名一覧!B2:C33,2,FALSE)","v":"大矢知"},"ケアパートナー四日市","510-8034","大矢知町1061","059-361-0666","059-365-8688","ケアパートナー\n株式会社",18,7]
["55",{"$f":"VLOOKUP(I57,地区名一覧!B2:C33,2,FALSE)","v":"大矢知"},"デイサービス\nゴールドエイジ松寺","510-8021","松寺二丁目18-31","059-340-0300","059-340-0308","ゴールドエイジ株式会社",18,18]
["56",{"$f":"VLOOKUP(I58,地区名一覧!B2:C33,2,FALSE)","v":"大矢知"},"大矢知\n福祉サービスセンター","510-8031","川北三丁目1-11","059-361-0800","059-361-0700","日本ケアシステム\n株式会社",18,22]
["57",{"$f":"VLOOKUP(I59,地区名一覧!B2:C33,2,FALSE)","v":"河原田"},"南部陽光苑","510-0874","河原田町2146","059-347-7336","059-347-7338","社会福祉法人\n三重福祉会",19,4]
["58",{"$f":"VLOOKUP(I60,地区名一覧!B2:C33,2,FALSE)","v":"河原田"},"ＬＴＳ\n通所介護サービスセンター","510-0875","大治田二丁目\n18-19","059-373-6621","059-373-6681","株式会社\nライフ・テクノサービス",19,7]
["59",{"$f":"VLOOKUP(I61,地区名一覧!B2:C33,2,FALSE)","v":"水　沢"},"デイサービスセンター三美","512-1105","水沢町2503-5","059-329-8051","059-329-8052","株式会社三陽",20,2]
["60",{"$f":"VLOOKUP(I62,地区名一覧!B2:C33,2,FALSE)","v":"水　沢"},"デイサービスセンター\nしあわせ","512-1105","水沢町5131-3","059-329-3930","059-329-3931","有限会社しあわせ",20,2]
["61",{"$f":"VLOOKUP(I63,地区名一覧!B2:C33,2,FALSE)","v":"保　々"},"聖十字保々\n在宅介護サービスセンター","512-1304","中野町2492","059-339-7788","059-339-7211","社会福祉法人\n鈴鹿聖十字会",21,4]
["62",{"$f":"VLOOKUP(I64,地区名一覧!B2:C33,2,FALSE)","v":"海　蔵"},"ＹＭＣＡ\n在宅介護サービスセンター\n通所介護事業所","510-0803","阿倉川町14-16","059-333-7062","059-333-9830","社会福祉法人\n三重ワイエムシイエイ\n福祉会",22,1]
["63",{"$f":"VLOOKUP(I65,地区名一覧!B2:C33,2,FALSE)","v":"海　蔵"},"デイサービス\nおれんじ＋プラス","510-0815","野田二丁目1-10","059-327-6381","059-327-6382","一般社団法人友愛協会",22,9]
["64",{"$f":"VLOOKUP(I66,地区名一覧!B2:C33,2,FALSE)","v":"海　蔵"},"デイサービスセンター\nおれんじ","510-0812","西阿倉川825","059-330-6800","059-330-6801","株式会社\nライフケアシステムオレンジ",22,12]
["65",{"$f":"VLOOKUP(I67,地区名一覧!B2:C33,2,FALSE)","v":"海　蔵"},"デイサービス　ラウレ・ア","510-0805","東阿倉川641-1","059-331-3342","059-336-4000","ゴールドエイジ株式会社",22,13]
["66",{"$f":"VLOOKUP(I68,地区名一覧!B2:C33,2,FALSE)","v":"橋　北"},"デイサービスセンター\nサクラさくら","510-0031","浜一色町15-14-1","059-340-0002","059-340-0101","社会福祉法人\n桜コミュニティ",23,3]
["67",{"$f":"VLOOKUP(I69,地区名一覧!B2:C33,2,FALSE)","v":"橋　北"},"デイサービスセンター\n桜園三聖","510-0026","高浜町5-7","059-330-6665","059-330-6669","株式会社Loveulumelia",23,6]
["68",{"$f":"VLOOKUP(I70,地区名一覧!B2:C33,2,FALSE)","v":"橋　北"},"高浜楽々館\n通所介護事業所","510-0026","高浜町8-26","059-334-8587","059-334-8589","社会福祉法人\nすずらん福祉会",23,6]
["69",{"$f":"VLOOKUP(I71,地区名一覧!B2:C33,2,FALSE)","v":"楠"},"四日市市社会福祉協議会\n指定通所介護事業所\nゆりかもめ","510-0103","楠町北五味塚\n1450-1","059-398-2000","059-397-6861","社会福祉法人\n四日市市社会福祉協議会",24,3]

{"sheet":"通所リハビリテーション（みなし指定を含む）","index":6,"n_rows":46,"n_cols":10,"rows_kept":46,"cut":false,"hidden":false,"merged":[[0,0,0,7]]}
["通所リハビリテーション（みなし指定を含む）"]
["No","所在地","事業所名","事業所〒","事業所住所","事業所電話","事業所FAX","申請(開設)者名","地区CD","町CD"]
["1",{"$f":"VLOOKUP(I3,地区名一覧!B2:C33,2,FALSE)","v":"本　庁"},"介護老人保健施設ちゅうぶ","510-0082","中部8-15","059-355-5611","059-355-5615","医療法人里仁会",1,14]
["2",{"$f":"VLOOKUP(I4,地区名一覧!B2:C33,2,FALSE)","v":"富　田"},"富田浜病院\n指定通所リハビリテーション\n事業所","510-8008","富田浜町26-14","059-365-0023","059-365-5646","医療法人富田浜病院",3,6]
["3",{"$f":"VLOOKUP(I5,地区名一覧!B2:C33,2,FALSE)","v":"富　田"},"富田浜老人保健施設","510-8008","富田浜町26-14","059-365-0066","059-365-0412","医療法人富田浜病院",3,6]
["4",{"$f":"VLOOKUP(I6,地区名一覧!B2:C33,2,FALSE)","v":"羽　津"},"四日市羽津医療センター附属\n介護老人保健施設","510-0016","羽津山町10-8","059-334-3388","059-334-3377","独立行政法人\n地域医療機能推進機構",4,5]
["5",{"$f":"VLOOKUP(I7,地区名一覧!B2:C33,2,FALSE)","v":"常　磐"},"介護老人保健施設\nみえ川村老健","510-0824","城東町3-21","059-355-3838","059-355-3831","医療法人社団主体会",5,5]
["6",{"$f":"VLOOKUP(I8,地区名一覧!B2:C33,2,FALSE)","v":"常　磐"},"医療法人徳新会\n四日市徳新会病院","510-0821","久保田二丁目1-2","059-355-2980","059-355-2983","医療法人徳新会",5,19]
["7",{"$f":"VLOOKUP(I9,地区名一覧!B2:C33,2,FALSE)","v":"常　磐"},"医療法人社団主体会\n主体会病院","510-0823","城北町8-1","059-354-1771","059-354-0755","医療法人社団主体会",5,39]
["8",{"$f":"VLOOKUP(I10,地区名一覧!B2:C33,2,FALSE)","v":"日　永"},"みえロコモ\nリウマチクリニック","510-0885","日永一丁目7-19","059-346-2558","059-346-9703","医療法人未生会",6,1]
["9",{"$f":"VLOOKUP(I11,地区名一覧!B2:C33,2,FALSE)","v":"内　部"},"医療法人正和会\n正和クリニック","510-0952","小古曽町2717-1","059-349-0330","059-349-0990","医療法人正和会",8,13]
["10",{"$f":"VLOOKUP(I12,地区名一覧!B2:C33,2,FALSE)","v":"小山田"},"小山田老人保健施設","512-1111","山田町5501-1","059-328-2847","059-328-2905","社会福祉法人\n青山里会",10,1]
["11",{"$f":"VLOOKUP(I13,地区名一覧!B2:C33,2,FALSE)","v":"小山田"},"小山田記念温泉病院","512-1111","山田町5538-1","059-328-1260","059-328-3040","医療法人社団主体会",10,1]
["12",{"$f":"VLOOKUP(I14,地区名一覧!B2:C33,2,FALSE)","v":"三　重"},"みえ医療福祉生協\nいくわ診療所","512-0911","生桑町1455","059-337-8895","059-333-6765","みえ医療福祉\n生活協同組合",14,11]
["13",{"$f":"VLOOKUP(I15,地区名一覧!B2:C33,2,FALSE)","v":"三　重"},"みたき総合病院","512-0911","生桑町458-１","059-330-6000","059-330-6008","医療法人尚豊会",14,11]
["14",{"$f":"VLOOKUP(I16,地区名一覧!B2:C33,2,FALSE)","v":"三　重"},"四日市膝肩スポーツの整形外科クリニック","512-0911","生桑町584-4","059-333-0220","059-333-0220","医療法人KSOC",14,11]
["15",{"$f":"VLOOKUP(I17,地区名一覧!B2:C33,2,FALSE)","v":"三　重"},"医療法人山脇会\nとと内科診療所","512-0903","小杉新町70","059-332-8155","059-332-2944","医療法人山脇会",14,21]
["16",{"$f":"VLOOKUP(I18,地区名一覧!B2:C33,2,FALSE)","v":"下　野"},"通所リハビリテーション\nかがやき","512-8052","西大鐘町1610","059-336-3601","059-338-2230","社会福祉法人宏育会",17,5]
["17",{"$f":"VLOOKUP(I19,地区名一覧!B2:C33,2,FALSE)","v":"大矢知"},"医療法人加藤整形外科","510-8033","下さざらい町843","059-365-5252","059-365-7052","医療法人\n加藤整形外科",18,23]
[]
[]
[]
[]
[]
[]
[]
[]
[]
[]
[]
[]
[]
[]
[]
[]
[]
[]
[]
[]
[]
[]
[]
[]
[]
[58]
[59]

{"sheet":"短期入所生活介護","index":7,"n_rows":77,"n_cols":16377,"rows_kept":77,"cut":false,"hidden":false,"merged":[[43,0,43,7],[28,16344,28,16351],[28,16352,28,16359],[28,16360,28,16367],[28,16368,28,16375],[28,16376,28,16383],[28,16304,28,16311],[28,16312,28,16319],[28,16320,28,16327],[28,16328,28,16335],[28,16336,28,16343],[28,16264,28,16271],[28,16272,28,16279],[28,16280,28,16287],[28,16288,28,16295],[28,16296,28,16303],[28,16224,28,16231],[28,16232,28,16239],[28,16240,28,16247],[28,16248,28,16255],[28,16256,28,16263],[28,16184,28,16191],[28,16192,28,16199],[28,16200,28,16207],[28,16208,28,16215],[28,16216,28,16223],[28,16144,28,16151],[28,16152,28,16159],[28,16160,28,16167],[28,16168,28,16175],[28,16176,28,16183],[28,16104,28,16111],[28,16112,28,16119],[28,16120,28,16127],[28,16128,28,16135],[28,16136,28,16143],[28,16064,28,16071],[28,16072,28,16079],[28,16080,28,16087],[28,16088,28,16095],[28,16096,28,16103],[28,16024,28,16031],[28,16032,28,16039],[28,16040,28,16047],[28,16048,28,16055],[28,16056,28,16063],[28,15984,28,15991],[28,15992,28,15999],[28,16000,28,16007],[28,16008,28,16015],[28,16016,28,16023],[28,15944,28,15951],[28,15952,28,15959],[28,15960,28,15967],[28,15968,28,15975],[28,15976,28,15983],[28,15904,28,15911],[28,15912,28,15919],[28,15920,28,15927],[28,15928,28,15935],[28,15936,28,15943],[28,15864,28,15871],[28,15872,28,15879],[28,15880,28,15887],[28,15888,28,15895],[28,15896,28,15903],[28,15824,28,15831],[28,15832,28,15839],[28,15840,28,15847],[28,15848,28,15855],[28,15856,28,15863],[28,15784,28,15791],[28,15792,28,15799],[28,15800,28,15807],[28,15808,28,15815],[28,15816,28,15823],[28,15744,28,15751],[28,15752,28,15759],[28,15760,28,15767],[28,15768,28,15775],[28,15776,28,15783],[28,15704,28,15711],[28,15712,28,15719],[28,15720,28,15727],[28,15728,28,15735],[28,15736,28,15743],[28,15664,28,15671],[28,15672,28,15679],[28,15680,28,15687],[28,15688,28,15695],[28,15696,28,15703],[28,15624,28,15631],[28,15632,28,15639],[28,15640,28,15647],[28,15648,28,15655],[28,15656,28,15663],[28,15584,28,15591],[28,15592,28,15599],[28,15600,28,15607],[28,15608,28,15615],[28,15616,28,15623],[28,15544,28,15551],[28,15552,28,15559],[28,15560,28,15567],[28,15568,28,15575],[28,15576,28,15583],[28,15504,28,15511],[28,15512,28,15519],[28,15520,28,15527],[28,15528,28,15535],[28,15536,28,15543],[28,15464,28,15471],[28,15472,28,15479],[28,15480,28,15487],[28,15488,28,15495],[28,15496,28,15503],[28,15424,28,15431],[28,15432,28,15439],[28,15440,28,15447],[28,15448,28,15455],[28,15456,28,15463],[28,15384,28,15391],[28,15392,28,15399],[28,15400,28,15407],[28,15408,28,15415],[28,15416,28,15423],[28,15344,28,15351],[28,15352,28,15359],[28,15360,28,15367],[28,15368,28,15375],[28,15376,28,15383],[28,15304,28,15311],[28,15312,28,15319],[28,15320,28,15327],[28,15328,28,15335],[28,15336,28,15343],[28,15264,28,15271],[28,15272,28,15279],[28,15280,28,15287],[28,15288,28,15295],[28,15296,28,15303],[28,15224,28,15231],[28,15232,28,15239],[28,15240,28,15247],[28,15248,28,15255],[28,15256,28,15263],[28,15184,28,15191],[28,15192,28,15199],[28,15200,28,15207],[28,15208,28,15215],[28,15216,28,15223],[28,15144,28,15151],[28,15152,28,15159],[28,15160,28,15167],[28,15168,28,15175],[28,15176,28,15183],[28,15104,28,15111],[28,15112,28,15119],[28,15120,28,15127],[28,15128,28,15135],[28,15136,28,15143],[28,15064,28,15071],[28,15072,28,15079],[28,15080,28,15087],[28,15088,28,15095],[28,15096,28,15103],[28,15024,28,15031],[28,15032,28,15039],[28,15040,28,15047],[28,15048,28,15055],[28,15056,28,15063],[28,14984,28,14991],[28,14992,28,14999],[28,15000,28,15007],[28,15008,28,15015],[28,15016,28,15023],[28,14944,28,14951],[28,14952,28,14959],[28,14960,28,14967],[28,14968,28,14975],[28,14976,28,14983],[28,14904,28,14911],[28,14912,28,14919],[28,14920,28,14927],[28,14928,28,14935],[28,14936,28,14943],[28,14864,28,14871],[28,14872,28,14879],[28,14880,28,14887],[28,14888,28,14895],[28,14896,28,14903],[28,14824,28,14831],[28,14832,28,14839],[28,14840,28,14847],[28,14848,28,14855],[28,14856,28,14863],[28,14784,28,14791],[28,14792,28,14799],[28,14800,28,14807],[28,14808,28,14815],[28,14816,28,14823],[28,14744,28,14751],[28,14752,28,14759],[28,14760,28,14767],[28,14768,28,14775],[28,14776,28,14783],[28,14704,28,14711],[28,14712,28,14719],[28,14720,28,14727],[28,14728,28,14735],[28,14736,28,14743],[28,14664,28,14671],[28,14672,28,14679],[28,14680,28,14687],[28,14688,28,14695],[28,14696,28,14703],[28,14624,28,14631],[28,14632,28,14639],[28,14640,28,14647],[28,14648,28,14655],[28,14656,28,14663],[28,14584,28,14591],[28,14592,28,14599],[28,14600,28,14607],[28,14608,28,14615],[28,14616,28,14623],[28,14544,28,14551],[28,14552,28,14559],[28,14560,28,14567],[28,14568,28,14575],[28,14576,28,14583],[28,14504,28,14511],[28,14512,28,14519],[28,14520,28,14527],[28,14528,28,14535],[28,14536,28,14543],[28,14464,28,14471],[28,14472,28,14479],[28,14480,28,14487],[28,14488,28,14495],[28,14496,28,14503],[28,14424,28,14431],[28,14432,28,14439],[28,14440,28,14447],[28,14448,28,14455],[28,14456,28,14463],[28,14384,28,14391],[28,14392,28,14399],[28,14400,28,14407],[28,14408,28,14415],[28,14416,28,14423],[28,14344,28,14351],[28,14352,28,14359],[28,14360,28,14367],[28,14368,28,14375],[28,14376,28,14383],[28,14304,28,14311],[28,14312,28,14319],[28,14320,28,14327],[28,14328,28,14335],[28,14336,28,14343],[28,14264,28,14271],[28,14272,28,14279],[28,14280,28,14287],[28,14288,28,14295],[28,14296,28,14303],[28,14224,28,14231],[28,14232,28,14239],[28,14240,28,14247],[28,14248,28,14255],[28,14256,28,14263],[28,14184,28,14191],[28,14192,28,14199],[28,14200,28,14207],[28,14208,28,14215],[28,14216,28,14223],[28,14144,28,14151],[28,14152,28,14159],[28,14160,28,14167],[28,14168,28,14175],[28,14176,28,14183],[28,14104,28,14111],[28,14112,28,14119],[28,14120,28,14127],[28,14128,28,14135],[28,14136,28,14143],[28,14064,28,14071],[28,14072,28,14079],[28,14080,28,14087],[28,14088,28,14095],[28,14096,28,14103],[28,14024,28,14031],[28,14032,28,14039],[28,14040,28,14047],[28,14048,28,14055],[28,14056,28,14063],[28,13984,28,13991],[28,13992,28,13999],[28,14000,28,14007],[28,14008,28,14015],[28,14016,28,14023],[28,13944,28,13951],[28,13952,28,13959],[28,13960,28,13967],[28,13968,28,13975],[28,13976,28,13983],[28,13904,28,13911],[28,13912,28,13919],[28,13920,28,13927],[28,13928,28,13935],[28,13936,28,13943],[28,13864,28,13871],[28,13872,28,13879],[28,13880,28,13887],[28,13888,28,13895],[28,13896,28,13903],[28,13824,28,13831],[28,13832,28,13839],[28,13840,28,13847],[28,13848,28,13855],[28,13856,28,13863],[28,13784,28,13791],[28,13792,28,13799],[28,13800,28,13807],[28,13808,28,13815],[28,13816,28,13823],[28,13744,28,13751],[28,13752,28,13759],[28,13760,28,13767],[28,13768,28,13775],[28,13776,28,13783],[28,13704,28,13711],[28,13712,28,13719],[28,13720,28,13727],[28,13728,28,13735],[28,13736,28,13743],[28,13664,28,13671],[28,13672,28,13679],[28,13680,28,13687],[28,13688,28,13695],[28,13696,28,13703],[28,13624,28,13631],[28,13632,28,13639],[28,13640,28,13647],[28,13648,28,13655],[28,13656,28,13663],[28,13584,28,13591],[28,13592,28,13599],[28,13600,28,13607],[28,13608,28,13615],[28,13616,28,13623],[28,13544,28,13551],[28,13552,28,13559],[28,13560,28,13567],[28,13568,28,13575],[28,13576,28,13583],[28,13504,28,13511],[28,13512,28,13519],[28,13520,28,13527],[28,13528,28,13535],[28,13536,28,13543],[28,13464,28,13471],[28,13472,28,13479],[28,13480,28,13487],[28,13488,28,13495],[28,13496,28,13503],[28,13424,28,13431],[28,13432,28,13439],[28,13440,28,13447],[28,13448,28,13455],[28,13456,28,13463],[28,13384,28,13391],[28,13392,28,13399],[28,13400,28,13407],[28,13408,28,13415],[28,13416,28,13423],[28,13344,28,13351],[28,13352,28,13359],[28,13360,28,13367],[28,13368,28,13375],[28,13376,28,13383],[28,13304,28,13311],[28,13312,28,13319],[28,13320,28,13327],[28,13328,28,13335],[28,13336,28,13343],[28,13264,28,13271],[28,13272,28,13279],[28,13280,28,13287],[28,13288,28,13295],[28,13296,28,13303],[28,13224,28,13231],[28,13232,28,13239],[28,13240,28,13247],[28,13248,28,13255],[28,13256,28,13263],[28,13184,28,13191],[28,13192,28,13199],[28,13200,28,13207],[28,13208,28,13215],[28,13216,28,13223],[28,13144,28,13151],[28,13152,28,13159],[28,13160,28,13167],[28,13168,28,13175],[28,13176,28,13183],[28,13104,28,13111],[28,13112,28,13119],[28,13120,28,13127],[28,13128,28,13135],[28,13136,28,13143],[28,13064,28,13071],[28,13072,28,13079],[28,13080,28,13087],[28,13088,28,13095],[28,13096,28,13103],[28,13024,28,13031],[28,13032,28,13039],[28,13040,28,13047],[28,13048,28,13055],[28,13056,28,13063],[28,12984,28,12991],[28,12992,28,12999],[28,13000,28,13007],[28,13008,28,13015],[28,13016,28,13023],[28,12944,28,12951],[28,12952,28,12959],[28,12960,28,12967],[28,12968,28,12975],[28,12976,28,12983],[28,12904,28,12911],[28,12912,28,12919],[28,12920,28,12927],[28,12928,28,12935],[28,12936,28,12943],[28,12864,28,12871],[28,12872,28,12879],[28,12880,28,12887],[28,12888,28,12895],[28,12896,28,12903],[28,12824,28,12831],[28,12832,28,12839],[28,12840,28,12847],[28,12848,28,12855],[28,12856,28,12863],[28,12784,28,12791],[28,12792,28,12799],[28,12800,28,12807],[28,12808,28,12815],[28,12816,28,12823],[28,12744,28,12751],[28,12752,28,12759],[28,12760,28,12767],[28,12768,28,12775],[28,12776,28,12783],[28,12704,28,12711],[28,12712,28,12719],[28,12720,28,12727],[28,12728,28,12735],[28,12736,28,12743],[28,12664,28,12671],[28,12672,28,12679],[28,12680,28,12687],[28,12688,28,12695],[28,12696,28,12703],[28,12624,28,12631],[28,12632,28,12639],[28,12640,28,12647],[28,12648,28,12655],[28,12656,28,12663],[28,12584,28,12591],[28,12592,28,12599],[28,12600,28,12607],[28,12608,28,12615],[28,12616,28,12623],[28,12544,28,12551],[28,12552,28,12559],[28,12560,28,12567],[28,12568,28,12575],[28,12576,28,12583],[28,12504,28,12511],[28,12512,28,12519],[28,12520,28,12527],[28,12528,28,12535],[28,12536,28,12543],[28,12464,28,12471],[28,12472,28,12479],[28,12480,28,12487],[28,12488,28,12495],[28,12496,28,12503],[28,12424,28,12431],[28,12432,28,12439],[28,12440,28,12447],[28,12448,28,12455],[28,12456,28,12463],[28,12384,28,12391],[28,12392,28,12399],[28,12400,28,12407],[28,12408,28,12415],[28,12416,28,12423],[28,12344,28,12351],[28,12352,28,12359],[28,12360,28,12367],[28,12368,28,12375],[28,12376,28,12383],[28,12304,28,12311],[28,12312,28,12319],[28,12320,28,12327],[28,12328,28,12335],[28,12336,28,12343],[28,12264,28,12271],[28,12272,28,12279],[28,12280,28,12287],[28,12288,28,12295],[28,12296,28,12303],[28,12224,28,12231],[28,12232,28,12239],[28,12240,28,12247],[28,12248,28,12255],[28,12256,28,12263],[28,12184,28,12191],[28,12192,28,12199],[28,12200,28,12207],[28,12208,28,12215],[28,12216,28,12223],[28,12144,28,12151],[28,12152,28,12159],[28,12160,28,12167],[28,12168,28,12175],[28,12176,28,12183],[28,12104,28,12111],[28,12112,28,12119],[28,12120,28,12127],[28,12128,28,12135],[28,12136,28,12143],[28,12064,28,12071],[28,12072,28,12079],[28,12080,28,12087],[28,12088,28,12095],[28,12096,28,12103],[28,12024,28,12031],[28,12032,28,12039],[28,12040,28,12047],[28,12048,28,12055],[28,12056,28,12063],[28,11984,28,11991],[28,11992,28,11999],[28,12000,28,12007],[28,12008,28,12015],[28,12016,28,12023],[28,11944,28,11951],[28,11952,28,11959],[28,11960,28,11967],[28,11968,28,11975],[28,11976,28,11983],[28,11904,28,11911],[28,11912,28,11919],[28,11920,28,11927],[28,11928,28,11935],[28,11936,28,11943],[28,11864,28,11871],[28,11872,28,11879],[28,11880,28,11887],[28,11888,28,11895],[28,11896,28,11903],[28,11824,28,11831],[28,11832,28,11839],[28,11840,28,11847],[28,11848,28,11855],[28,11856,28,11863],[28,11784,28,11791],[28,11792,28,11799],[28,11800,28,11807],[28,11808,28,11815],[28,11816,28,11823],[28,11744,28,11751],[28,11752,28,11759],[28,11760,28,11767],[28,11768,28,11775],[28,11776,28,11783],[28,11704,28,11711],[28,11712,28,11719],[28,11720,28,11727],[28,11728,28,11735],[28,11736,28,11743],[28,11664,28,11671],[28,11672,28,11679],[28,11680,28,11687],[28,11688,28,11695],[28,11696,28,11703],[28,11624,28,11631],[28,11632,28,11639],[28,11640,28,11647],[28,11648,28,11655],[28,11656,28,11663],[28,11584,28,11591],[28,11592,28,11599],[28,11600,28,11607],[28,11608,28,11615],[28,11616,28,11623],[28,11544,28,11551],[28,11552,28,11559],[28,11560,28,11567],[28,11568,28,11575],[28,11576,28,11583],[28,11504,28,11511],[28,11512,28,11519],[28,11520,28,11527],[28,11528,28,11535],[28,11536,28,11543],[28,11464,28,11471],[28,11472,28,11479],[28,11480,28,11487],[28,11488,28,11495],[28,11496,28,11503],[28,11424,28,11431],[28,11432,28,11439],[28,11440,28,11447],[28,11448,28,11455],[28,11456,28,11463],[28,11384,28,11391],[28,11392,28,11399],[28,11400,28,11407],[28,11408,28,11415],[28,11416,28,11423],[28,11344,28,11351],[28,11352,28,11359],[28,11360,28,11367],[28,11368,28,11375],[28,11376,28,11383],[28,11304,28,11311],[28,11312,28,11319],[28,11320,28,11327],[28,11328,28,11335],[28,11336,28,11343],[28,11264,28,11271],[28,11272,28,11279],[28,11280,28,11287],[28,11288,28,11295],[28,11296,28,11303],[28,11224,28,11231],[28,11232,28,11239],[28,11240,28,11247],[28,11248,28,11255],[28,11256,28,11263],[28,11184,28,11191],[28,11192,28,11199],[28,11200,28,11207],[28,11208,28,11215],[28,11216,28,11223],[28,11144,28,11151],[28,11152,28,11159],[28,11160,28,11167],[28,11168,28,11175],[28,11176,28,11183],[28,11104,28,11111],[28,11112,28,11119],[28,11120,28,11127],[28,11128,28,11135],[28,11136,28,11143],[28,11064,28,11071],[28,11072,28,11079],[28,11080,28,11087],[28,11088,28,11095],[28,11096,28,11103],[28,11024,28,11031],[28,11032,28,11039],[28,11040,28,11047],[28,11048,28,11055],[28,11056,28,11063],[28,10984,28,10991],[28,10992,28,10999],[28,11000,28,11007],[28,11008,28,11015],[28,11016,28,11023],[28,10944,28,10951],[28,10952,28,10959],[28,10960,28,10967],[28,10968,28,10975],[28,10976,28,10983],[28,10904,28,10911],[28,10912,28,10919],[28,10920,28,10927],[28,10928,28,10935],[28,10936,28,10943],[28,10864,28,10871],[28,10872,28,10879],[28,10880,28,10887],[28,10888,28,10895],[28,10896,28,10903],[28,10824,28,10831],[28,10832,28,10839],[28,10840,28,10847],[28,10848,28,10855],[28,10856,28,10863],[28,10784,28,10791],[28,10792,28,10799],[28,10800,28,10807],[28,10808,28,10815],[28,10816,28,10823],[28,10744,28,10751],[28,10752,28,10759],[28,10760,28,10767],[28,10768,28,10775],[28,10776,28,10783],[28,10704,28,10711],[28,10712,28,10719],[28,10720,28,10727],[28,10728,28,10735],[28,10736,28,10743],[28,10664,28,10671],[28,10672,28,10679],[28,10680,28,10687],[28,10688,28,10695],[28,10696,28,10703],[28,10624,28,10631],[28,10632,28,10639],[28,10640,28,10647],[28,10648,28,10655],[28,10656,28,10663],[28,10584,28,10591],[28,10592,28,10599],[28,10600,28,10607],[28,10608,28,10615],[28,10616,28,10623],[28,10544,28,10551],[28,10552,28,10559],[28,10560,28,10567],[28,10568,28,10575],[28,10576,28,10583],[28,10504,28,10511],[28,10512,28,10519],[28,10520,28,10527],[28,10528,28,10535],[28,10536,28,10543],[28,10464,28,10471],[28,10472,28,10479],[28,10480,28,10487],[28,10488,28,10495],[28,10496,28,10503],[28,10424,28,10431],[28,10432,28,10439],[28,10440,28,10447],[28,10448,28,10455],[28,10456,28,10463],[28,10384,28,10391],[28,10392,28,10399],[28,10400,28,10407],[28,10408,28,10415],[28,10416,28,10423],[28,10344,28,10351],[28,10352,28,10359],[28,10360,28,10367],[28,10368,28,10375],[28,10376,28,10383],[28,10304,28,10311],[28,10312,28,10319],[28,10320,28,10327],[28,10328,28,10335],[28,10336,28,10343],[28,10264,28,10271],[28,10272,28,10279],[28,10280,28,10287],[28,10288,28,10295],[28,10296,28,10303],[28,10224,28,10231],[28,10232,28,10239],[28,10240,28,10247],[28,10248,28,10255],[28,10256,28,10263],[28,10184,28,10191],[28,10192,28,10199],[28,10200,28,10207],[28,10208,28,10215],[28,10216,28,10223],[28,10144,28,10151],[28,10152,28,10159],[28,10160,28,10167],[28,10168,28,10175],[28,10176,28,10183],[28,10104,28,10111],[28,10112,28,10119],[28,10120,28,10127],[28,10128,28,10135],[28,10136,28,10143],[28,10064,28,10071],[28,10072,28,10079],[28,10080,28,10087],[28,10088,28,10095],[28,10096,28,10103],[28,10024,28,10031],[28,10032,28,10039],[28,10040,28,10047],[28,10048,28,10055],[28,10056,28,10063],[28,9984,28,9991],[28,9992,28,9999],[28,10000,28,10007],[28,10008,28,10015],[28,10016,28,10023],[28,9944,28,9951],[28,9952,28,9959],[28,9960,28,9967],[28,9968,28,9975],[28,9976,28,9983],[28,9904,28,9911],[28,9912,28,9919],[28,9920,28,9927],[28,9928,28,9935],[28,9936,28,9943],[28,9864,28,9871],[28,9872,28,9879],[28,9880,28,9887],[28,9888,28,9895],[28,9896,28,9903],[28,9824,28,9831],[28,9832,28,9839],[28,9840,28,9847],[28,9848,28,9855],[28,9856,28,9863],[28,9784,28,9791],[28,9792,28,9799],[28,9800,28,9807],[28,9808,28,9815],[28,9816,28,9823],[28,9744,28,9751],[28,9752,28,9759],[28,9760,28,9767],[28,9768,28,9775],[28,9776,28,9783],[28,9704,28,9711],[28,9712,28,9719],[28,9720,28,9727],[28,9728,28,9735],[28,9736,28,9743],[28,9664,28,9671],[28,9672,28,9679],[28,9680,28,9687],[28,9688,28,9695],[28,9696,28,9703],[28,9624,28,9631],[28,9632,28,9639],[28,9640,28,9647],[28,9648,28,9655],[28,9656,28,9663],[28,9584,28,9591],[28,9592,28,9599],[28,9600,28,9607],[28,9608,28,9615],[28,9616,28,9623],[28,9544,28,9551],[28,9552,28,9559],[28,9560,28,9567],[28,9568,28,9575],[28,9576,28,9583],[28,9504,28,9511],[28,9512,28,9519],[28,9520,28,9527],[28,9528,28,9535],[28,9536,28,9543],[28,9464,28,9471],[28,9472,28,9479],[28,9480,28,9487],[28,9488,28,9495],[28,9496,28,9503],[28,9424,28,9431],[28,9432,28,9439],[28,9440,28,9447],[28,9448,28,9455],[28,9456,28,9463],[28,9384,28,9391],[28,9392,28,9399],[28,9400,28,9407],[28,9408,28,9415],[28,9416,28,9423],[28,9344,28,9351],[28,9352,28,9359],[28,9360,28,9367],[28,9368,28,9375],[28,9376,28,9383],[28,9304,28,9311],[28,9312,28,9319],[28,9320,28,9327],[28,9328,28,9335],[28,9336,28,9343],[28,9264,28,9271],[28,9272,28,9279],[28,9280,28,9287],[28,9288,28,9295],[28,9296,28,9303],[28,9224,28,9231],[28,9232,28,9239],[28,9240,28,9247],[28,9248,28,9255],[28,9256,28,9263],[28,9184,28,9191],[28,9192,28,9199],[28,9200,28,9207],[28,9208,28,9215],[28,9216,28,9223],[28,9144,28,9151],[28,9152,28,9159],[28,9160,28,9167],[28,9168,28,9175],[28,9176,28,9183],[28,9104,28,9111],[28,9112,28,9119],[28,9120,28,9127],[28,9128,28,9135],[28,9136,28,9143],[28,9064,28,9071],[28,9072,28,9079],[28,9080,28,9087],[28,9088,28,9095],[28,9096,28,9103],[28,9024,28,9031],[28,9032,28,9039],[28,9040,28,9047],[28,9048,28,9055],[28,9056,28,9063],[28,8984,28,8991],[28,8992,28,8999],[28,9000,28,9007],[28,9008,28,9015],[28,9016,28,9023],[28,8944,28,8951],[28,8952,28,8959],[28,8960,28,8967],[28,8968,28,8975],[28,8976,28,8983],[28,8904,28,8911],[28,8912,28,8919],[28,8920,28,8927],[28,8928,28,8935],[28,8936,28,8943],[28,8864,28,8871],[28,8872,28,8879],[28,8880,28,8887],[28,8888,28,8895],[28,8896,28,8903],[28,8824,28,8831],[28,8832,28,8839],[28,8840,28,8847],[28,8848,28,8855],[28,8856,28,8863],[28,8784,28,8791],[28,8792,28,8799],[28,8800,28,8807],[28,8808,28,8815],[28,8816,28,8823],[28,8744,28,8751],[28,8752,28,8759],[28,8760,28,8767],[28,8768,28,8775],[28,8776,28,8783],[28,8704,28,8711],[28,8712,28,8719],[28,8720,28,8727],[28,8728,28,8735],[28,8736,28,8743],[28,8664,28,8671],[28,8672,28,8679],[28,8680,28,8687],[28,8688,28,8695],[28,8696,28,8703],[28,8624,28,8631],[28,8632,28,8639],[28,8640,28,8647],[28,8648,28,8655],[28,8656,28,8663],[28,8584,28,8591],[28,8592,28,8599],[28,8600,28,8607],[28,8608,28,8615],[28,8616,28,8623],[28,8544,28,8551],[28,8552,28,8559],[28,8560,28,8567],[28,8568,28,8575],[28,8576,28,8583],[28,8504,28,8511],[28,8512,28,8519],[28,8520,28,8527],[28,8528,28,8535],[28,8536,28,8543],[28,8464,28,8471],[28,8472,28,8479],[28,8480,28,8487],[28,8488,28,8495],[28,8496,28,8503],[28,8424,28,8431],[28,8432,28,8439],[28,8440,28,8447],[28,8448,28,8455],[28,8456,28,8463],[28,8384,28,8391],[28,8392,28,8399],[28,8400,28,8407],[28,8408,28,8415]],"merged_total":2051,"flags":["merged_cut"]}
["短期入所生活介護"]
["No","所在地","事業所名","事業所〒","事業所住所","事業所電話","事業所FAX","申請(開設)者名","地区CD","町名CD"]
[1,{"$f":"VLOOKUP(I3,地区名一覧!B2:C33,2,FALSE)","v":"本　庁"},"特別養護老人ホーム\nサテライトみなと","510-0042","高砂町6-5","059-329-5210","059-329-5212","社会福祉法人風薫会",1,46]
[2,{"$f":"VLOOKUP(I4,地区名一覧!B3:C34,2,FALSE)","v":"富　田"},"富田浜特別養護老人ホーム　浜風","510-8008","富田浜町25-10","059-365-1665","059-365-1675","社会福祉法人\n富田浜福祉会",3,6]
[3,{"$f":"VLOOKUP(I5,地区名一覧!B2:C33,2,FALSE)","v":"羽　津"},"短期入所生活介護事業所\nかすみの里","510-0018","白須賀一丁目\n12-8","059-334-1171","059-334-1172","社会福祉法人永甲会",4,8]
[4,{"$f":"VLOOKUP(I6,地区名一覧!B2:C33,2,FALSE)","v":"常　磐"},"四日市ショートステイ\nそよ風","510-0829","城西町12-16","059-359-5221","059-359-5222","株式会社SOYOKAZE",5,6]
[5,{"$f":"VLOOKUP(I7,地区名一覧!B2:C33,2,FALSE)","v":"常　磐"},"介護総合センターかんざき\nサテライト常磐","510-0829","城西町13-45","059-353-7750","059-353-7766","社会福祉法人\n青山里会",5,6]
[6,{"$f":"VLOOKUP(I8,地区名一覧!B2:C33,2,FALSE)","v":"常　磐"},"医療法人徳新会\n四日市徳新会\n短期入所生活介護事業所","510-0821","久保田二丁目1-2","059-355-2980","059-355-2983","医療法人徳新会",5,19]
[7,{"$f":"VLOOKUP(I9,地区名一覧!B2:C33,2,FALSE)","v":"常　磐"},"パナソニック　エイジフリー\nケアセンター四日市芝田・\nショートステイ","510-0822","芝田一丁目10-11","059-359-2520","059-359-2235","パナソニック\nエイジフリー株式会社",5,12]
[8,{"$f":"VLOOKUP(I10,地区名一覧!B2:C33,2,FALSE)","v":"日　永"},"特別養護老人ホーム\n日永英水苑","510-0885","日永5530-23","059-340-3668","059-340-3667","社会福祉法人英水会",6,21]
[9,{"$f":"VLOOKUP(I11,地区名一覧!B2:C33,2,FALSE)","v":"四　郷"},"ショートステイ四郷の里","510-0946","小林町3026-16","059-323-0007","059-323-0033","株式会社みどりの風",7,1]
[10,{"$f":"VLOOKUP(I12,地区名一覧!B2:C33,2,FALSE)","v":"四　郷"},"小山田特別養護老人ホーム\nサテライト四郷","510-0943","西日野町4008","059-322-3101","059-322-3104","社会福祉法人\n青山里会",7,9]
[11,{"$f":"VLOOKUP(I13,地区名一覧!B2:C33,2,FALSE)","v":"内　部"},"指定短期入所生活介護事業所\nうねめの里","510-0954","釆女町418-1","059-348-7760","059-348-7761","社会福祉法人永甲会",8,7]
[12,{"$f":"VLOOKUP(I14,地区名一覧!B2:C33,2,FALSE)","v":"塩　浜"},"特別養護老人ホーム\nアリビオ","510-0863","塩浜149-1","059-325-7762","059-325-7763","社会福祉法人風薫会",9,26]
[13,{"$f":"VLOOKUP(I15,地区名一覧!B2:C33,2,FALSE)","v":"塩　浜"},"特別養護老人ホーム\n風の路","510-0863","塩浜栄町471","059-349-6383","059-349-6384","社会福祉法人風薫会",9,26]
[14,{"$f":"VLOOKUP(I16,地区名一覧!B2:C33,2,FALSE)","v":"小山田"},"小山田\n特別養護老人ホーム","512-1111","山田町5500-1","059-358-0255","059-358-0288","社会福祉法人\n青山里会",10,1]
[15,{"$f":"VLOOKUP(I17,地区名一覧!B2:C33,2,FALSE)","v":"小山田"},"第二小山田\n特別養護老人ホーム","512-1111","山田町5513","059-328-2276","059-328-2905","社会福祉法人\n青山里会",10,1]
[16,{"$f":"VLOOKUP(I18,地区名一覧!B2:C33,2,FALSE)","v":"川　島"},"介護総合センターかんざき\nサテライト川島","512-0934","川島町4037","059-320-3113","059-320-3112","社会福祉法人\n青山里会",11,1]
[17,{"$f":"VLOOKUP(I19,地区名一覧!B2:C33,2,FALSE)","v":"神　前"},"介護総合センターかんざき","512-0924","寺方町986-4","059-327-2177","059-327-2228","社会福祉法人\n青山里会",12,2]
[18,{"$f":"VLOOKUP(I20,地区名一覧!B2:C33,2,FALSE)","v":"桜"},"特別養護老人ホーム\n英水苑","512-1212","智積町34-1","059-326-7511","059-326-7557","社会福祉法人英水会",13,1]
[19,{"$f":"VLOOKUP(I21,地区名一覧!B2:C33,2,FALSE)","v":"三　重"},"陽光苑","512-0913","西坂部町1127","059-331-5183","059-331-5184","社会福祉法人\n三重福祉会",14,10]
[20,{"$f":"VLOOKUP(I22,地区名一覧!B2:C33,2,FALSE)","v":"県"},"くぬぎの木\nショートステイせせらぎ","512-1204","赤水町1245-7","059-327-2826","059-327-1177","社会福祉法人\nあがた福祉の会",15,1]
[21,{"$f":"VLOOKUP(I23,地区名一覧!B2:C33,2,FALSE)","v":"下　野"},"よっかいち諧朋苑\nショートステイ","512-8052","西大鐘町1580","059-338-3000","059-338-3008","社会福祉法人宏育会",17,5]
[22,{"$f":"VLOOKUP(I24,地区名一覧!B2:C33,2,FALSE)","v":"大矢知"},"ヴィラ四日市\n短期入所生活介護","510-8037","垂坂町8-2","059-363-2121","059-363-3737","社会福祉法人\n平成福祉会",18,5]
[23,{"$f":"VLOOKUP(I25,地区名一覧!B2:C33,2,FALSE)","v":"河原田"},"南部陽光苑","510-0874","河原田町2146","059-347-7337","059-347-7338","社会福祉法人\n三重福祉会　",19,4]
[24,{"$f":"VLOOKUP(I26,地区名一覧!B3:C34,2,FALSE)","v":"水　沢"},"ショートステイ　和らぎ水沢","512-1105","水沢町2378番地1","059-329-8011","059-329-8022","社会福祉法人\n双和福祉会",20,2]
[25,{"$f":"VLOOKUP(I27,地区名一覧!B2:C33,2,FALSE)","v":"保　々"},"聖十字四日市\n老人福祉施設","512-1304","中野町2494-1","059-339-2000","059-339-0077","社会福祉法人\n鈴鹿聖十字会",21,4]
[26,{"$f":"VLOOKUP(I28,地区名一覧!B2:C33,2,FALSE)","v":"橋　北"},"特別養護老人ホーム\nさくらスマイル　ショートステイ","510-0031","浜一色町15-14-1","059-340-0001","059-340-0101","社会福祉法人\n桜コミュニティ",23,3]
["短期入所生活介護",null,null,null,null,null,null,null,null,null,null,null,null,null,null,null,"短期入所生活介護",null,null,null,null,null,null,null,"短期入所生活介護",null,null,null,null,null,null,null,"短期入所生活介護",null,null,null,null,null,null,null,"短期入所生活介護",null,null,null,null,null,null,null,"短期入所生活介護",null,null,null,null,null,null,null,"短期入所生活介護",null,null,null,null,null,null,null,"短期入所生活介護",null,null,null,null,null,null,null,"短期入所生活介護",null,null,null,null,null,null,null,"短期入所生活介護",null,null,null,null,null,null,null,"短期入所生活介護",null,null,null,null,null,null,null,"短期入所生活介護",null,null,null,null,null,null,null,"短期入所生活介護",null,null,null,null,null,null,null,"短期入所生活介護",null,null,null,null,null,null,null,"短期入所生活介護",null,null,null,null,null,null,null,"短期入所生活介護",null,null,null,null,null,null,null,"短期入所生活介護",null,null,null,null,null,null,null,"短期入所生活介護",null,null,null,null,null,null,null,"短期入所生活介護",null,null,null,null,null,null,null,"短期入所生活介護",null,null,null,null,null,null,null,"短期入所生活介護",null,null,null,null,null,null,null,"短期入所生活介護",null,null,null,null,null,null,null,"短期入所生活介護",null,null,null,null,null,null,null,"短期入所生活介護",null,null,null,null,null,null,null,"短期入所生活介護",null,null,null,null,null,null,null,"短期入所生活介護",null,null,null,null,null,null,null,"短期入所生活介護",null,null,null,null,null,null,null,"短期入所生活介護",null,null,null,null,null,null,null,"短期入所生活介護",null,null,null,null,null,null,null,"短期入所生活介護",null,null,null,null,null,null,null,"短期入所生活介護",null,null,null,null,null,null,null,"短期入所生活介護",null,null,null,null,null,null,null,"短期入所生活介護",null,null,null,null,null,null,null,"短期入所生活介護",null,null,null,null,null,null,null,"短期入所生活介護",null,null,null,null,null,null,null,"短期入所生活介護",null,null,null,null,null,null,null,"短期入所生活介護",null,null,null,null,null,null,null,"短期入所生活介護",null,null,null,null,null,null,null,"短期入所生活介護",null,null,null,null,null,null,null,"短期入所生活介護",null,null,null,null,null,null,null,"短期入所生活介護",null,null,null,null,null,null,null,"短期入所生活介護",null,null,null,null,null,null,null,"短期入所生活介護",null,null,null,null,null,null,null,"短期入所生活介護",null,null,null,null,null,null,null,"短期入所生活介護",null,null,null,null,null,null,null,"短期入所生活介護",null,null,null,null,null,null,null,"短期入所生活介護",null,null,null,null,null,null,null,"短期入所生活介護",null,null,null,null,null,null,null,"短期入所生活介護",null,null,null,null,null,null,null,"短期入所生活介護",null,null,null,null,null,null,null,"短期入所生活介護",null,null,null,null,null,null,null,"短期入所生活介護",null,null,null,null,null,null,null,"短期入所生活介護",null,null,null,null,null,null,null,"短期入所生活介護",null,null,null,null,null,null,null,"短期入所生活介護",null,null,null,null,null,null,null,"短期入所生活介護",null,null,null,null,null,null,null,"短期入所生活介護",null,null,null,null,null,null,null,"短期入所生活介護",null,null,null,null,null,null,null,"短期入所生活介護",null,null,null,null,null,null,null,"短期入所生活介護",null,null,null,null,null,null,null,"短期入所生活介護",null,null,null,null,null,null,null,"短期入所生活介護",null,null,null,null,null,null,null,"短期入所生活介護",null,null,null,null,null,null,null,"短期入所生活介護",null,null,null,null,null,null,null,"短期入所生活介護",null,null,null,null,null,null,null,"短期入所生活介護",null,null,null,null,null,null,null,"短期入所生活介護",null,null,null,null,null,null,null,"短期入所生活介護",null,null,null,null,null,null,null,"短期入所生活介護",null,null,null,null,null,null,null,"短期入所生活介護",null,null,null,null,null,null,null,"短期入所生活介護",null,null,null,null,null,null,null,"短期入所生活介護",null,null,null,null,null,null,null,"短期入所生活介護",null,null,null,null,null,null,null,"短期入所生活介護",null,null,null,null,null,null,null,"短期入所生活介護",null,null,null,null,null,null,null,"短期入所生活介護",null,null,null,null,null,null,null,"短期入所生活介護",null,null,null,null,null,null,null,"短期入所生活介護",null,null,null,null,null,null,null,"短期入所生活介護",null,null,null,null,null,null,null,"短期入所生活介護",null,null,null,null,null,null,null,"短期入所生活介護",null,null,null,null,null,null,null,"短期入所生活介護",null,null,null,null,null,null,null,"短期入所生活介護",null,null,null,null,null,null,null,"短期入所生活介護",null,null,null,null,null,null,null,"短期入所生活介護",null,null,null,null,null,null,null,"短期入所生活介護",null,null,null,null,null,null,null,"短期入所生活介護",null,null,null,null,null,null,null,"短期入所生活介護",null,null,null,null,null,null,null,"短期入所生活介護",null,null,null,null,null,null,null,"短期入所生活介護",null,null,null,null,null,null,null,"短期入所生活介護",null,null,null,null,null,null,null,"短期入所生活介護",null,null,null,null,null,null,null,"短期入所生活介護",null,null,null,null,null,null,null,"短期入所生活介護",null,null,null,null,null,null,null,"短期入所生活介護",null,null,null,null,null,null,null,"短期入所生活介護",null,null,null,null,null,null,null,"短期入所生活介護",null,null,null,null,null,null,null,"短期入所生活介護",null,null,null,null,null,null,null,"短期入所生活介護",null,null,null,null,null,null,null,"短期入所生活介護",null,null,null,null,null,null,null,"短期入所生活介護",null,null,null,null,null,null,null,"短期入所生活介護",null,null,null,null,null,null,null,"短期入所生活介護",null,null,null,null,null,null,null,"短期入所生活介護",null,null,null,null,null,null,null,"短期入所生活介護",null,null,null,null,null,null,null,"短期入所生活介護",null,null,null,null,null,null,null,"短期入所生活介護",null,null,null,null,null,null,null,"短期入所生活介護",null,null,null,null,null,null,null,"短期入所生活介護",null,null,null,null,null,null,null,"短期入所生活介護",null,null,null,null,null,null,null,"短期入所生活介護",null,null,null,null,null,null,null,"短期入所生活介護",null,null,null,null,null,null,null,"短期入所生活介護",null,null,null,null,null,null,null,"短期入所生活介護",null,null,null,null,null,null,null,"短期入所生活介護",null,null,null,null,null,null,null,"短期入所生活介護",null,null,null,null,null,null,null,"短期入所生活介護",null,null,null,null,null,null,null,"短期入所生活介護",null,null,null,null,null,null,null,"短期入所生活介護",null,null,null,null,null,null,null,"短期入所生活介護",null,null,null,null,null,null,null,"短期入所生活介護",null,null,null,null,null,null,null,"短期入所生活介護",null,null,null,null,null,null,null,"短期入所生活介護",null,null,null,null,null,null,null,"短期入所生活介護",null,null,null,null,null,null,null,"短期入所生活介護",null,null,null,null,null,null,null,"短期入所生活介護",null,null,null,null,null,null,null,"短期入所生活介護",null,null,null,null,null,null,null,"短期入所生活介護",null,null,null,null,null,null,null,"短期入所生活介護",null,null,null,null,null,null,null,"短期入所生活介護",null,null,null,null,null,null,null,"短期入所生活介護",null,null,null,null,null,null,null,"短期入所生活介護",null,null,null,null,null,null,null,"短期入所生活介護",null,null,null,null,null,null,null,"短期入所生活介護",null,null,null,null,null,null,null,"短期入所生活介護",null,null,null,null,null,null,null,"短期入所生活介護",null,null,null,null,null,null,null,"短期入所生活介護",null,null,null,null,null,null,null,"短期入所生活介護",null,null,null,null,null,null,null,"短期入所生活介護",null,null,null,null,null,null,null,"短期入所生活介護",null,null,null,null,null,null,null,"短期入所生活介護",null,null,null,null,null,null,null,"短期入所生活介護",null,null,null,null,null,null,null,"短期入所生活介護",null,null,null,null,null,null,null,"短期入所生活介護",null,null,null,null,null,null,null,"短期入所生活介護",null,null,null,null,null,null,null,"短期入所生活介護",null,null,null,null,null,null,null,"短期入所生活介護",null,null,null,null,null,null,null,"短期入所生活介護",null,null,null,null,null,null,null,"短期入所生活介護",null,null,null,null,null,null,null,"短期入所生活介護",null,null,null,null,null,null,null,"短期入所生活介護",null,null,null,null,null,null,null,"短期入所生活介護",null,null,null,null,null,null,null,"短期入所生活介護",null,null,null,null,null,null,null,"短期入所生活介護",null,null,null,null,null,null,null,"短期入所生活介護",null,null,null,null,null,null,null,"短期入所生活介護",null,null,null,null,null,null,null,"短期入所生活介護",null,null,null,null,null,null,null,"短期入所生活介護",null,null,null,null,null,null,null,"短期入所生活介護",null,null,null,null,null,null,null,"短期入所生活介護",null,null,null,null,null,null,null,"短期入所生活介護",null,null,null,null,null,null,null,"短期入所生活介護",null,null,null,null,null,null,null,"短期入所生活介護",null,null,null,null,null,null,null,"短期入所生活介護",null,null,null,null,null,null,null,"短期入所生活介護",null,null,null,null,null,null,null,"短期入所生活介護",null,null,null,null,null,null,null,"短期入所生活介護",null,null,null,null,null,null,null,"短期入所生活介護",null,null,null,null,null,null,null,"短期入所生活介護",null,null,null,null,null,null,null,"短期入所生活介護",null,null,null,null,null,null,null,"短期入所生活介護",null,null,null,null,null,null,null,"短期入所生活介護",null,null,null,null,null,null,null,"短期入所生活介護",null,null,null,null,null,null,null,"短期入所生活介護",null,null,null,null,null,null,null,"短期入所生活介護",null,null,null,null,null,null,null,"短期入所生活介護",null,null,null,null,null,null,null,"短期入所生活介護",null,null,null,null,null,null,null,"短期入所生活介護",null,null,null,null,null,null,null,"短期入所生活介護",null,null,null,null,null,null,null,"短期入所生活介護",null,null,null,null,null,null,null,"短期入所生活介護",null,null,null,null,null,null,null,"短期入所生活介護",null,null,null,null,null,null,null,"短期入所生活介護",null,null,null,null,null,null,null,"短期入所生活介護",null,null,null,null,null,null,null,"短期入所生活介護",null,null,null,null,null,null,null,"短期入所生活介護",null,null,null,null,null,null,null,"短期入所生活介護",null,null,null,null,null,null,null,"短期入所生活介護",null,null,null,null,null,null,null,"短期入所生活介護",null,null,null,null,null,null,null,"短期入所生活介護",null,null,null,null,null,null,null,"短期入所生活介護",null,null,null,null,null,null,null,"短期入所生活介護",null,null,null,null,null,null,null,"短期入所生活介護",null,null,null,null,null,null,null,"短期入所生活介護",null,null,null,null,null,null,null,"短期入所生活介護",null,null,null,null,null,null,null,"短期入所生活介護",null,null,null,null,null,null,null,"短期入所生活介護",null,null,null,null,null,null,null,"短期入所生活介護",null,null,null,null,null,null,null,"短期入所生活介護",null,null,null,null,null,null,null,"短期入所生活介護",null,null,null,null,null,null,null,"短期入所生活介護",null,null,null,null,null,null,null,"短期入所生活介護",null,null,null,null,null,null,null,"短期入所生活介護",null,null,null,null,null,null,null,"短期入所生活介護",null,null,null,null,null,null,null,"短期入所生活介護",null,null,null,null,null,null,null,"短期入所生活介護",null,null,null,null,null,null,null,"短期入所生活介護",null,null,null,null,null,null,null,"短期入所生活介護",null,null,null,null,null,null,null,"短期入所生活介護",null,null,null,null,null,null,null,"短期入所生活介護",null,null,null,null,null,null,null,"短期入所生活介護",null,null,null,null,null,null,null,"短期入所生活介護",null,null,null,null,null,null,null,"短期入所生活介護",null,null,null,null,null,null,null,"短期入所生活介護",null,null,null,null,null,null,null,"短期入所生活介護",null,null,null,null,null,null,null,"短期入所生活介護",null,null,null,null,null,null,null,"短期入所生活介護",null,null,null,null,null,null,null,"短期入所生活介護",null,null,null,null,null,null,null,"短期入所生活介護",null,null,null,null,null,null,null,"短期入所生活介護",null,null,null,null,null,null,null,"短期入所生活介護",null,null,null,null,null,null,null,"短期入所生活介護",null,null,null,null,null,null,null,"短期入所生活介護",null,null,null,null,null,null,null,"短期入所生活介護",null,null,null,null,null,null,null,"短期入所生活介護",null,null,null,null,null,null,null,"短期入所生活介護",null,null,null,null,null,null,null,"短期入所生活介護",null,null,null,null,null,null,null,"短期入所生活介護",null,null,null,null,null,null,null,"短期入所生活介護",null,null,null,null,null,null,null,"短期入所生活介護",null,null,null,null,null,null,null,"短期入所生活介護",null,null,null,null,null,null,null,"短期入所生活介護",null,null,null,null,null,null,null,"短期入所生活介護",null,null,null,null,null,null,null,"短期入所生活介護",null,null,null,null,null,null,null,"短期入所生活介護",null,null,null,null,null,null,null,"短期入所生活介護",null,null,null,null,null,null,null,"短期入所生活介護",null,null,null,null,null,null,null,"短期入所生活介護",null,null,null,null,null,null,null,"短期入所生活介護",null,null,null,null,null,null,null,"短期入所生活介護",null,null,null,null,null,null,null,"短期入所生活介護",null,null,null,null,null,null,null,"短期入所生活介護",null,null,null,null,null,null,null,"短期入所生活介護",null,null,null,null,null,null,null,"短期入所生活介護",null,null,null,null,null,null,null,"短期入所生活介護",null,null,null,null,null,null,null,"短期入所生活介護",null,null,null,null,null,null,null,"短期入所生活介護",null,null,null,null,null,null,null,"短期入所生活介護",null,null,null,null,null,null,null,"短期入所生活介護",null,null,null,null,null,null,null,"短期入所生活介護",null,null,null,null,null,null,null,"短期入所生活介護",null,null,null,null,null,null,null,"短期入所生活介護",null,null,null,null,null,null,null,"短期入所生活介護",null,null,null,null,null,null,null,"短期入所生活介護",null,null,null,null,null,null,null,"短期入所生活介護",null,null,null,null,null,null,null,"短期入所生活介護",null,null,null,null,null,null,null,"短期入所生活介護",null,null,null,null,null,null,null,"短期入所生活介護",null,null,null,null,null,null,null,"短期入所生活介護",null,null,null,null,null,null,null,"短期入所生活介護",null,null,null,null,null,null,null,"短期入所生活介護",null,null,null,null,null,null,null,"短期入所生活介護",null,null,null,null,null,null,null,"短期入所生活介護",null,null,null,null,null,null,null,"短期入所生活介護",null,null,null,null,null,null,null,"短期入所生活介護",null,null,null,null,null,null,null,"短期入所生活介護",null,null,null,null,null,null,null,"短期入所生活介護",null,null,null,null,null,null,null,"短期入所生活介護",null,null,null,null,null,null,null,"短期入所生活介護",null,null,null,null,null,null,null,"短期入所生活介護",null,null,null,null,null,null,null,"短期入所生活介護",null,null,null,null,null,null,null,"短期入所生活介護",null,null,null,null,null,null,null,"短期入所生活介護",null,null,null,null,null,null,null,"短期入所生活介護",null,null,null,null,null,null,null,"短期入所生活介護",null,null,null,null,null,null,null,"短期入所生活介護",null,null,null,null,null,null,null,"短期入所生活介護",null,null,null,null,null,null,null,"短期入所生活介護",null,null,null,null,null,null,null,"短期入所生活介護",null,null,null,null,null,null,null,"短期入所生活介護",null,null,null,null,null,null,null,"短期入所生活介護",null,null,null,null,null,null,null,"短期入所生活介護",null,null,null,null,null,null,null,"短期入所生活介護",null,null,null,null,null,null,null,"短期入所生活介護",null,null,null,null,null,null,null,"短期入所生活介護",null,null,null,null,null,null,null,"短期入所生活介護",null,null,null,null,null,null,null,"短期入所生活介護",null,null,null,null,null,null,null,"短期入所生活介護",null,null,null,null,null,null,null,"短期入所生活介護",null,null,null,null,null,null,null,"短期入所生活介護",null,null,null,null,null,null,null,"短期入所生活介護",null,null,null,null,null,null,null,"短期入所生活介護",null,null,null,null,null,null,null,"短期入所生活介護",null,null,null,null,null,null,null,"短期入所生活介護",null,null,null,null,null,null,null,"短期入所生活介護",null,null,null,null,null,null,null,"短期入所生活介護",null,null,null,null,null,null,null,"短期入所生活介護",null,null,null,null,null,null,null,"短期入所生活介護",null,null,null,null,null,null,null,"短期入所生活介護",null,null,null,null,null,null,null,"短期入所生活介護",null,null,null,null,null,null,null,"短期入所生活介護",null,null,null,null,null,null,null,"短期入所生活介護",null,null,null,null,null,null,null,"短期入所生活介護",null,null,null,null,null,null,null,"短期入所生活介護",null,null,null,null,null,null,null,"短期入所生活介護",null,null,null,null,null,null,null,"短期入所生活介護",null,null,null,null,null,null,null,"短期入所生活介護",null,null,null,null,null,null,null,"短期入所生活介護",null,null,null,null,null,null,null,"短期入所生活介護",null,null,null,null,null,null,null,"短期入所生活介護",null,null,null,null,null,null,null,"短期入所生活介護",null,null,null,null,null,null,null,"短期入所生活介護",null,null,null,null,null,null,null,"短期入所生活介護",null,null,null,null,null,null,null,"短期入所生活介護",null,null,null,null,null,null,null,"短期入所生活介護",null,null,null,null,null,null,null,"短期入所生活介護",null,null,null,null,null,null,null,"短期入所生活介護",null,null,null,null,null,null,null,"短期入所生活介護",null,null,null,null,null,null,null,"短期入所生活介護",null,null,null,null,null,null,null,"短期入所生活介護",null,null,null,null,null,null,null,"短期入所生活介護",null,null,null,null,null,null,null,"短期入所生活介護",null,null,null,null,null,null,null,"短期入所生活介護",null,null,null,null,null,null,null,"短期入所生活介護",null,null,null,null,null,null,null,"短期入所生活介護",null,null,null,null,null,null,null,"短期入所生活介護",null,null,null,null,null,null,null,"短期入所生活介護",null,null,null,null,null,null,null,"短期入所生活介護",null,null,null,null,null,null,null,"短期入所生活介護",null,null,null,null,null,null,null,"短期入所生活介護",null,null,null,null,null,null,null,"短期入所生活介護",null,null,null,null,null,null,null,"短期入所生活介護",null,null,null,null,null,null,null,"短期入所生活介護",null,null,null,null,null,null,null,"短期入所生活介護",null,null,null,null,null,null,null,"短期入所生活介護",null,null,null,null,null,null,null,"短期入所生活介護",null,null,null,null,null,null,null,"短期入所生活介護",null,null,null,null,null,null,null,"短期入所生活介護",null,null,null,null,null,null,null,"短期入所生活介護",null,null,null,null,null,null,null,"短期入所生活介護",null,null,null,null,null,null,null,"短期入所生活介護",null,null,null,null,null,null,null,"短期入所生活介護",null,null,null,null,null,null,null,"短期入所生活介護",null,null,null,null,null,null,null,"短期入所生活介護",null,null,null,null,null,null,null,"短期入所生活介護",null,null,null,null,null,null,null,"短期入所生活介護",null,null,null,null,null,null,null,"短期入所生活介護",null,null,null,null,null,null,null,"短期入所生活介護",null,null,null,null,null,null,null,"短期入所生活介護",null,null,null,null,null,null,null,"短期入所生活介護",null,null,null,null,null,null,null,"短期入所生活介護",null,null,null,null,null,null,null,"短期入所生活介護",null,null,null,null,null,null,null,"短期入所生活介護",null,null,null,null,null,null,null,"短期入所生活介護",null,null,null,null,null,null,null,"短期入所生活介護",null,null,null,null,null,null,null,"短期入所生活介護",null,null,null,null,null,null,null,"短期入所生活介護",null,null,null,null,null,null,null,"短期入所生活介護",null,null,null,null,null,null,null,"短期入所生活介護",null,null,null,null,null,null,null,"短期入所生活介護",null,null,null,null,null,null,null,"短期入所生活介護",null,null,null,null,null,null,null,"短期入所生活介護",null,null,null,null,null,null,null,"短期入所生活介護",null,null,null,null,null,null,null,"短期入所生活介護",null,null,null,null,null,null,null,"短期入所生活介護",null,null,null,null,null,null,null,"短期入所生活介護",null,null,null,null,null,null,null,"短期入所生活介護",null,null,null,null,null,null,null,"短期入所生活介護",null,null,null,null,null,null,null,"短期入所生活介護",null,null,null,null,null,null,null,"短期入所生活介護",null,null,null,null,null,null,null,"短期入所生活介護",null,null,null,null,null,null,null,"短期入所生活介護",null,null,null,null,null,null,null,"短期入所生活介護",null,null,null,null,null,null,null,"短期入所生活介護",null,null,null,null,null,null,null,"短期入所生活介護",null,null,null,null,null,null,null,"短期入所生活介護",null,null,null,null,null,null,null,"短期入所生活介護",null,null,null,null,null,null,null,"短期入所生活介護",null,null,null,null,null,null,null,"短期入所生活介護",null,null,null,null,null,null,null,"短期入所生活介護",null,null,null,null,null,null,null,"短期入所生活介護",null,null,null,null,null,null,null,"短期入所生活介護",null,null,null,null,null,null,null,"短期入所生活介護",null,null,null,null,null,null,null,"短期入所生活介護",null,null,null,null,null,null,null,"短期入所生活介護",null,null,null,null,null,null,null,"短期入所生活介護",null,null,null,null,null,null,null,"短期入所生活介護",null,null,null,null,null,null,null,"短期入所生活介護",null,null,null,null,null,null,null,"短期入所生活介護",null,null,null,null,null,null,null,"短期入所生活介護",null,null,null,null,null,null,null,"短期入所生活介護",null,null,null,null,null,null,null,"短期入所生活介護",null,null,null,null,null,null,null,"短期入所生活介護",null,null,null,null,null,null,null,"短期入所生活介護",null,null,null,null,null,null,null,"短期入所生活介護",null,null,null,null,null,null,null,"短期入所生活介護",null,null,null,null,null,null,null,"短期入所生活介護",null,null,null,null,null,null,null,"短期入所生活介護",null,null,null,null,null,null,null,"短期入所生活介護",null,null,null,null,null,null,null,"短期入所生活介護",null,null,null,null,null,null,null,"短期入所生活介護",null,null,null,null,null,null,null,"短期入所生活介護",null,null,null,null,null,null,null,"短期入所生活介護",null,null,null,null,null,null,null,"短期入所生活介護",null,null,null,null,null,null,null,"短期入所生活介護",null,null,null,null,null,null,null,"短期入所生活介護",null,null,null,null,null,null,null,"短期入所生活介護",null,null,null,null,null,null,null,"短期入所生活介護",null,null,null,null,null,null,null,"短期入所生活介護",null,null,null,null,null,null,null,"短期入所生活介護",null,null,null,null,null,null,null,"短期入所生活介護",null,null,null,null,null,null,null,"短期入所生活介護",null,null,null,null,null,null,null,"短期入所生活介護",null,null,null,null,null,null,null,"短期入所生活介護",null,null,null,null,null,null,null,"短期入所生活介護",null,null,null,null,null,null,null,"短期入所生活介護",null,null,null,null,null,null,null,"短期入所生活介護",null,null,null,null,null,null,null,"短期入所生活介護",null,null,null,null,null,null,null,"短期入所生活介護",null,null,null,null,null,null,null,"短期入所生活介護",null,null,null,null,null,null,null,"短期入所生活介護",null,null,null,null,null,null,null,"短期入所生活介護",null,null,null,null,null,null,null,"短期入所生活介護",null,null,null,null,null,null,null,"短期入所生活介護",null,null,null,null,null,null,null,"短期入所生活介護",null,null,null,null,null,null,null,"短期入所生活介護",null,null,null,null,null,null,null,"短期入所生活介護",null,null,null,null,null,null,null,"短期入所生活介護",null,null,null,null,null,null,null,"短期入所生活介護",null,null,null,null,null,null,null,"短期入所生活介護",null,null,null,null,null,null,null,"短期入所生活介護",null,null,null,null,null,null,null,"短期入所生活介護",null,null,null,null,null,null,null,"短期入所生活介護",null,null,null,null,null,null,null,"短期入所生活介護",null,null,null,null,null,null,null,"短期入所生活介護",null,null,null,null,null,null,null,"短期入所生活介護",null,null,null,null,null,null,null,"短期入所生活介護",null,null,null,null,null,null,null,"短期入所生活介護",null,null,null,null,null,null,null,"短期入所生活介護",null,null,null,null,null,null,null,"短期入所生活介護",null,null,null,null,null,null,null,"短期入所生活介護",null,null,null,null,null,null,null,"短期入所生活介護",null,null,null,null,null,null,null,"短期入所生活介護",null,null,null,null,null,null,null,"短期入所生活介護",null,null,null,null,null,null,null,"短期入所生活介護",null,null,null,null,null,null,null,"短期入所生活介護",null,null,null,null,null,null,null,"短期入所生活介護",null,null,null,null,null,null,null,"短期入所生活介護",null,null,null,null,null,null,null,"短期入所生活介護",null,null,null,null,null,null,null,"短期入所生活介護",null,null,null,null,null,null,null,"短期入所生活介護",null,null,null,null,null,null,null,"短期入所生活介護",null,null,null,null,null,null,null,"短期入所生活介護",null,null,null,null,null,null,null,"短期入所生活介護",null,null,null,null,null,null,null,"短期入所生活介護",null,null,null,null,null,null,null,"短期入所生活介護",null,null,null,null,null,null,null,"短期入所生活介護",null,null,null,null,null,null,null,"短期入所生活介護",null,null,null,null,null,null,null,"短期入所生活介護",null,null,null,null,null,null,null,"短期入所生活介護",null,null,null,null,null,null,null,"短期入所生活介護",null,null,null,null,null,null,null,"短期入所生活介護",null,null,null,null,null,null,null,"短期入所生活介護",null,null,null,null,null,null,null,"短期入所生活介護",null,null,null,null,null,null,null,"短期入所生活介護",null,null,null,null,null,null,null,"短期入所生活介護",null,null,null,null,null,null,null,"短期入所生活介護",null,null,null,null,null,null,null,"短期入所生活介護",null,null,null,null,null,null,null,"短期入所生活介護",null,null,null,null,null,null,null,"短期入所生活介護",null,null,null,null,null,null,null,"短期入所生活介護",null,null,null,null,null,null,null,"短期入所生活介護",null,null,null,null,null,null,null,"短期入所生活介護",null,null,null,null,null,null,null,"短期入所生活介護",null,null,null,null,null,null,null,"短期入所生活介護",null,null,null,null,null,null,null,"短期入所生活介護",null,null,null,null,null,null,null,"短期入所生活介護",null,null,null,null,null,null,null,"短期入所生活介護",null,null,null,null,null,null,null,"短期入所生活介護",null,null,null,null,null,null,null,"短期入所生活介護",null,null,null,null,null,null,null,"短期入所生活介護",null,null,null,null,null,null,null,"短期入所生活介護",null,null,null,null,null,null,null,"短期入所生活介護",null,null,null,null,null,null,null,"短期入所生活介護",null,null,null,null,null,null,null,"短期入所生活介護",null,null,null,null,null,null,null,"短期入所生活介護",null,null,null,null,null,null,null,"短期入所生活介護",null,null,null,null,null,null,null,"短期入所生活介護",null,null,null,null,null,null,null,"短期入所生活介護",null,null,null,null,null,null,null,"短期入所生活介護",null,null,null,null,null,null,null,"短期入所生活介護",null,null,null,null,null,null,null,"短期入所生活介護",null,null,null,null,null,null,null,"短期入所生活介護",null,null,null,null,null,null,null,"短期入所生活介護",null,null,null,null,null,null,null,"短期入所生活介護",null,null,null,null,null,null,null,"短期入所生活介護",null,null,null,null,null,null,null,"短期入所生活介護",null,null,null,null,null,null,null,"短期入所生活介護",null,null,null,null,null,null,null,"短期入所生活介護",null,null,null,null,null,null,null,"短期入所生活介護",null,null,null,null,null,null,null,"短期入所生活介護",null,null,null,null,null,null,null,"短期入所生活介護",null,null,null,null,null,null,null,"短期入所生活介護",null,null,null,null,null,null,null,"短期入所生活介護",null,null,null,null,null,null,null,"短期入所生活介護",null,null,null,null,null,null,null,"短期入所生活介護",null,null,null,null,null,null,null,"短期入所生活介護",null,null,null,null,null,null,null,"短期入所生活介護",null,null,null,null,null,null,null,"短期入所生活介護",null,null,null,null,null,null,null,"短期入所生活介護",null,null,null,null,null,null,null,"短期入所生活介護",null,null,null,null,null,null,null,"短期入所生活介護",null,null,null,null,null,null,null,"短期入所生活介護",null,null,null,null,null,null,null,"短期入所生活介護",null,null,null,null,null,null,null,"短期入所生活介護",null,null,null,null,null,null,null,"短期入所生活介護",null,null,null,null,null,null,null,"短期入所生活介護",null,null,null,null,null,null,null,"短期入所生活介護",null,null,null,null,null,null,null,"短期入所生活介護",null,null,null,null,null,null,null,"短期入所生活介護",null,null,null,null,null,null,null,"短期入所生活介護",null,null,null,null,null,null,null,"短期入所生活介護",null,null,null,null,null,null,null,"短期入所生活介護",null,null,null,null,null,null,null,"短期入所生活介護",null,null,null,null,null,null,null,"短期入所生活介護",null,null,null,null,null,null,null,"短期入所生活介護",null,null,null,null,null,null,null,"短期入所生活介護",null,null,null,null,null,null,null,"短期入所生活介護",null,null,null,null,null,null,null,"短期入所生活介護",null,null,null,null,null,null,null,"短期入所生活介護",null,null,null,null,null,null,null,"短期入所生活介護",null,null,null,null,null,null,null,"短期入所生活介護",null,null,null,null,null,null,null,"短期入所生活介護",null,null,null,null,null,null,null,"短期入所生活介護",null,null,null,null,null,null,null,"短期入所生活介護",null,null,null,null,null,null,null,"短期入所生活介護",null,null,null,null,null,null,null,"短期入所生活介護",null,null,null,null,null,null,null,"短期入所生活介護",null,null,null,null,null,null,null,"短期入所生活介護",null,null,null,null,null,null,null,"短期入所生活介護",null,null,null,null,null,null,null,"短期入所生活介護",null,null,null,null,null,null,null,"短期入所生活介護",null,null,null,null,null,null,null,"短期入所生活介護",null,null,null,null,null,null,null,"短期入所生活介護",null,null,null,null,null,null,null,"短期入所生活介護",null,null,null,null,null,null,null,"短期入所生活介護",null,null,null,null,null,null,null,"短期入所生活介護",null,null,null,null,null,null,null,"短期入所生活介護",null,null,null,null,null,null,null,"短期入所生活介護",null,null,null,null,null,null,null,"短期入所生活介護",null,null,null,null,null,null,null,"短期入所生活介護",null,null,null,null,null,null,null,"短期入所生活介護",null,null,null,null,null,null,null,"短期入所生活介護",null,null,null,null,null,null,null,"短期入所生活介護",null,null,null,null,null,null,null,"短期入所生活介護",null,null,null,null,null,null,null,"短期入所生活介護",null,null,null,null,null,null,null,"短期入所生活介護",null,null,null,null,null,null,null,"短期入所生活介護",null,null,null,null,null,null,null,"短期入所生活介護",null,null,null,null,null,null,null,"短期入所生活介護",null,null,null,null,null,null,null,"短期入所生活介護",null,null,null,null,null,null,null,"短期入所生活介護",null,null,null,null,null,null,null,"短期入所生活介護",null,null,null,null,null,null,null,"短期入所生活介護",null,null,null,null,null,null,null,"短期入所生活介護",null,null,null,null,null,null,null,"短期入所生活介護",null,null,null,null,null,null,null,"短期入所生活介護",null,null,null,null,null,null,null,"短期入所生活介護",null,null,null,null,null,null,null,"短期入所生活介護",null,null,null,null,null,null,null,"短期入所生活介護",null,null,null,null,null,null,null,"短期入所生活介護",null,null,null,null,null,null,null,"短期入所生活介護",null,null,null,null,null,null,null,"短期入所生活介護",null,null,null,null,null,null,null,"短期入所生活介護",null,null,null,null,null,null,null,"短期入所生活介護",null,null,null,null,null,null,null,"短期入所生活介護",null,null,null,null,null,null,null,"短期入所生活介護",null,null,null,null,null,null,null,"短期入所生活介護",null,null,null,null,null,null,null,"短期入所生活介護",null,null,null,null,null,null,null,"短期入所生活介護",null,null,null,null,null,null,null,"短期入所生活介護",null,null,null,null,null,null,null,"短期入所生活介護",null,null,null,null,null,null,null,"短期入所生活介護",null,null,null,null,null,null,null,"短期入所生活介護",null,null,null,null,null,null,null,"短期入所生活介護",null,null,null,null,null,null,null,"短期入所生活介護",null,null,null,null,null,null,null,"短期入所生活介護",null,null,null,null,null,null,null,"短期入所生活介護",null,null,null,null,null,null,null,"短期入所生活介護",null,null,null,null,null,null,null,"短期入所生活介護",null,null,null,null,null,null,null,"短期入所生活介護",null,null,null,null,null,null,null,"短期入所生活介護",null,null,null,null,null,null,null,"短期入所生活介護",null,null,null,null,null,null,null,"短期入所生活介護",null,null,null,null,null,null,null,"短期入所生活介護",null,null,null,null,null,null,null,"短期入所生活介護",null,null,null,null,null,null,null,"短期入所生活介護",null,null,null,null,null,null,null,"短期入所生活介護",null,null,null,null,null,null,null,"短期入所生活介護",null,null,null,null,null,null,null,"短期入所生活介護",null,null,null,null,null,null,null,"短期入所生活介護",null,null,null,null,null,null,null,"短期入所生活介護",null,null,null,null,null,null,null,"短期入所生活介護",null,null,null,null,null,null,null,"短期入所生活介護",null,null,null,null,null,null,null,"短期入所生活介護",null,null,null,null,null,null,null,"短期入所生活介護",null,null,null,null,null,null,null,"短期入所生活介護",null,null,null,null,null,null,null,"短期入所生活介護",null,null,null,null,null,null,null,"短期入所生活介護",null,null,null,null,null,null,null,"短期入所生活介護",null,null,null,null,null,null,null,"短期入所生活介護",null,null,null,null,null,null,null,"短期入所生活介護",null,null,null,null,null,null,null,"短期入所生活介護",null,null,null,null,null,null,null,"短期入所生活介護",null,null,null,null,null,null,null,"短期入所生活介護",null,null,null,null,null,null,null,"短期入所生活介護",null,null,null,null,null,null,null,"短期入所生活介護",null,null,null,null,null,null,null,"短期入所生活介護",null,null,null,null,null,null,null,"短期入所生活介護",null,null,null,null,null,null,null,"短期入所生活介護",null,null,null,null,null,null,null,"短期入所生活介護",null,null,null,null,null,null,null,"短期入所生活介護",null,null,null,null,null,null,null,"短期入所生活介護",null,null,null,null,null,null,null,"短期入所生活介護",null,null,null,null,null,null,null,"短期入所生活介護",null,null,null,null,null,null,null,"短期入所生活介護",null,null,null,null,null,null,null,"短期入所生活介護",null,null,null,null,null,null,null,"短期入所生活介護",null,null,null,null,null,null,null,"短期入所生活介護",null,null,null,null,null,null,null,"短期入所生活介護",null,null,null,null,null,null,null,"短期入所生活介護",null,null,null,null,null,null,null,"短期入所生活介護",null,null,null,null,null,null,null,"短期入所生活介護",null,null,null,null,null,null,null,"短期入所生活介護",null,null,null,null,null,null,null,"短期入所生活介護",null,null,null,null,null,null,null,"短期入所生活介護",null,null,null,null,null,null,null,"短期入所生活介護",null,null,null,null,null,null,null,"短期入所生活介護",null,null,null,null,null,null,null,"短期入所生活介護",null,null,null,null,null,null,null,"短期入所生活介護",null,null,null,null,null,null,null,"短期入所生活介護",null,null,null,null,null,null,null,"短期入所生活介護",null,null,null,null,null,null,null,"短期入所生活介護",null,null,null,null,null,null,null,"短期入所生活介護",null,null,null,null,null,null,null,"短期入所生活介護",null,null,null,null,null,null,null,"短期入所生活介護",null,null,null,null,null,null,null,"短期入所生活介護",null,null,null,null,null,null,null,"短期入所生活介護",null,null,null,null,null,null,null,"短期入所生活介護",null,null,null,null,null,null,null,"短期入所生活介護",null,null,null,null,null,null,null,"短期入所生活介護",null,null,null,null,null,null,null,"短期入所生活介護",null,null,null,null,null,null,null,"短期入所生活介護",null,null,null,null,null,null,null,"短期入所生活介護",null,null,null,null,null,null,null,"短期入所生活介護",null,null,null,null,null,null,null,"短期入所生活介護",null,null,null,null,null,null,null,"短期入所生活介護",null,null,null,null,null,null,null,"短期入所生活介護",null,null,null,null,null,null,null,"短期入所生活介護",null,null,null,null,null,null,null,"短期入所生活介護",null,null,null,null,null,null,null,"短期入所生活介護",null,null,null,null,null,null,null,"短期入所生活介護",null,null,null,null,null,null,null,"短期入所生活介護",null,null,null,null,null,null,null,"短期入所生活介護",null,null,null,null,null,null,null,"短期入所生活介護",null,null,null,null,null,null,null,"短期入所生活介護",null,null,null,null,null,null,null,"短期入所生活介護",null,null,null,null,null,null,null,"短期入所生活介護",null,null,null,null,null,null,null,"短期入所生活介護",null,null,null,null,null,null,null,"短期入所生活介護",null,null,null,null,null,null,null,"短期入所生活介護",null,null,null,null,null,null,null,"短期入所生活介護",null,null,null,null,null,null,null,"短期入所生活介護",null,null,null,null,null,null,null,"短期入所生活介護",null,null,null,null,null,null,null,"短期入所生活介護",null,null,null,null,null,null,null,"短期入所生活介護",null,null,null,null,null,null,null,"短期入所生活介護",null,null,null,null,null,null,null,"短期入所生活介護",null,null,null,null,null,null,null,"短期入所生活介護",null,null,null,null,null,null,null,"短期入所生活介護",null,null,null,null,null,null,null,"短期入所生活介護",null,null,null,null,null,null,null,"短期入所生活介護",null,null,null,null,null,null,null,"短期入所生活介護",null,null,null,null,null,null,null,"短期入所生活介護",null,null,null,null,null,null,null,"短期入所生活介護",null,null,null,null,null,null,null,"短期入所生活介護",null,null,null,null,null,null,null,"短期入所生活介護",null,null,null,null,null,null,null,"短期入所生活介護",null,null,null,null,null,null,null,"短期入所生活介護",null,null,null,null,null,null,null,"短期入所生活介護",null,null,null,null,null,null,null,"短期入所生活介護",null,null,null,null,null,null,null,"短期入所生活介護",null,null,null,null,null,null,null,"短期入所生活介護",null,null,null,null,null,null,null,"短期入所生活介護",null,null,null,null,null,null,null,"短期入所生活介護",null,null,null,null,null,null,null,"短期入所生活介護",null,null,null,null,null,null,null,"短期入所生活介護",null,null,null,null,null,null,null,"短期入所生活介護",null,null,null,null,null,null,null,"短期入所生活介護",null,null,null,null,null,null,null,"短期入所生活介護",null,null,null,null,null,null,null,"短期入所生活介護",null,null,null,null,null,null,null,"短期入所生活介護",null,null,null,null,null,null,null,"短期入所生活介護",null,null,null,null,null,null,null,"短期入所生活介護",null,null,null,null,null,null,null,"短期入所生活介護",null,null,null,null,null,null,null,"短期入所生活介護",null,null,null,null,null,null,null,"短期入所生活介護",null,null,null,null,null,null,null,"短期入所生活介護",null,null,null,null,null,null,null,"短期入所生活介護",null,null,null,null,null,null,null,"短期入所生活介護",null,null,null,null,null,null,null,"短期入所生活介護",null,null,null,null,null,null,null,"短期入所生活介護",null,null,null,null,null,null,null,"短期入所生活介護",null,null,null,null,null,null,null,"短期入所生活介護",null,null,null,null,null,null,null,"短期入所生活介護",null,null,null,null,null,null,null,"短期入所生活介護",null,null,null,null,null,null,null,"短期入所生活介護",null,null,null,null,null,null,null,"短期入所生活介護",null,null,null,null,null,null,null,"短期入所生活介護",null,null,null,null,null,null,null,"短期入所生活介護",null,null,null,null,null,null,null,"短期入所生活介護",null,null,null,null,null,null,null,"短期入所生活介護",null,null,null,null,null,null,null,"短期入所生活介護",null,null,null,null,null,null,null,"短期入所生活介護",null,null,null,null,null,null,null,"短期入所生活介護",null,null,null,null,null,null,null,"短期入所生活介護",null,null,null,null,null,null,null,"短期入所生活介護",null,null,null,null,null,null,null,"短期入所生活介護",null,null,null,null,null,null,null,"短期入所生活介護",null,null,null,null,null,null,null,"短期入所生活介護",null,null,null,null,null,null,null,"短期入所生活介護",null,null,null,null,null,null,null,"短期入所生活介護",null,null,null,null,null,null,null,"短期入所生活介護",null,null,null,null,null,null,null,"短期入所生活介護",null,null,null,null,null,null,null,"短期入所生活介護",null,null,null,null,null,null,null,"短期入所生活介護",null,null,null,null,null,null,null,"短期入所生活介護",null,null,null,null,null,null,null,"短期入所生活介護",null,null,null,null,null,null,null,"短期入所生活介護",null,null,null,null,null,null,null,"短期入所生活介護",null,null,null,null,null,null,null,"短期入所生活介護",null,null,null,null,null,null,null,"短期入所生活介護",null,null,null,null,null,null,null,"短期入所生活介護",null,null,null,null,null,null,null,"短期入所生活介護",null,null,null,null,null,null,null,"短期入所生活介護",null,null,null,null,null,null,null,"短期入所生活介護",null,null,null,null,null,null,null,"短期入所生活介護",null,null,null,null,null,null,null,"短期入所生活介護",null,null,null,null,null,null,null,"短期入所生活介護",null,null,null,null,null,null,null,"短期入所生活介護",null,null,null,null,null,null,null,"短期入所生活介護",null,null,null,null,null,null,null,"短期入所生活介護",null,null,null,null,null,null,null,"短期入所生活介護",null,null,null,null,null,null,null,"短期入所生活介護",null,null,null,null,null,null,null,"短期入所生活介護",null,null,null,null,null,null,null,"短期入所生活介護",null,null,null,null,null,null,null,"短期入所生活介護",null,null,null,null,null,null,null,"短期入所生活介護",null,null,null,null,null,null,null,"短期入所生活介護",null,null,null,null,null,null,null,"短期入所生活介護",null,null,null,null,null,null,null,"短期入所生活介護",null,null,null,null,null,null,null,"短期入所生活介護",null,null,null,null,null,null,null,"短期入所生活介護",null,null,null,null,null,null,null,"短期入所生活介護",null,null,null,null,null,null,null,"短期入所生活介護",null,null,null,null,null,null,null,"短期入所生活介護",null,null,null,null,null,null,null,"短期入所生活介護",null,null,null,null,null,null,null,"短期入所生活介護",null,null,null,null,null,null,null,"短期入所生活介護",null,null,null,null,null,null,null,"短期入所生活介護",null,null,null,null,null,null,null,"短期入所生活介護",null,null,null,null,null,null,null,"短期入所生活介護",null,null,null,null,null,null,null,"短期入所生活介護",null,null,null,null,null,null,null,"短期入所生活介護",null,null,null,null,null,null,null,"短期入所生活介護",null,null,null,null,null,null,null,"短期入所生活介護",null,null,null,null,null,null,null,"短期入所生活介護",null,null,null,null,null,null,null,"短期入所生活介護",null,null,null,null,null,null,null,"短期入所生活介護",null,null,null,null,null,null,null,"短期入所生活介護",null,null,null,null,null,null,null,"短期入所生活介護",null,null,null,null,null,null,null,"短期入所生活介護",null,null,null,null,null,null,null,"短期入所生活介護",null,null,null,null,null,null,null,"短期入所生活介護",null,null,null,null,null,null,null,"短期入所生活介護",null,null,null,null,null,null,null,"短期入所生活介護",null,null,null,null,null,null,null,"短期入所生活介護",null,null,null,null,null,null,null,"短期入所生活介護",null,null,null,null,null,null,null,"短期入所生活介護",null,null,null,null,null,null,null,"短期入所生活介護",null,null,null,null,null,null,null,"短期入所生活介護",null,null,null,null,null,null,null,"短期入所生活介護",null,null,null,null,null,null,null,"短期入所生活介護",null,null,null,null,null,null,null,"短期入所生活介護",null,null,null,null,null,null,null,"短期入所生活介護",null,null,null,null,null,null,null,"短期入所生活介護",null,null,null,null,null,null,null,"短期入所生活介護",null,null,null,null,null,null,null,"短期入所生活介護",null,null,null,null,null,null,null,"短期入所生活介護",null,null,null,null,null,null,null,"短期入所生活介護",null,null,null,null,null,null,null,"短期入所生活介護",null,null,null,null,null,null,null,"短期入所生活介護",null,null,null,null,null,null,null,"短期入所生活介護",null,null,null,null,null,null,null,"短期入所生活介護",null,null,null,null,null,null,null,"短期入所生活介護",null,null,null,null,null,null,null,"短期入所生活介護",null,null,null,null,null,null,null,"短期入所生活介護",null,null,null,null,null,null,null,"短期入所生活介護",null,null,null,null,null,null,null,"短期入所生活介護",null,null,null,null,null,null,null,"短期入所生活介護",null,null,null,null,null,null,null,"短期入所生活介護",null,null,null,null,null,null,null,"短期入所生活介護",null,null,null,null,null,null,null,"短期入所生活介護",null,null,null,null,null,null,null,"短期入所生活介護",null,null,null,null,null,null,null,"短期入所生活介護",null,null,null,null,null,null,null,"短期入所生活介護",null,null,null,null,null,null,null,"短期入所生活介護",null,null,null,null,null,null,null,"短期入所生活介護",null,null,null,null,null,null,null,"短期入所生活介護",null,null,null,null,null,null,null,"短期入所生活介護",null,null,null,null,null,null,null,"短期入所生活介護",null,null,null,null,null,null,null,"短期入所生活介護",null,null,null,null,null,null,null,"短期入所生活介護",null,null,null,null,null,null,null,"短期入所生活介護",null,null,null,null,null,null,null,"短期入所生活介護",null,null,null,null,null,null,null,"短期入所生活介護",null,null,null,null,null,null,null,"短期入所生活介護",null,null,null,null,null,null,null,"短期入所生活介護",null,null,null,null,null,null,null,"短期入所生活介護",null,null,null,null,null,null,null,"短期入所生活介護",null,null,null,null,null,null,null,"短期入所生活介護",null,null,null,null,null,null,null,"短期入所生活介護",null,null,null,null,null,null,null,"短期入所生活介護",null,null,null,null,null,null,null,"短期入所生活介護",null,null,null,null,null,null,null,"短期入所生活介護",null,null,null,null,null,null,null,"短期入所生活介護",null,null,null,null,null,null,null,"短期入所生活介護",null,null,null,null,null,null,null,"短期入所生活介護",null,null,null,null,null,null,null,"短期入所生活介護",null,null,null,null,null,null,null,"短期入所生活介護",null,null,null,null,null,null,null,"短期入所生活介護",null,null,null,null,null,null,null,"短期入所生活介護",null,null,null,null,null,null,null,"短期入所生活介護",null,null,null,null,null,null,null,"短期入所生活介護",null,null,null,null,null,null,null,"短期入所生活介護",null,null,null,null,null,null,null,"短期入所生活介護",null,null,null,null,null,null,null,"短期入所生活介護",null,null,null,null,null,null,null,"短期入所生活介護",null,null,null,null,null,null,null,"短期入所生活介護",null,null,null,null,null,null,null,"短期入所生活介護",null,null,null,null,null,null,null,"短期入所生活介護",null,null,null,null,null,null,null,"短期入所生活介護",null,null,null,null,null,null,null,"短期入所生活介護",null,null,null,null,null,null,null,"短期入所生活介護",null,null,null,null,null,null,null,"短期入所生活介護",null,null,null,null,null,null,null,"短期入所生活介護",null,null,null,null,null,null,null,"短期入所生活介護",null,null,null,null,null,null,null,"短期入所生活介護",null,null,null,null,null,null,null,"短期入所生活介護",null,null,null,null,null,null,null,"短期入所生活介護",null,null,null,null,null,null,null,"短期入所生活介護",null,null,null,null,null,null,null,"短期入所生活介護",null,null,null,null,null,null,null,"短期入所生活介護",null,null,null,null,null,null,null,"短期入所生活介護",null,null,null,null,null,null,null,"短期入所生活介護",null,null,null,null,null,null,null,"短期入所生活介護",null,null,null,null,null,null,null,"短期入所生活介護",null,null,null,null,null,null,null,"短期入所生活介護",null,null,null,null,null,null,null,"短期入所生活介護",null,null,null,null,null,null,null,"短期入所生活介護",null,null,null,null,null,null,null,"短期入所生活介護",null,null,null,null,null,null,null,"短期入所生活介護",null,null,null,null,null,null,null,"短期入所生活介護",null,null,null,null,null,null,null,"短期入所生活介護",null,null,null,null,null,null,null,"短期入所生活介護",null,null,null,null,null,null,null,"短期入所生活介護",null,null,null,null,null,null,null,"短期入所生活介護",null,null,null,null,null,null,null,"短期入所生活介護",null,null,null,null,null,null,null,"短期入所生活介護",null,null,null,null,null,null,null,"短期入所生活介護",null,null,null,null,null,null,null,"短期入所生活介護",null,null,null,null,null,null,null,"短期入所生活介護",null,null,null,null,null,null,null,"短期入所生活介護",null,null,null,null,null,null,null,"短期入所生活介護",null,null,null,null,null,null,null,"短期入所生活介護",null,null,null,null,null,null,null,"短期入所生活介護",null,null,null,null,null,null,null,"短期入所生活介護",null,null,null,null,null,null,null,"短期入所生活介護",null,null,null,null,null,null,null,"短期入所生活介護",null,null,null,null,null,null,null,"短期入所生活介護",null,null,null,null,null,null,null,"短期入所生活介護",null,null,null,null,null,null,null,"短期入所生活介護",null,null,null,null,null,null,null,"短期入所生活介護",null,null,null,null,null,null,null,"短期入所生活介護",null,null,null,null,null,null,null,"短期入所生活介護",null,null,null,null,null,null,null,"短期入所生活介護",null,null,null,null,null,null,null,"短期入所生活介護",null,null,null,null,null,null,null,"短期入所生活介護",null,null,null,null,null,null,null,"短期入所生活介護",null,null,null,null,null,null,null,"短期入所生活介護",null,null,null,null,null,null,null,"短期入所生活介護",null,null,null,null,null,null,null,"短期入所生活介護",null,null,null,null,null,null,null,"短期入所生活介護",null,null,null,null,null,null,null,"短期入所生活介護",null,null,null,null,null,null,null,"短期入所生活介護",null,null,null,null,null,null,null,"短期入所生活介護",null,null,null,null,null,null,null,"短期入所生活介護",null,null,null,null,null,null,null,"短期入所生活介護",null,null,null,null,null,null,null,"短期入所生活介護",null,null,null,null,null,null,null,"短期入所生活介護",null,null,null,null,null,null,null,"短期入所生活介護",null,null,null,null,null,null,null,"短期入所生活介護",null,null,null,null,null,null,null,"短期入所生活介護",null,null,null,null,null,null,null,"短期入所生活介護",null,null,null,null,null,null,null,"短期入所生活介護",null,null,null,null,null,null,null,"短期入所生活介護",null,null,null,null,null,null,null,"短期入所生活介護",null,null,null,null,null,null,null,"短期入所生活介護",null,null,null,null,null,null,null,"短期入所生活介護",null,null,null,null,null,null,null,"短期入所生活介護",null,null,null,null,null,null,null,"短期入所生活介護",null,null,null,null,null,null,null,"短期入所生活介護",null,null,null,null,null,null,null,"短期入所生活介護",null,null,null,null,null,null,null,"短期入所生活介護",null,null,null,null,null,null,null,"短期入所生活介護",null,null,null,null,null,null,null,"短期入所生活介護",null,null,null,null,null,null,null,"短期入所生活介護",null,null,null,null,null,null,null,"短期入所生活介護",null,null,null,null,null,null,null,"短期入所生活介護",null,null,null,null,null,null,null,"短期入所生活介護",null,null,null,null,null,null,null,"短期入所生活介護",null,null,null,null,null,null,null,"短期入所生活介護",null,null,null,null,null,null,null,"短期入所生活介護",null,null,null,null,null,null,null,"短期入所生活介護",null,null,null,null,null,null,null,"短期入所生活介護",null,null,null,null,null,null,null,"短期入所生活介護",null,null,null,null,null,null,null,"短期入所生活介護",null,null,null,null,null,null,null,"短期入所生活介護",null,null,null,null,null,null,null,"短期入所生活介護",null,null,null,null,null,null,null,"短期入所生活介護",null,null,null,null,null,null,null,"短期入所生活介護",null,null,null,null,null,null,null,"短期入所生活介護",null,null,null,null,null,null,null,"短期入所生活介護",null,null,null,null,null,null,null,"短期入所生活介護",null,null,null,null,null,null,null,"短期入所生活介護",null,null,null,null,null,null,null,"短期入所生活介護",null,null,null,null,null,null,null,"短期入所生活介護",null,null,null,null,null,null,null,"短期入所生活介護",null,null,null,null,null,null,null,"短期入所生活介護",null,null,null,null,null,null,null,"短期入所生活介護",null,null,null,null,null,null,null,"短期入所生活介護",null,null,null,null,null,null,null,"短期入所生活介護",null,null,null,null,null,null,null,"短期入所生活介護",null,null,null,null,null,null,null,"短期入所生活介護",null,null,null,null,null,null,null,"短期入所生活介護",null,null,null,null,null,null,null,"短期入所生活介護",null,null,null,null,null,null,null,"短期入所生活介護",null,null,null,null,null,null,null,"短期入所生活介護",null,null,null,null,null,null,null,"短期入所生活介護",null,null,null,null,null,null,null,"短期入所生活介護",null,null,null,null,null,null,null,"短期入所生活介護",null,null,null,null,null,null,null,"短期入所生活介護",null,null,null,null,null,null,null,"短期入所生活介護",null,null,null,null,null,null,null,"短期入所生活介護",null,null,null,null,null,null,null,"短期入所生活介護",null,null,null,null,null,null,null,"短期入所生活介護",null,null,null,null,null,null,null,"短期入所生活介護",null,null,null,null,null,null,null,"短期入所生活介護",null,null,null,null,null,null,null,"短期入所生活介護",null,null,null,null,null,null,null,"短期入所生活介護",null,null,null,null,null,null,null,"短期入所生活介護",null,null,null,null,null,null,null,"短期入所生活介護",null,null,null,null,null,null,null,"短期入所生活介護",null,null,null,null,null,null,null,"短期入所生活介護",null,null,null,null,null,null,null,"短期入所生活介護",null,null,null,null,null,null,null,"短期入所生活介護",null,null,null,null,null,null,null,"短期入所生活介護",null,null,null,null,null,null,null,"短期入所生活介護",null,null,null,null,null,null,null,"短期入所生活介護",null,null,null,null,null,null,null,"短期入所生活介護",null,null,null,null,null,null,null,"短期入所生活介護",null,null,null,null,null,null,null,"短期入所生活介護",null,null,null,null,null,null,null,"短期入所生活介護",null,null,null,null,null,null,null,"短期入所生活介護",null,null,null,null,null,null,null,"短期入所生活介護",null,null,null,null,null,null,null,"短期入所生活介護",null,null,null,null,null,null,null,"短期入所生活介護",null,null,null,null,null,null,null,"短期入所生活介護",null,null,null,null,null,null,null,"短期入所生活介護",null,null,null,null,null,null,null,"短期入所生活介護",null,null,null,null,null,null,null,"短期入所生活介護",null,null,null,null,null,null,null,"短期入所生活介護",null,null,null,null,null,null,null,"短期入所生活介護",null,null,null,null,null,null,null,"短期入所生活介護",null,null,null,null,null,null,null,"短期入所生活介護",null,null,null,null,null,null,null,"短期入所生活介護",null,null,null,null,null,null,null,"短期入所生活介護",null,null,null,null,null,null,null,"短期入所生活介護",null,null,null,null,null,null,null,"短期入所生活介護",null,null,null,null,null,null,null,"短期入所生活介護",null,null,null,null,null,null,null,"短期入所生活介護",null,null,null,null,null,null,null,"短期入所生活介護",null,null,null,null,null,null,null,"短期入所生活介護",null,null,null,null,null,null,null,"短期入所生活介護",null,null,null,null,null,null,null,"短期入所生活介護",null,null,null,null,null,null,null,"短期入所生活介護",null,null,null,null,null,null,null,"短期入所生活介護",null,null,null,null,null,null,null,"短期入所生活介護",null,null,null,null,null,null,null,"短期入所生活介護",null,null,null,null,null,null,null,"短期入所生活介護",null,null,null,null,null,null,null,"短期入所生活介護",null,null,null,null,null,null,null,"短期入所生活介護",null,null,null,null,null,null,null,"短期入所生活介護",null,null,null,null,null,null,null,"短期入所生活介護",null,null,null,null,null,null,null,"短期入所生活介護",null,null,null,null,null,null,null,"短期入所生活介護",null,null,null,null,null,null,null,"短期入所生活介護",null,null,null,null,null,null,null,"短期入所生活介護",null,null,null,null,null,null,null,"短期入所生活介護",null,null,null,null,null,null,null,"短期入所生活介護",null,null,null,null,null,null,null,"短期入所生活介護",null,null,null,null,null,null,null,"短期入所生活介護",null,null,null,null,null,null,null,"短期入所生活介護",null,null,null,null,null,null,null,"短期入所生活介護",null,null,null,null,null,null,null,"短期入所生活介護",null,null,null,null,null,null,null,"短期入所生活介護",null,null,null,null,null,null,null,"短期入所生活介護",null,null,null,null,null,null,null,"短期入所生活介護",null,null,null,null,null,null,null,"短期入所生活介護",null,null,null,null,null,null,null,"短期入所生活介護",null,null,null,null,null,null,null,"短期入所生活介護",null,null,null,null,null,null,null,"短期入所生活介護",null,null,null,null,null,null,null,"短期入所生活介護",null,null,null,null,null,null,null,"短期入所生活介護",null,null,null,null,null,null,null,"短期入所生活介護",null,null,null,null,null,null,null,"短期入所生活介護",null,null,null,null,null,null,null,"短期入所生活介護",null,null,null,null,null,null,null,"短期入所生活介護",null,null,null,null,null,null,null,"短期入所生活介護",null,null,null,null,null,null,null,"短期入所生活介護",null,null,null,null,null,null,null,"短期入所生活介護",null,null,null,null,null,null,null,"短期入所生活介護",null,null,null,null,null,null,null,"短期入所生活介護",null,null,null,null,null,null,null,"短期入所生活介護",null,null,null,null,null,null,null,"短期入所生活介護",null,null,null,null,null,null,null,"短期入所生活介護",null,null,null,null,null,null,null,"短期入所生活介護",null,null,null,null,null,null,null,"短期入所生活介護",null,null,null,null,null,null,null,"短期入所生活介護",null,null,null,null,null,null,null,"短期入所生活介護",null,null,null,null,null,null,null,"短期入所生活介護",null,null,null,null,null,null,null,"短期入所生活介護",null,null,null,null,null,null,null,"短期入所生活介護",null,null,null,null,null,null,null,"短期入所生活介護",null,null,null,null,null,null,null,"短期入所生活介護",null,null,null,null,null,null,null,"短期入所生活介護",null,null,null,null,null,null,null,"短期入所生活介護",null,null,null,null,null,null,null,"短期入所生活介護",null,null,null,null,null,null,null,"短期入所生活介護",null,null,null,null,null,null,null,"短期入所生活介護",null,null,null,null,null,null,null,"短期入所生活介護",null,null,null,null,null,null,null,"短期入所生活介護",null,null,null,null,null,null,null,"短期入所生活介護",null,null,null,null,null,null,null,"短期入所生活介護",null,null,null,null,null,null,null,"短期入所生活介護",null,null,null,null,null,null,null,"短期入所生活介護",null,null,null,null,null,null,null,"短期入所生活介護",null,null,null,null,null,null,null,"短期入所生活介護",null,null,null,null,null,null,null,"短期入所生活介護",null,null,null,null,null,null,null,"短期入所生活介護",null,null,null,null,null,null,null,"短期入所生活介護",null,null,null,null,null,null,null,"短期入所生活介護",null,null,null,null,null,null,null,"短期入所生活介護",null,null,null,null,null,null,null,"短期入所生活介護",null,null,null,null,null,null,null,"短期入所生活介護",null,null,null,null,null,null,null,"短期入所生活介護",null,null,null,null,null,null,null,"短期入所生活介護",null,null,null,null,null,null,null,"短期入所生活介護",null,null,null,null,null,null,null,"短期入所生活介護",null,null,null,null,null,null,null,"短期入所生活介護",null,null,null,null,null,null,null,"短期入所生活介護",null,null,null,null,null,null,null,"短期入所生活介護",null,null,null,null,null,null,null,"短期入所生活介護",null,null,null,null,null,null,null,"短期入所生活介護",null,null,null,null,null,null,null,"短期入所生活介護",null,null,null,null,null,null,null,"短期入所生活介護",null,null,null,null,null,null,null,"短期入所生活介護",null,null,null,null,null,null,null,"短期入所生活介護",null,null,null,null,null,null,null,"短期入所生活介護",null,null,null,null,null,null,null,"短期入所生活介護",null,null,null,null,null,null,null,"短期入所生活介護",null,null,null,null,null,null,null,"短期入所生活介護",null,null,null,null,null,null,null,"短期入所生活介護",null,null,null,null,null,null,null,"短期入所生活介護",null,null,null,null,null,null,null,"短期入所生活介護",null,null,null,null,null,null,null,"短期入所生活介護",null,null,null,null,null,null,null,"短期入所生活介護",null,null,null,null,null,null,null,"短期入所生活介護",null,null,null,null,null,null,null,"短期入所生活介護",null,null,null,null,null,null,null,"短期入所生活介護",null,null,null,null,null,null,null,"短期入所生活介護",null,null,null,null,null,null,null,"短期入所生活介護",null,null,null,null,null,null,null,"短期入所生活介護",null,null,null,null,null,null,null,"短期入所生活介護",null,null,null,null,null,null,null,"短期入所生活介護",null,null,null,null,null,null,null,"短期入所生活介護",null,null,null,null,null,null,null,"短期入所生活介護",null,null,null,null,null,null,null,"短期入所生活介護",null,null,null,null,null,null,null,"短期入所生活介護",null,null,null,null,null,null,null,"短期入所生活介護",null,null,null,null,null,null,null,"短期入所生活介護",null,null,null,null,null,null,null,"短期入所生活介護",null,null,null,null,null,null,null,"短期入所生活介護",null,null,null,null,null,null,null,"短期入所生活介護",null,null,null,null,null,null,null,"短期入所生活介護",null,null,null,null,null,null,null,"短期入所生活介護",null,null,null,null,null,null,null,"短期入所生活介護",null,null,null,null,null,null,null,"短期入所生活介護",null,null,null,null,null,null,null,"短期入所生活介護",null,null,null,null,null,null,null,"短期入所生活介護",null,null,null,null,null,null,null,"短期入所生活介護",null,null,null,null,null,null,null,"短期入所生活介護",null,null,null,null,null,null,null,"短期入所生活介護",null,null,null,null,null,null,null,"短期入所生活介護",null,null,null,null,null,null,null,"短期入所生活介護",null,null,null,null,null,null,null,"短期入所生活介護",null,null,null,null,null,null,null,"短期入所生活介護",null,null,null,null,null,null,null,"短期入所生活介護",null,null,null,null,null,null,null,"短期入所生活介護",null,null,null,null,null,null,null,"短期入所生活介護",null,null,null,null,null,null,null,"短期入所生活介護",null,null,null,null,null,null,null,"短期入所生活介護",null,null,null,null,null,null,null,"短期入所生活介護",null,null,null,null,null,null,null,"短期入所生活介護",null,null,null,null,null,null,null,"短期入所生活介護",null,null,null,null,null,null,null,"短期入所生活介護",null,null,null,null,null,null,null,"短期入所生活介護",null,null,null,null,null,null,null,"短期入所生活介護",null,null,null,null,null,null,null,"短期入所生活介護",null,null,null,null,null,null,null,"短期入所生活介護",null,null,null,null,null,null,null,"短期入所生活介護",null,null,null,null,null,null,null,"短期入所生活介護",null,null,null,null,null,null,null,"短期入所生活介護",null,null,null,null,null,null,null,"短期入所生活介護",null,null,null,null,null,null,null,"短期入所生活介護",null,null,null,null,null,null,null,"短期入所生活介護",null,null,null,null,null,null,null,"短期入所生活介護",null,null,null,null,null,null,null,"短期入所生活介護",null,null,null,null,null,null,null,"短期入所生活介護",null,null,null,null,null,null,null,"短期入所生活介護",null,null,null,null,null,null,null,"短期入所生活介護",null,null,null,null,null,null,null,"短期入所生活介護",null,null,null,null,null,null,null,"短期入所生活介護",null,null,null,null,null,null,null,"短期入所生活介護",null,null,null,null,null,null,null,"短期入所生活介護",null,null,null,null,null,null,null,"短期入所生活介護",null,null,null,null,null,null,null,"短期入所生活介護",null,null,null,null,null,null,null,"短期入所生活介護",null,null,null,null,null,null,null,"短期入所生活介護",null,null,null,null,null,null,null,"短期入所生活介護",null,null,null,null,null,null,null,"短期入所生活介護",null,null,null,null,null,null,null,"短期入所生活介護",null,null,null,null,null,null,null,"短期入所生活介護",null,null,null,null,null,null,null,"短期入所生活介護",null,null,null,null,null,null,null,"短期入所生活介護",null,null,null,null,null,null,null,"短期入所生活介護",null,null,null,null,null,null,null,"短期入所生活介護",null,null,null,null,null,null,null,"短期入所生活介護",null,null,null,null,null,null,null,"短期入所生活介護",null,null,null,null,null,null,null,"短期入所生活介護",null,null,null,null,null,null,null,"短期入所生活介護",null,null,null,null,null,null,null,"短期入所生活介護",null,null,null,null,null,null,null,"短期入所生活介護",null,null,null,null,null,null,null,"短期入所生活介護",null,null,null,null,null,null,null,"短期入所生活介護",null,null,null,null,null,null,null,"短期入所生活介護",null,null,null,null,null,null,null,"短期入所生活介護",null,null,null,null,null,null,null,"短期入所生活介護",null,null,null,null,null,null,null,"短期入所生活介護",null,null,null,null,null,null,null,"短期入所生活介護",null,null,null,null,null,null,null,"短期入所生活介護",null,null,null,null,null,null,null,"短期入所生活介護",null,null,null,null,null,null,null,"短期入所生活介護",null,null,null,null,null,null,null,"短期入所生活介護",null,null,null,null,null,null,null,"短期入所生活介護",null,null,null,null,null,null,null,"短期入所生活介護",null,null,null,null,null,null,null,"短期入所生活介護",null,null,null,null,null,null,null,"短期入所生活介護",null,null,null,null,null,null,null,"短期入所生活介護",null,null,null,null,null,null,null,"短期入所生活介護",null,null,null,null,null,null,null,"短期入所生活介護",null,null,null,null,null,null,null,"短期入所生活介護",null,null,null,null,null,null,null,"短期入所生活介護",null,null,null,null,null,null,null,"短期入所生活介護",null,null,null,null,null,null,null,"短期入所生活介護",null,null,null,null,null,null,null,"短期入所生活介護",null,null,null,null,null,null,null,"短期入所生活介護",null,null,null,null,null,null,null,"短期入所生活介護",null,null,null,null,null,null,null,"短期入所生活介護",null,null,null,null,null,null,null,"短期入所生活介護",null,null,null,null,null,null,null,"短期入所生活介護",null,null,null,null,null,null,null,"短期入所生活介護",null,null,null,null,null,null,null,"短期入所生活介護",null,null,null,null,null,null,null,"短期入所生活介護",null,null,null,null,null,null,null,"短期入所生活介護",null,null,null,null,null,null,null,"短期入所生活介護",null,null,null,null,null,null,null,"短期入所生活介護",null,null,null,null,null,null,null,"短期入所生活介護",null,null,null,null,null,null,null,"短期入所生活介護",null,null,null,null,null,null,null,"短期入所生活介護",null,null,null,null,null,null,null,"短期入所生活介護",null,null,null,null,null,null,null,"短期入所生活介護",null,null,null,null,null,null,null,"短期入所生活介護",null,null,null,null,null,null,null,"短期入所生活介護",null,null,null,null,null,null,null,"短期入所生活介護",null,null,null,null,null,null,null,"短期入所生活介護",null,null,null,null,null,null,null,"短期入所生活介護",null,null,null,null,null,null,null,"短期入所生活介護",null,null,null,null,null,null,null,"短期入所生活介護",null,null,null,null,null,null,null,"短期入所生活介護",null,null,null,null,null,null,null,"短期入所生活介護",null,null,null,null,null,null,null,"短期入所生活介護",null,null,null,null,null,null,null,"短期入所生活介護",null,null,null,null,null,null,null,"短期入所生活介護",null,null,null,null,null,null,null,"短期入所生活介護",null,null,null,null,null,null,null,"短期入所生活介護",null,null,null,null,null,null,null,"短期入所生活介護",null,null,null,null,null,null,null,"短期入所生活介護",null,null,null,null,null,null,null,"短期入所生活介護",null,null,null,null,null,null,null,"短期入所生活介護",null,null,null,null,null,null,null,"短期入所生活介護",null,null,null,null,null,null,null,"短期入所生活介護",null,null,null,null,null,null,null,"短期入所生活介護",null,null,null,null,null,null,null,"短期入所生活介護",null,null,null,null,null,null,null,"短期入所生活介護",null,null,null,null,null,null,null,"短期入所生活介護",null,null,null,null,null,null,null,"短期入所生活介護",null,null,null,null,null,null,null,"短期入所生活介護",null,null,null,null,null,null,null,"短期入所生活介護",null,null,null,null,null,null,null,"短期入所生活介護",null,null,null,null,null,null,null,"短期入所生活介護",null,null,null,null,null,null,null,"短期入所生活介護",null,null,null,null,null,null,null,"短期入所生活介護",null,null,null,null,null,null,null,"短期入所生活介護",null,null,null,null,null,null,null,"短期入所生活介護",null,null,null,null,null,null,null,"短期入所生活介護",null,null,null,null,null,null,null,"短期入所生活介護",null,null,null,null,null,null,null,"短期入所生活介護",null,null,null,null,null,null,null,"短期入所生活介護",null,null,null,null,null,null,null,"短期入所生活介護",null,null,null,null,null,null,null,"短期入所生活介護",null,null,null,null,null,null,null,"短期入所生活介護",null,null,null,null,null,null,null,"短期入所生活介護",null,null,null,null,null,null,null,"短期入所生活介護",null,null,null,null,null,null,null,"短期入所生活介護",null,null,null,null,null,null,null,"短期入所生活介護",null,null,null,null,null,null,null,"短期入所生活介護",null,null,null,null,null,null,null,"短期入所生活介護",null,null,null,null,null,null,null,"短期入所生活介護",null,null,null,null,null,null,null,"短期入所生活介護",null,null,null,null,null,null,null,"短期入所生活介護",null,null,null,null,null,null,null,"短期入所生活介護",null,null,null,null,null,null,null,"短期入所生活介護",null,null,null,null,null,null,null,"短期入所生活介護",null,null,null,null,null,null,null,"短期入所生活介護",null,null,null,null,null,null,null,"短期入所生活介護",null,null,null,null,null,null,null,"短期入所生活介護",null,null,null,null,null,null,null,"短期入所生活介護",null,null,null,null,null,null,null,"短期入所生活介護",null,null,null,null,null,null,null,"短期入所生活介護",null,null,null,null,null,null,null,"短期入所生活介護",null,null,null,null,null,null,null,"短期入所生活介護",null,null,null,null,null,null,null,"短期入所生活介護",null,null,null,null,null,null,null,"短期入所生活介護",null,null,null,null,null,null,null,"短期入所生活介護",null,null,null,null,null,null,null,"短期入所生活介護",null,null,null,null,null,null,null,"短期入所生活介護",null,null,null,null,null,null,null,"短期入所生活介護",null,null,null,null,null,null,null,"短期入所生活介護",null,null,null,null,null,null,null,"短期入所生活介護",null,null,null,null,null,null,null,"短期入所生活介護",null,null,null,null,null,null,null,"短期入所生活介護",null,null,null,null,null,null,null,"短期入所生活介護",null,null,null,null,null,null,null,"短期入所生活介護",null,null,null,null,null,null,null,"短期入所生活介護",null,null,null,null,null,null,null,"短期入所生活介護",null,null,null,null,null,null,null,"短期入所生活介護",null,null,null,null,null,null,null,"短期入所生活介護",null,null,null,null,null,null,null,"短期入所生活介護",null,null,null,null,null,null,null,"短期入所生活介護",null,null,null,null,null,null,null,"短期入所生活介護",null,null,null,null,null,null,null,"短期入所生活介護",null,null,null,null,null,null,null,"短期入所生活介護",null,null,null,null,null,null,null,"短期入所生活介護",null,null,null,null,null,null,null,"短期入所生活介護",null,null,null,null,null,null,null,"短期入所生活介護",null,null,null,null,null,null,null,"短期入所生活介護",null,null,null,null,null,null,null,"短期入所生活介護",null,null,null,null,null,null,null,"短期入所生活介護",null,null,null,null,null,null,null,"短期入所生活介護",null,null,null,null,null,null,null,"短期入所生活介護",null,null,null,null,null,null,null,"短期入所生活介護",null,null,null,null,null,null,null,"短期入所生活介護",null,null,null,null,null,null,null,"短期入所生活介護",null,null,null,null,null,null,null,"短期入所生活介護",null,null,null,null,null,null,null,"短期入所生活介護",null,null,null,null,null,null,null,"短期入所生活介護",null,null,null,null,null,null,null,"短期入所生活介護",null,null,null,null,null,null,null,"短期入所生活介護",null,null,null,null,null,null,null,"短期入所生活介護",null,null,null,null,null,null,null,"短期入所生活介護",null,null,null,null,null,null,null,"短期入所生活介護",null,null,null,null,null,null,null,"短期入所生活介護",null,null,null,null,null,null,null,"短期入所生活介護",null,null,null,null,null,null,null,"短期入所生活介護",null,null,null,null,null,null,null,"短期入所生活介護",null,null,null,null,null,null,null,"短期入所生活介護",null,null,null,null,null,null,null,"短期入所生活介護",null,null,null,null,null,null,null,"短期入所生活介護",null,null,null,null,null,null,null,"短期入所生活介護",null,null,null,null,null,null,null,"短期入所生活介護",null,null,null,null,null,null,null,"短期入所生活介護",null,null,null,null,null,null,null,"短期入所生活介護",null,null,null,null,null,null,null,"短期入所生活介護",null,null,null,null,null,null,null,"短期入所生活介護",null,null,null,null,null,null,null,"短期入所生活介護",null,null,null,null,null,null,null,"短期入所生活介護",null,null,null,null,null,null,null,"短期入所生活介護",null,null,null,null,null,null,null,"短期入所生活介護",null,null,null,null,null,null,null,"短期入所生活介護",null,null,null,null,null,null,null,"短期入所生活介護",null,null,null,null,null,null,null,"短期入所生活介護",null,null,null,null,null,null,null,"短期入所生活介護",null,null,null,null,null,null,null,"短期入所生活介護",null,null,null,null,null,null,null,"短期入所生活介護",null,null,null,null,null,null,null,"短期入所生活介護",null,null,null,null,null,null,null,"短期入所生活介護",null,null,null,null,null,null,null,"短期入所生活介護",null,null,null,null,null,null,null,"短期入所生活介護",null,null,null,null,null,null,null,"短期入所生活介護",null,null,null,null,null,null,null,"短期入所生活介護",null,null,null,null,null,null,null,"短期入所生活介護",null,null,null,null,null,null,null,"短期入所生活介護",null,null,null,null,null,null,null,"短期入所生活介護",null,null,null,null,null,null,null,"短期入所生活介護",null,null,null,null,null,null,null,"短期入所生活介護",null,null,null,null,null,null,null,"短期入所生活介護",null,null,null,null,null,null,null,"短期入所生活介護",null,null,null,null,null,null,null,"短期入所生活介護",null,null,null,null,null,null,null,"短期入所生活介護",null,null,null,null,null,null,null,"短期入所生活介護",null,null,null,null,null,null,null,"短期入所生活介護",null,null,null,null,null,null,null,"短期入所生活介護",null,null,null,null,null,null,null,"短期入所生活介護",null,null,null,null,null,null,null,"短期入所生活介護",null,null,null,null,null,null,null,"短期入所生活介護",null,null,null,null,null,null,null,"短期入所生活介護",null,null,null,null,null,null,null,"短期入所生活介護",null,null,null,null,null,null,null,"短期入所生活介護",null,null,null,null,null,null,null,"短期入所生活介護",null,null,null,null,null,null,null,"短期入所生活介護",null,null,null,null,null,null,null,"短期入所生活介護",null,null,null,null,null,null,null,"短期入所生活介護",null,null,null,null,null,null,null,"短期入所生活介護",null,null,null,null,null,null,null,"短期入所生活介護",null,null,null,null,null,null,null,"短期入所生活介護",null,null,null,null,null,null,null,"短期入所生活介護",null,null,null,null,null,null,null,"短期入所生活介護",null,null,null,null,null,null,null,"短期入所生活介護",null,null,null,null,null,null,null,"短期入所生活介護",null,null,null,null,null,null,null,"短期入所生活介護",null,null,null,null,null,null,null,"短期入所生活介護",null,null,null,null,null,null,null,"短期入所生活介護",null,null,null,null,null,null,null,"短期入所生活介護",null,null,null,null,null,null,null,"短期入所生活介護",null,null,null,null,null,null,null,"短期入所生活介護",null,null,null,null,null,null,null,"短期入所生活介護",null,null,null,null,null,null,null,"短期入所生活介護",null,null,null,null,null,null,null,"短期入所生活介護",null,null,null,null,null,null,null,"短期入所生活介護",null,null,null,null,null,null,null,"短期入所生活介護",null,null,null,null,null,null,null,"短期入所生活介護",null,null,null,null,null,null,null,"短期入所生活介護",null,null,null,null,null,null,null,"短期入所生活介護",null,null,null,null,null,null,null,"短期入所生活介護",null,null,null,null,null,null,null,"短期入所生活介護",null,null,null,null,null,null,null,"短期入所生活介護",null,null,null,null,null,null,null,"短期入所生活介護",null,null,null,null,null,null,null,"短期入所生活介護",null,null,null,null,null,null,null,"短期入所生活介護",null,null,null,null,null,null,null,"短期入所生活介護",null,null,null,null,null,null,null,"短期入所生活介護",null,null,null,null,null,null,null,"短期入所生活介護",null,null,null,null,null,null,null,"短期入所生活介護",null,null,null,null,null,null,null,"短期入所生活介護",null,null,null,null,null,null,null,"短期入所生活介護",null,null,null,null,null,null,null,"短期入所生活介護",null,null,null,null,null,null,null,"短期入所生活介護",null,null,null,null,null,null,null,"短期入所生活介護",null,null,null,null,null,null,null,"短期入所生活介護",null,null,null,null,null,null,null,"短期入所生活介護",null,null,null,null,null,null,null,"短期入所生活介護",null,null,null,null,null,null,null,"短期入所生活介護",null,null,null,null,null,null,null,"短期入所生活介護",null,null,null,null,null,null,null,"短期入所生活介護",null,null,null,null,null,null,null,"短期入所生活介護",null,null,null,null,null,null,null,"短期入所生活介護",null,null,null,null,null,null,null,"短期入所生活介護",null,null,null,null,null,null,null,"短期入所生活介護",null,null,null,null,null,null,null,"短期入所生活介護",null,null,null,null,null,null,null,"短期入所生活介護",null,null,null,null,null,null,null,"短期入所生活介護",null,null,null,null,null,null,null,"短期入所生活介護",null,null,null,null,null,null,null,"短期入所生活介護",null,null,null,null,null,null,null,"短期入所生活介護",null,null,null,null,null,null,null,"短期入所生活介護",null,null,null,null,null,null,null,"短期入所生活介護",null,null,null,null,null,null,null,"短期入所生活介護",null,null,null,null,null,null,null,"短期入所生活介護",null,null,null,null,null,null,null,"短期入所生活介護",null,null,null,null,null,null,null,"短期入所生活介護",null,null,null,null,null,null,null,"短期入所生活介護",null,null,null,null,null,null,null,"短期入所生活介護",null,null,null,null,null,null,null,"短期入所生活介護",null,null,null,null,null,null,null,"短期入所生活介護",null,null,null,null,null,null,null,"短期入所生活介護",null,null,null,null,null,null,null,"短期入所生活介護",null,null,null,null,null,null,null,"短期入所生活介護",null,null,null,null,null,null,null,"短期入所生活介護",null,null,null,null,null,null,null,"短期入所生活介護",null,null,null,null,null,null,null,"短期入所生活介護",null,null,null,null,null,null,null,"短期入所生活介護",null,null,null,null,null,null,null,"短期入所生活介護",null,null,null,null,null,null,null,"短期入所生活介護",null,null,null,null,null,null,null,"短期入所生活介護",null,null,null,null,null,null,null,"短期入所生活介護",null,null,null,null,null,null,null,"短期入所生活介護",null,null,null,null,null,null,null,"短期入所生活介護",null,null,null,null,null,null,null,"短期入所生活介護",null,null,null,null,null,null,null,"短期入所生活介護",null,null,null,null,null,null,null,"短期入所生活介護",null,null,null,null,null,null,null,"短期入所生活介護",null,null,null,null,null,null,null,"短期入所生活介護",null,null,null,null,null,null,null,"短期入所生活介護",null,null,null,null,null,null,null,"短期入所生活介護",null,null,null,null,null,null,null,"短期入所生活介護",null,null,null,null,null,null,null,"短期入所生活介護",null,null,null,null,null,null,null,"短期入所生活介護",null,null,null,null,null,null,null,"短期入所生活介護",null,null,null,null,null,null,null,"短期入所生活介護",null,null,null,null,null,null,null,"短期入所生活介護",null,null,null,null,null,null,null,"短期入所生活介護",null,null,null,null,null,null,null,"短期入所生活介護",null,null,null,null,null,null,null,"短期入所生活介護",null,null,null,null,null,null,null,"短期入所生活介護",null,null,null,null,null,null,null,"短期入所生活介護",null,null,null,null,null,null,null,"短期入所生活介護",null,null,null,null,null,null,null,"短期入所生活介護",null,null,null,null,null,null,null,"短期入所生活介護",null,null,null,null,null,null,null,"短期入所生活介護",null,null,null,null,null,null,null,"短期入所生活介護",null,null,null,null,null,null,null,"短期入所生活介護",null,null,null,null,null,null,null,"短期入所生活介護",null,null,null,null,null,null,null,"短期入所生活介護",null,null,null,null,null,null,null,"短期入所生活介護",null,null,null,null,null,null,null,"短期入所生活介護",null,null,null,null,null,null,null,"短期入所生活介護",null,null,null,null,null,null,null,"短期入所生活介護",null,null,null,null,null,null,null,"短期入所生活介護",null,null,null,null,null,null,null,"短期入所生活介護",null,null,null,null,null,null,null,"短期入所生活介護",null,null,null,null,null,null,null,"短期入所生活介護",null,null,null,null,null,null,null,"短期入所生活介護",null,null,null,null,null,null,null,"短期入所生活介護",null,null,null,null,null,null,null,"短期入所生活介護",null,null,null,null,null,null,null,"短期入所生活介護",null,null,null,null,null,null,null,"短期入所生活介護",null,null,null,null,null,null,null,"短期入所生活介護",null,null,null,null,null,null,null,"短期入所生活介護",null,null,null,null,null,null,null,"短期入所生活介護",null,null,null,null,null,null,null,"短期入所生活介護",null,null,null,null,null,null,null,"短期入所生活介護",null,null,null,null,null,null,null,"短期入所生活介護",null,null,null,null,null,null,null,"短期入所生活介護",null,null,null,null,null,null,null,"短期入所生活介護",null,null,null,null,null,null,null,"短期入所生活介護",null,null,null,null,null,null,null,"短期入所生活介護",null,null,null,null,null,null,null,"短期入所生活介護",null,null,null,null,null,null,null,"短期入所生活介護",null,null,null,null,null,null,null,"短期入所生活介護",null,null,null,null,null,null,null,"短期入所生活介護",null,null,null,null,null,null,null,"短期入所生活介護",null,null,null,null,null,null,null,"短期入所生活介護",null,null,null,null,null,null,null,"短期入所生活介護",null,null,null,null,null,null,null,"短期入所生活介護",null,null,null,null,null,null,null,"短期入所生活介護",null,null,null,null,null,null,null,"短期入所生活介護",null,null,null,null,null,null,null,"短期入所生活介護",null,null,null,null,null,null,null,"短期入所生活介護",null,null,null,null,null,null,null,"短期入所生活介護",null,null,null,null,null,null,null,"短期入所生活介護",null,null,null,null,null,null,null,"短期入所生活介護",null,null,null,null,null,null,null,"短期入所生活介護",null,null,null,null,null,null,null,"短期入所生活介護",null,null,null,null,null,null,null,"短期入所生活介護",null,null,null,null,null,null,null,"短期入所生活介護",null,null,null,null,null,null,null,"短期入所生活介護",null,null,null,null,null,null,null,"短期入所生活介護",null,null,null,null,null,null,null,"短期入所生活介護",null,null,null,null,null,null,null,"短期入所生活介護",null,null,null,null,null,null,null,"短期入所生活介護",null,null,null,null,null,null,null,"短期入所生活介護",null,null,null,null,null,null,null,"短期入所生活介護",null,null,null,null,null,null,null,"短期入所生活介護",null,null,null,null,null,null,null,"短期入所生活介護",null,null,null,null,null,null,null,"短期入所生活介護",null,null,null,null,null,null,null,"短期入所生活介護",null,null,null,null,null,null,null,"短期入所生活介護",null,null,null,null,null,null,null,"短期入所生活介護",null,null,null,null,null,null,null,"短期入所生活介護",null,null,null,null,null,null,null,"短期入所生活介護",null,null,null,null,null,null,null,"短期入所生活介護",null,null,null,null,null,null,null,"短期入所生活介護",null,null,null,null,null,null,null,"短期入所生活介護",null,null,null,null,null,null,null,"短期入所生活介護",null,null,null,null,null,null,null,"短期入所生活介護",null,null,null,null,null,null,null,"短期入所生活介護",null,null,null,null,null,null,null,"短期入所生活介護",null,null,null,null,null,null,null,"短期入所生活介護",null,null,null,null,null,null,null,"短期入所生活介護",null,null,null,null,null,null,null,"短期入所生活介護",null,null,null,null,null,null,null,"短期入所生活介護",null,null,null,null,null,null,null,"短期入所生活介護",null,null,null,null,null,null,null,"短期入所生活介護",null,null,null,null,null,null,null,"短期入所生活介護",null,null,null,null,null,null,null,"短期入所生活介護",null,null,null,null,null,null,null,"短期入所生活介護",null,null,null,null,null,null,null,"短期入所生活介護",null,null,null,null,null,null,null,"短期入所生活介護",null,null,null,null,null,null,null,"短期入所生活介護",null,null,null,null,null,null,null,"短期入所生活介護",null,null,null,null,null,null,null,"短期入所生活介護",null,null,null,null,null,null,null,"短期入所生活介護",null,null,null,null,null,null,null,"短期入所生活介護",null,null,null,null,null,null,null,"短期入所生活介護",null,null,null,null,null,null,null,"短期入所生活介護",null,null,null,null,null,null,null,"短期入所生活介護",null,null,null,null,null,null,null,"短期入所生活介護",null,null,null,null,null,null,null,"短期入所生活介護",null,null,null,null,null,null,null,"短期入所生活介護",null,null,null,null,null,null,null,"短期入所生活介護",null,null,null,null,null,null,null,"短期入所生活介護",null,null,null,null,null,null,null,"短期入所生活介護",null,null,null,null,null,null,null,"短期入所生活介護",null,null,null,null,null,null,null,"短期入所生活介護",null,null,null,null,null,null,null,"短期入所生活介護",null,null,null,null,null,null,null,"短期入所生活介護",null,null,null,null,null,null,null,"短期入所生活介護",null,null,null,null,null,null,null,"短期入所生活介護",null,null,null,null,null,null,null,"短期入所生活介護",null,null,null,null,null,null,null,"短期入所生活介護",null,null,null,null,null,null,null,"短期入所生活介護",null,null,null,null,null,null,null,"短期入所生活介護",null,null,null,null,null,null,null,"短期入所生活介護",null,null,null,null,null,null,null,"短期入所生活介護",null,null,null,null,null,null,null,"短期入所生活介護",null,null,null,null,null,null,null,"短期入所生活介護",null,null,null,null,null,null,null,"短期入所生活介護",null,null,null,null,null,null,null,"短期入所生活介護",null,null,null,null,null,null,null,"短期入所生活介護",null,null,null,null,null,null,null,"短期入所生活介護",null,null,null,null,null,null,null,"短期入所生活介護",null,null,null,null,null,null,null,"短期入所生活介護",null,null,null,null,null,null,null,"短期入所生活介護",null,null,null,null,null,null,null,"短期入所生活介護",null,null,null,null,null,null,null,"短期入所生活介護",null,null,null,null,null,null,null,"短期入所生活介護",null,null,null,null,null,null,null,"短期入所生活介護",null,null,null,null,null,null,null,"短期入所生活介護",null,null,null,null,null,null,null,"短期入所生活介護",null,null,null,null,null,null,null,"短期入所生活介護",null,null,null,null,null,null,null,"短期入所生活介護",null,null,null,null,null,null,null,"短期入所生活介護",null,null,null,null,null,null,null,"短期入所生活介護",null,null,null,null,null,null,null,"短期入所生活介護",null,null,null,null,null,null,null,"短期入所生活介護",null,null,null,null,null,null,null,"短期入所生活介護",null,null,null,null,null,null,null,"短期入所生活介護",null,null,null,null,null,null,null,"短期入所生活介護",null,null,null,null,null,null,null,"短期入所生活介護",null,null,null,null,null,null,null,"短期入所生活介護",null,null,null,null,null,null,null,"短期入所生活介護",null,null,null,null,null,null,null,"短期入所生活介護",null,null,null,null,null,null,null,"短期入所生活介護",null,null,null,null,null,null,null,"短期入所生活介護",null,null,null,null,null,null,null,"短期入所生活介護",null,null,null,null,null,null,null,"短期入所生活介護",null,null,null,null,null,null,null,"短期入所生活介護",null,null,null,null,null,null,null,"短期入所生活介護",null,null,null,null,null,null,null,"短期入所生活介護",null,null,null,null,null,null,null,"短期入所生活介護",null,null,null,null,null,null,null,"短期入所生活介護",null,null,null,null,null,null,null,"短期入所生活介護",null,null,null,null,null,null,null,"短期入所生活介護",null,null,null,null,null,null,null,"短期入所生活介護",null,null,null,null,null,null,null,"短期入所生活介護",null,null,null,null,null,null,null,"短期入所生活介護",null,null,null,null,null,null,null,"短期入所生活介護",null,null,null,null,null,null,null,"短期入所生活介護",null,null,null,null,null,null,null,"短期入所生活介護",null,null,null,null,null,null,null,"短期入所生活介護",null,null,null,null,null,null,null,"短期入所生活介護",null,null,null,null,null,null,null,"短期入所生活介護",null,null,null,null,null,null,null,"短期入所生活介護",null,null,null,null,null,null,null,"短期入所生活介護",null,null,null,null,null,null,null,"短期入所生活介護",null,null,null,null,null,null,null,"短期入所生活介護",null,null,null,null,null,null,null,"短期入所生活介護",null,null,null,null,null,null,null,"短期入所生活介護",null,null,null,null,null,null,null,"短期入所生活介護",null,null,null,null,null,null,null,"短期入所生活介護",null,null,null,null,null,null,null,"短期入所生活介護",null,null,null,null,null,null,null,"短期入所生活介護",null,null,null,null,null,null,null,"短期入所生活介護",null,null,null,null,null,null,null,"短期入所生活介護",null,null,null,null,null,null,null,"短期入所生活介護",null,null,null,null,null,null,null,"短期入所生活介護",null,null,null,null,null,null,null,"短期入所生活介護",null,null,null,null,null,null,null,"短期入所生活介護",null,null,null,null,null,null,null,"短期入所生活介護",null,null,null,null,null,null,null,"短期入所生活介護",null,null,null,null,null,null,null,"短期入所生活介護",null,null,null,null,null,null,null,"短期入所生活介護",null,null,null,null,null,null,null,"短期入所生活介護",null,null,null,null,null,null,null,"短期入所生活介護",null,null,null,null,null,null,null,"短期入所生活介護",null,null,null,null,null,null,null,"短期入所生活介護",null,null,null,null,null,null,null,"短期入所生活介護",null,null,null,null,null,null,null,"短期入所生活介護",null,null,null,null,null,null,null,"短期入所生活介護",null,null,null,null,null,null,null,"短期入所生活介護",null,null,null,null,null,null,null,"短期入所生活介護",null,null,null,null,null,null,null,"短期入所生活介護",null,null,null,null,null,null,null,"短期入所生活介護",null,null,null,null,null,null,null,"短期入所生活介護",null,null,null,null,null,null,null,"短期入所生活介護",null,null,null,null,null,null,null,"短期入所生活介護",null,null,null,null,null,null,null,"短期入所生活介護",null,null,null,null,null,null,null,"短期入所生活介護",null,null,null,null,null,null,null,"短期入所生活介護",null,null,null,null,null,null,null,"短期入所生活介護",null,null,null,null,null,null,null,"短期入所生活介護",null,null,null,null,null,null,null,"短期入所生活介護",null,null,null,null,null,null,null,"短期入所生活介護",null,null,null,null,null,null,null,"短期入所生活介護",null,null,null,null,null,null,null,"短期入所生活介護",null,null,null,null,null,null,null,"短期入所生活介護",null,null,null,null,null,null,null,"短期入所生活介護",null,null,null,null,null,null,null,"短期入所生活介護",null,null,null,null,null,null,null,"短期入所生活介護",null,null,null,null,null,null,null,"短期入所生活介護",null,null,null,null,null,null,null,"短期入所生活介護",null,null,null,null,null,null,null,"短期入所生活介護",null,null,null,null,null,null,null,"短期入所生活介護",null,null,null,null,null,null,null,"短期入所生活介護",null,null,null,null,null,null,null,"短期入所生活介護",null,null,null,null,null,null,null,"短期入所生活介護",null,null,null,null,null,null,null,"短期入所生活介護",null,null,null,null,null,null,null,"短期入所生活介護",null,null,null,null,null,null,null,"短期入所生活介護",null,null,null,null,null,null,null,"短期入所生活介護",null,null,null,null,null,null,null,"短期入所生活介護",null,null,null,null,null,null,null,"短期入所生活介護",null,null,null,null,null,null,null,"短期入所生活介護",null,null,null,null,null,null,null,"短期入所生活介護",null,null,null,null,null,null,null,"短期入所生活介護",null,null,null,null,null,null,null,"短期入所生活介護",null,null,null,null,null,null,null,"短期入所生活介護",null,null,null,null,null,null,null,"短期入所生活介護",null,null,null,null,null,null,null,"短期入所生活介護",null,null,null,null,null,null,null,"短期入所生活介護",null,null,null,null,null,null,null,"短期入所生活介護",null,null,null,null,null,null,null,"短期入所生活介護",null,null,null,null,null,null,null,"短期入所生活介護",null,null,null,null,null,null,null,"短期入所生活介護",null,null,null,null,null,null,null,"短期入所生活介護",null,null,null,null,null,null,null,"短期入所生活介護",null,null,null,null,null,null,null,"短期入所生活介護",null,null,null,null,null,null,null,"短期入所生活介護",null,null,null,null,null,null,null,"短期入所生活介護",null,null,null,null,null,null,null,"短期入所生活介護",null,null,null,null,null,null,null,"短期入所生活介護",null,null,null,null,null,null,null,"短期入所生活介護",null,null,null,null,null,null,null,"短期入所生活介護",null,null,null,null,null,null,null,"短期入所生活介護",null,null,null,null,null,null,null,"短期入所生活介護",null,null,null,null,null,null,null,"短期入所生活介護",null,null,null,null,null,null,null,"短期入所生活介護",null,null,null,null,null,null,null,"短期入所生活介護",null,null,null,null,null,null,null,"短期入所生活介護",null,null,null,null,null,null,null,"短期入所生活介護",null,null,null,null,null,null,null,"短期入所生活介護",null,null,null,null,null,null,null,"短期入所生活介護",null,null,null,null,null,null,null,"短期入所生活介護",null,null,null,null,null,null,null,"短期入所生活介護",null,null,null,null,null,null,null,"短期入所生活介護",null,null,null,null,null,null,null,"短期入所生活介護",null,null,null,null,null,null,null,"短期入所生活介護",null,null,null,null,null,null,null,"短期入所生活介護",null,null,null,null,null,null,null,"短期入所生活介護",null,null,null,null,null,null,null,"短期入所生活介護",null,null,null,null,null,null,null,"短期入所生活介護",null,null,null,null,null,null,null,"短期入所生活介護",null,null,null,null,null,null,null,"短期入所生活介護",null,null,null,null,null,null,null,"短期入所生活介護",null,null,null,null,null,null,null,"短期入所生活介護",null,null,null,null,null,null,null,"短期入所生活介護",null,null,null,null,null,null,null,"短期入所生活介護",null,null,null,null,null,null,null,"短期入所生活介護",null,null,null,null,null,null,null,"短期入所生活介護",null,null,null,null,null,null,null,"短期入所生活介護",null,null,null,null,null,null,null,"短期入所生活介護",null,null,null,null,null,null,null,"短期入所生活介護",null,null,null,null,null,null,null,"短期入所生活介護",null,null,null,null,null,null,null,"短期入所生活介護",null,null,null,null,null,null,null,"短期入所生活介護",null,null,null,null,null,null,null,"短期入所生活介護",null,null,null,null,null,null,null,"短期入所生活介護",null,null,null,null,null,null,null,"短期入所生活介護",null,null,null,null,null,null,null,"短期入所生活介護",null,null,null,null,null,null,null,"短期入所生活介護",null,null,null,null,null,null,null,"短期入所生活介護",null,null,null,null,null,null,null,"短期入所生活介護",null,null,null,null,null,null,null,"短期入所生活介護",null,null,null,null,null,null,null,"短期入所生活介護",null,null,null,null,null,null,null,"短期入所生活介護",null,null,null,null,null,null,null,"短期入所生活介護",null,null,null,null,null,null,null,"短期入所生活介護",null,null,null,null,null,null,null,"短期入所生活介護",null,null,null,null,null,null,null,"短期入所生活介護",null,null,null,null,null,null,null,"短期入所生活介護",null,null,null,null,null,null,null,"短期入所生活介護",null,null,null,null,null,null,null,"短期入所生活介護",null,null,null,null,null,null,null,"短期入所生活介護",null,null,null,null,null,null,null,"短期入所生活介護",null,null,null,null,null,null,null,"短期入所生活介護",null,null,null,null,null,null,null,"短期入所生活介護",null,null,null,null,null,null,null,"短期入所生活介護",null,null,null,null,null,null,null,"短期入所生活介護",null,null,null,null,null,null,null,"短期入所生活介護",null,null,null,null,null,null,null,"短期入所生活介護",null,null,null,null,null,null,null,"短期入所生活介護",null,null,null,null,null,null,null,"短期入所生活介護",null,null,null,null,null,null,null,"短期入所生活介護",null,null,null,null,null,null,null,"短期入所生活介護",null,null,null,null,null,null,null,"短期入所生活介護",null,null,null,null,null,null,null,"短期入所生活介護",null,null,null,null,null,null,null,"短期入所生活介護",null,null,null,null,null,null,null,"短期入所生活介護",null,null,null,null,null,null,null,"短期入所生活介護",null,null,null,null,null,null,null,"短期入所生活介護",null,null,null,null,null,null,null,"短期入所生活介護",null,null,null,null,null,null,null,"短期入所生活介護",null,null,null,null,null,null,null,"短期入所生活介護",null,null,null,null,null,null,null,"短期入所生活介護",null,null,null,null,null,null,null,"短期入所生活介護",null,null,null,null,null,null,null,"短期入所生活介護",null,null,null,null,null,null,null,"短期入所生活介護",null,null,null,null,null,null,null,"短期入所生活介護",null,null,null,null,null,null,null,"短期入所生活介護",null,null,null,null,null,null,null,"短期入所生活介護",null,null,null,null,null,null,null,"短期入所生活介護",null,null,null,null,null,null,null,"短期入所生活介護",null,null,null,null,null,null,null,"短期入所生活介護",null,null,null,null,null,null,null,"短期入所生活介護",null,null,null,null,null,null,null,"短期入所生活介護",null,null,null,null,null,null,null,"短期入所生活介護",null,null,null,null,null,null,null,"短期入所生活介護",null,null,null,null,null,null,null,"短期入所生活介護",null,null,null,null,null,null,null,"短期入所生活介護",null,null,null,null,null,null,null,"短期入所生活介護",null,null,null,null,null,null,null,"短期入所生活介護",null,null,null,null,null,null,null,"短期入所生活介護",null,null,null,null,null,null,null,"短期入所生活介護",null,null,null,null,null,null,null,"短期入所生活介護",null,null,null,null,null,null,null,"短期入所生活介護",null,null,null,null,null,null,null,"短期入所生活介護",null,null,null,null,null,null,null,"短期入所生活介護",null,null,null,null,null,null,null,"短期入所生活介護",null,null,null,null,null,null,null,"短期入所生活介護",null,null,null,null,null,null,null,"短期入所生活介護",null,null,null,null,null,null,null,"短期入所生活介護",null,null,null,null,null,null,null,"短期入所生活介護",null,null,null,null,null,null,null,"短期入所生活介護",null,null,null,null,null,null,null,"短期入所生活介護",null,null,null,null,null,null,null,"短期入所生活介護",null,null,null,null,null,null,null,"短期入所生活介護",null,null,null,null,null,null,null,"短期入所生活介護",null,null,null,null,null,null,null,"短期入所生活介護",null,null,null,null,null,null,null,"短期入所生活介護",null,null,null,null,null,null,null,"短期入所生活介護",null,null,null,null,null,null,null,"短期入所生活介護",null,null,null,null,null,null,null,"短期入所生活介護",null,null,null,null,null,null,null,"短期入所生活介護",null,null,null,null,null,null,null,"短期入所生活介護",null,null,null,null,null,null,null,"短期入所生活介護",null,null,null,null,null,null,null,"短期入所生活介護",null,null,null,null,null,null,null,"短期入所生活介護",null,null,null,null,null,null,null,"短期入所生活介護",null,null,null,null,null,null,null,"短期入所生活介護",null,null,null,null,null,null,null,"短期入所生活介護",null,null,null,null,null,null,null,"短期入所生活介護",null,null,null,null,null,null,null,"短期入所生活介護",null,null,null,null,null,null,null,"短期入所生活介護",null,null,null,null,null,null,null,"短期入所生活介護",null,null,null,null,null,null,null,"短期入所生活介護",null,null,null,null,null,null,null,"短期入所生活介護",null,null,null,null,null,null,null,"短期入所生活介護",null,null,null,null,null,null,null,"短期入所生活介護",null,null,null,null,null,null,null,"短期入所生活介護",null,null,null,null,null,null,null,"短期入所生活介護",null,null,null,null,null,null,null,"短期入所生活介護",null,null,null,null,null,null,null,"短期入所生活介護",null,null,null,null,null,null,null,"短期入所生活介護",null,null,null,null,null,null,null,"短期入所生活介護",null,null,null,null,null,null,null,"短期入所生活介護",null,null,null,null,null,null,null,"短期入所生活介護",null,null,null,null,null,null,null,"短期入所生活介護",null,null,null,null,null,null,null,"短期入所生活介護",null,null,null,null,null,null,null,"短期入所生活介護",null,null,null,null,null,null,null,"短期入所生活介護",null,null,null,null,null,null,null,"短期入所生活介護",null,null,null,null,null,null,null,"短期入所生活介護",null,null,null,null,null,null,null,"短期入所生活介護",null,null,null,null,null,null,null,"短期入所生活介護",null,null,null,null,null,null,null,"短期入所生活介護",null,null,null,null,null,null,null,"短期入所生活介護",null,null,null,null,null,null,null,"短期入所生活介護",null,null,null,null,null,null,null,"短期入所生活介護",null,null,null,null,null,null,null,"短期入所生活介護",null,null,null,null,null,null,null,"短期入所生活介護",null,null,null,null,null,null,null,"短期入所生活介護",null,null,null,null,null,null,null,"短期入所生活介護",null,null,null,null,null,null,null,"短期入所生活介護",null,null,null,null,null,null,null,"短期入所生活介護",null,null,null,null,null,null,null,"短期入所生活介護",null,null,null,null,null,null,null,"短期入所生活介護",null,null,null,null,null,null,null,"短期入所生活介護",null,null,null,null,null,null,null,"短期入所生活介護",null,null,null,null,null,null,null,"短期入所生活介護",null,null,null,null,null,null,null,"短期入所生活介護",null,null,null,null,null,null,null,"短期入所生活介護",null,null,null,null,null,null,null,"短期入所生活介護",null,null,null,null,null,null,null,"短期入所生活介護",null,null,null,null,null,null,null,"短期入所生活介護",null,null,null,null,null,null,null,"短期入所生活介護",null,null,null,null,null,null,null,"短期入所生活介護",null,null,null,null,null,null,null,"短期入所生活介護",null,null,null,null,null,null,null,"短期入所生活介護",null,null,null,null,null,null,null,"短期入所生活介護",null,null,null,null,null,null,null,"短期入所生活介護",null,null,null,null,null,null,null,"短期入所生活介護",null,null,null,null,null,null,null,"短期入所生活介護",null,null,null,null,null,null,null,"短期入所生活介護",null,null,null,null,null,null,null,"短期入所生活介護",null,null,null,null,null,null,null,"短期入所生活介護",null,null,null,null,null,null,null,"短期入所生活介護",null,null,null,null,null,null,null,"短期入所生活介護",null,null,null,null,null,null,null,"短期入所生活介護",null,null,null,null,null,null,null,"短期入所生活介護",null,null,null,null,null,null,null,"短期入所生活介護",null,null,null,null,null,null,null,"短期入所生活介護",null,null,null,null,null,null,null,"短期入所生活介護",null,null,null,null,null,null,null,"短期入所生活介護",null,null,null,null,null,null,null,"短期入所生活介護",null,null,null,null,null,null,null,"短期入所生活介護",null,null,null,null,null,null,null,"短期入所生活介護",null,null,null,null,null,null,null,"短期入所生活介護",null,null,null,null,null,null,null,"短期入所生活介護",null,null,null,null,null,null,null,"短期入所生活介護",null,null,null,null,null,null,null,"短期入所生活介護",null,null,null,null,null,null,null,"短期入所生活介護",null,null,null,null,null,null,null,"短期入所生活介護",null,null,null,null,null,null,null,"短期入所生活介護",null,null,null,null,null,null,null,"短期入所生活介護",null,null,null,null,null,null,null,"短期入所生活介護",null,null,null,null,null,null,null,"短期入所生活介護",null,null,null,null,null,null,null,"短期入所生活介護",null,null,null,null,null,null,null,"短期入所生活介護",null,null,null,null,null,null,null,"短期入所生活介護",null,null,null,null,null,null,null,"短期入所生活介護",null,null,null,null,null,null,null,"短期入所生活介護",null,null,null,null,null,null,null,"短期入所生活介護",null,null,null,null,null,null,null,"短期入所生活介護",null,null,null,null,null,null,null,"短期入所生活介護",null,null,null,null,null,null,null,"短期入所生活介護",null,null,null,null,null,null,null,"短期入所生活介護",null,null,null,null,null,null,null,"短期入所生活介護",null,null,null,null,null,null,null,"短期入所生活介護",null,null,null,null,null,null,null,"短期入所生活介護",null,null,null,null,null,null,null,"短期入所生活介護",null,null,null,null,null,null,null,"短期入所生活介護",null,null,null,null,null,null,null,"短期入所生活介護",null,null,null,null,null,null,null,"短期入所生活介護",null,null,null,null,null,null,null,"短期入所生活介護",null,null,null,null,null,null,null,"短期入所生活介護",null,null,null,null,null,null,null,"短期入所生活介護",null,null,null,null,null,null,null,"短期入所生活介護",null,null,null,null,null,null,null,"短期入所生活介護",null,null,null,null,null,null,null,"短期入所生活介護",null,null,null,null,null,null,null,"短期入所生活介護",null,null,null,null,null,null,null,"短期入所生活介護",null,null,null,null,null,null,null,"短期入所生活介護",null,null,null,null,null,null,null,"短期入所生活介護",null,null,null,null,null,null,null,"短期入所生活介護",null,null,null,null,null,null,null,"短期入所生活介護",null,null,null,null,null,null,null,"短期入所生活介護",null,null,null,null,null,null,null,"短期入所生活介護",null,null,null,null,null,null,null,"短期入所生活介護",null,null,null,null,null,null,null,"短期入所生活介護",null,null,null,null,null,null,null,"短期入所生活介護",null,null,null,null,null,null,null,"短期入所生活介護",null,null,null,null,null,null,null,"短期入所生活介護",null,null,null,null,null,null,null,"短期入所生活介護",null,null,null,null,null,null,null,"短期入所生活介護",null,null,null,null,null,null,null,"短期入所生活介護",null,null,null,null,null,null,null,"短期入所生活介護",null,null,null,null,null,null,null,"短期入所生活介護",null,null,null,null,null,null,null,"短期入所生活介護",null,null,null,null,null,null,null,"短期入所生活介護",null,null,null,null,null,null,null,"短期入所生活介護",null,null,null,null,null,null,null,"短期入所生活介護",null,null,null,null,null,null,null,"短期入所生活介護",null,null,null,null,null,null,null,"短期入所生活介護",null,null,null,null,null,null,null,"短期入所生活介護",null,null,null,null,null,null,null,"短期入所生活介護",null,null,null,null,null,null,null,"短期入所生活介護",null,null,null,null,null,null,null,"短期入所生活介護",null,null,null,null,null,null,null,"短期入所生活介護",null,null,null,null,null,null,null,"短期入所生活介護",null,null,null,null,null,null,null,"短期入所生活介護",null,null,null,null,null,null,null,"短期入所生活介護",null,null,null,null,null,null,null,"短期入所生活介護",null,null,null,null,null,null,null,"短期入所生活介護",null,null,null,null,null,null,null,"短期入所生活介護",null,null,null,null,null,null,null,"短期入所生活介護",null,null,null,null,null,null,null,"短期入所生活介護",null,null,null,null,null,null,null,"短期入所生活介護",null,null,null,null,null,null,null,"短期入所生活介護",null,null,null,null,null,null,null,"短期入所生活介護",null,null,null,null,null,null,null,"短期入所生活介護",null,null,null,null,null,null,null,"短期入所生活介護",null,null,null,null,null,null,null,"短期入所生活介護",null,null,null,null,null,null,null,"短期入所生活介護",null,null,null,null,null,null,null,"短期入所生活介護",null,null,null,null,null,null,null,"短期入所生活介護",null,null,null,null,null,null,null,"短期入所生活介護",null,null,null,null,null,null,null,"短期入所生活介護",null,null,null,null,null,null,null,"短期入所生活介護",null,null,null,null,null,null,null,"短期入所生活介護",null,null,null,null,null,null,null,"短期入所生活介護",null,null,null,null,null,null,null,"短期入所生活介護",null,null,null,null,null,null,null,"短期入所生活介護",null,null,null,null,null,null,null,"短期入所生活介護",null,null,null,null,null,null,null,"短期入所生活介護",null,null,null,null,null,null,null,"短期入所生活介護",null,null,null,null,null,null,null,"短期入所生活介護",null,null,null,null,null,null,null,"短期入所生活介護",null,null,null,null,null,null,null,"短期入所生活介護",null,null,null,null,null,null,null,"短期入所生活介護",null,null,null,null,null,null,null,"短期入所生活介護",null,null,null,null,null,null,null,"短期入所生活介護",null,null,null,null,null,null,null,"短期入所生活介護",null,null,null,null,null,null,null,"短期入所生活介護",null,null,null,null,null,null,null,"短期入所生活介護",null,null,null,null,null,null,null,"短期入所生活介護",null,null,null,null,null,null,null,"短期入所生活介護",null,null,null,null,null,null,null,"短期入所生活介護",null,null,null,null,null,null,null,"短期入所生活介護",null,null,null,null,null,null,null,"短期入所生活介護",null,null,null,null,null,null,null,"短期入所生活介護",null,null,null,null,null,null,null,"短期入所生活介護",null,null,null,null,null,null,null,"短期入所生活介護",null,null,null,null,null,null,null,"短期入所生活介護",null,null,null,null,null,null,null,"短期入所生活介護",null,null,null,null,null,null,null,"短期入所生活介護",null,null,null,null,null,null,null,"短期入所生活介護",null,null,null,null,null,null,null,"短期入所生活介護",null,null,null,null,null,null,null,"短期入所生活介護",null,null,null,null,null,null,null,"短期入所生活介護",null,null,null,null,null,null,null,"短期入所生活介護",null,null,null,null,null,null,null,"短期入所生活介護",null,null,null,null,null,null,null,"短期入所生活介護",null,null,null,null,null,null,null,"短期入所生活介護",null,null,null,null,null,null,null,"短期入所生活介護",null,null,null,null,null,null,null,"短期入所生活介護",null,null,null,null,null,null,null,"短期入所生活介護",null,null,null,null,null,null,null,"短期入所生活介護",null,null,null,null,null,null,null,"短期入所生活介護",null,null,null,null,null,null,null,"短期入所生活介護",null,null,null,null,null,null,null,"短期入所生活介護",null,null,null,null,null,null,null,"短期入所生活介護",null,null,null,null,null,null,null,"短期入所生活介護",null,null,null,null,null,null,null,"短期入所生活介護",null,null,null,null,null,null,null,"短期入所生活介護",null,null,null,null,null,null,null,"短期入所生活介護",null,null,null,null,null,null,null,"短期入所生活介護",null,null,null,null,null,null,null,"短期入所生活介護",null,null,null,null,null,null,null,"短期入所生活介護",null,null,null,null,null,null,null,"短期入所生活介護",null,null,null,null,null,null,null,"短期入所生活介護",null,null,null,null,null,null,null,"短期入所生活介護",null,null,null,null,null,null,null,"短期入所生活介護",null,null,null,null,null,null,null,"短期入所生活介護",null,null,null,null,null,null,null,"短期入所生活介護",null,null,null,null,null,null,null,"短期入所生活介護",null,null,null,null,null,null,null,"短期入所生活介護",null,null,null,null,null,null,null,"短期入所生活介護",null,null,null,null,null,null,null,"短期入所生活介護",null,null,null,null,null,null,null,"短期入所生活介護",null,null,null,null,null,null,null,"短期入所生活介護",null,null,null,null,null,null,null,"短期入所生活介護",null,null,null,null,null,null,null,"短期入所生活介護",null,null,null,null,null,null,null,"短期入所生活介護",null,null,null,null,null,null,null,"短期入所生活介護",null,null,null,null,null,null,null,"短期入所生活介護",null,null,null,null,null,null,null,"短期入所生活介護",null,null,null,null,null,null,null,"短期入所生活介護",null,null,null,null,null,null,null,"短期入所生活介護",null,null,null,null,null,null,null,"短期入所生活介護",null,null,null,null,null,null,null,"短期入所生活介護",null,null,null,null,null,null,null,"短期入所生活介護",null,null,null,null,null,null,null,"短期入所生活介護",null,null,null,null,null,null,null,"短期入所生活介護",null,null,null,null,null,null,null,"短期入所生活介護",null,null,null,null,null,null,null,"短期入所生活介護",null,null,null,null,null,null,null,"短期入所生活介護",null,null,null,null,null,null,null,"短期入所生活介護",null,null,null,null,null,null,null,"短期入所生活介護",null,null,null,null,null,null,null,"短期入所生活介護",null,null,null,null,null,null,null,"短期入所生活介護",null,null,null,null,null,null,null,"短期入所生活介護",null,null,null,null,null,null,null,"短期入所生活介護",null,null,null,null,null,null,null,"短期入所生活介護",null,null,null,null,null,null,null,"短期入所生活介護",null,null,null,null,null,null,null,"短期入所生活介護",null,null,null,null,null,null,null,"短期入所生活介護"]
[27,{"$f":"VLOOKUP(I30,地区名一覧!B3:C34,2,FALSE)","v":"橋　北"},"特別養護老人ホーム\n高浜楽々館","510-0026","高浜町8-26","059-334-8587","059-334-8589","社会福祉法人\nすずらん福祉会",23,6]
[28,{"$f":"VLOOKUP(I31,地区名一覧!B2:C33,2,FALSE)","v":"楠"},"介護老人福祉施設\nみのりの里","510-0106","楠町本郷1139-1","059-398-2110","059-398-2123","社会福祉法人徳寿会",24,7]
[]
["短期入所生活介護（基準該当サービス）"]
["No","所在地","事業所名","事業所〒","事業所住所","事業所電話","事業所FAX","申請(開設)者名","地区CD","町名CD"]
[1,{"$f":"VLOOKUP(I35,地区名一覧!B2:C33,2,FALSE)","v":"富洲原"},"天カ須賀\n短期入所生活介護事業所","510-8001","天カ須賀四丁目\n7-25","059-361-5361","059-361-5362","社会福祉法人徳寿会",2,4]
[2,{"$f":"VLOOKUP(I36,地区名一覧!B2:C33,2,FALSE)","v":"日　永"},"日永英水苑\n短期入所生活介護施設","510-0885","大字日永5530-23","059-347-6660","059-347-6661","社会福祉法人英水会",6,21]
[3,{"$f":"VLOOKUP(I37,地区名一覧!B2:C33,2,FALSE)","v":"県"},"くぬぎの木\n在宅介護サービスセンター","512-1204","赤水町1274-14","059-327-2266","059-327-1160","社会福祉法人\nあがた福祉の会",15,1]
[4,{"$f":"VLOOKUP(I38,地区名一覧!B2:C33,2,FALSE)","v":"八　郷"},"ハピネスやさと\n短期入所生活介護","512-8065","千代田町325-1","059-366-3303","059-366-3302","社会福祉法人\nアパティア福祉会",16,11]
[5,{"$f":"VLOOKUP(I39,地区名一覧!B2:C33,2,FALSE)","v":"下　野"},"ナーシングホーム\nもも四日市","512-8054","朝明町441-1","059-336-3330","059-328-4440","有限会社だいち",17,1]
[6,{"$f":"VLOOKUP(I40,地区名一覧!B2:C33,2,FALSE)","v":"水　沢"},"ショートステイ三美","512-1105","水沢町2503-5","059-329-8051","059-329-8052","株式会社三陽",20,2]
[7,{"$f":"VLOOKUP(I41,地区名一覧!B2:C33,2,FALSE)","v":"水　沢"},"ショートステイしあわせ","512-1105","水沢町5131-3","059-329-3930","059-329-3931","有限会社しあわせ",20,2]
[8,{"$f":"VLOOKUP(I42,地区名一覧!B2:C33,2,FALSE)","v":"橋　北"},"橋北楽々館\n短期入所生活介護事業所","510-0032","京町15-26","059-334-8588","059-329-7255","社会福祉法人\nすずらん福祉会",23,4]
[]
["短期入所療養介護"]
["No","所在地","事業所名","事業所〒","事業所住所","事業所電話","事業所FAX","申請(開設)者名","地区CD","町名CD"]
[1,{"$f":"VLOOKUP(I46,地区名一覧!B2:C33,2,FALSE)","v":"本　庁"},"介護老人保健施設ちゅうぶ","510-0082","中部8-15","059-355-5611","059-355-5615","医療法人里仁会",1,14]
[2,{"$f":"VLOOKUP(I47,地区名一覧!B2:C33,2,FALSE)","v":"富　田"},"富田浜老人保健施設","510-8008","富田浜町26-14","059-365-0066","059-365-0412","医療法人富田浜病院",3,6]
[3,{"$f":"VLOOKUP(I48,地区名一覧!B3:C34,2,FALSE)","v":"富　田"},"小規模介護老人保健施設\n浜っこサテライト","510-8008","富田浜町29-20","059-361-2251","059-365-0508","医療法人富田浜病院",3,6]
[4,{"$f":"VLOOKUP(I49,地区名一覧!B2:C33,2,FALSE)","v":"羽　津"},"四日市羽津医療センター附属\n介護老人保健施設","510-0016","羽津山町10-8","059-334-3388","059-334-3377","独立行政法人\n地域医療機能推進機構",4,5]
[5,{"$f":"VLOOKUP(I50,地区名一覧!B2:C33,2,FALSE)","v":"常　磐"},"介護老人保健施設\nみえ川村老健","510-0824","城東町3-21","059-355-3838","059-355-3831","医療法人社団主体会",5,5]
[6,{"$f":"VLOOKUP(I51,地区名一覧!B2:C33,2,FALSE)","v":"内　部"},"介護老人保健施設\n老健クローバー","510-0952","小古曽町2728-1","059-347-9608","059-349-0990","医療法人正和会",8,13]
[7,{"$f":"VLOOKUP(I52,地区名一覧!B2:C33,2,FALSE)","v":"小山田"},"小山田老人保健施設","512-1111","山田町5501-1","059-328-2847","059-328-2905","社会福祉法人\n青山里会",10,1]
[8,{"$f":"VLOOKUP(I53,地区名一覧!B2:C33,2,FALSE)","v":"小山田"},"介護老人保健施設\nみえの郷","512-1111","山田町5538-1","059-328-2116","059-328-1868","医療法人社団主体会",10,1]
[]
[]
[]
[]
[]
[]
[]
[]
[]
[]
[]
[]
[]
[]
[]
[]
[]
[]
[]
[]
[]
[]
[58]
[59]

{"sheet":"特定施設入居者生活介護","index":8,"n_rows":18,"n_cols":10,"rows_kept":18,"cut":false,"hidden":false,"merged":[[0,0,0,7]]}
["特定施設入居者生活介護"]
["No","所在地","事業所名","事業所〒","事業所住所","事業所電話","事業所FAX","申請(開設)者名","地区CD","町名CD"]
[1,{"$f":"VLOOKUP(I3,地区名一覧!B2:C33,2,FALSE)","v":"日　永"},"寿楽陽光苑\n外部サービス利用型特定施設","510-0894","泊村1050-13","059-345-0208","059-345-0206","社会福祉法人\n三重福祉会",6,22]
[2,{"$f":"VLOOKUP(I4,地区名一覧!B2:C33,2,FALSE)","v":"橋　北"},"介護付有料老人ホーム\n夢眠よっかいち","510-0034","滝川町13-3","059-332-1156","059-332-1157","株式会社夢眠ホーム",23,2]
[3,{"$f":"VLOOKUP(I5,地区名一覧!B2:C33,2,FALSE)","v":"三重郡"},"指定特定施設\n入居者生活介護みずほ寮","510-1233","三重郡菰野町菰野\n5833-1","059-394-1121","059-394-5868","三重県三重郡\n老人福祉施設組合",50]
[4,{"$f":"VLOOKUP(I6,地区名一覧!B2:C33,2,FALSE)","v":"三重郡"},"介護付有料老人ホーム\nエクセレントあさひ","510-8102","三重郡朝日町小向\n2064-1","059-376-2008","059-376-2001","医療法人福島会",50]
[5,{"$f":"VLOOKUP(I7,地区名一覧!B2:C33,2,FALSE)","v":"桑名市"},"介護付有料老人ホーム\nエクセレントくわな","511-0002","桑名市1000-1","0594-27-2772","0594-27-2771","医療法人福島会",51]
[6,{"$f":"VLOOKUP(I8,地区名一覧!B2:C33,2,FALSE)","v":"桑名市"},"ベストライフ長島","511-1143","桑名市長島町\n西外面1718-1","0594-41-0870","0594-41-0872","株式会社\nベストライフ中部",51]
[7,{"$f":"VLOOKUP(I9,地区名一覧!B3:C34,2,FALSE)","v":"桑名市"},"ハーモニーハウス桑名","511-0819","桑名市北別所416-1","0594-88-5115","0594-88-5116","株式会社\nハピネライフ一光",51]
[8,{"$f":"VLOOKUP(I10,地区名一覧!B2:C33,2,FALSE)","v":"いなべ市"},"社会福祉法人\n養護老人ホーム翠明院","511-0501","いなべ市藤原町\n鼎1166","0594-46-2034","0594-46-4006","社会福祉法人翠明院",53]
[9,{"$f":"VLOOKUP(I11,地区名一覧!B2:C33,2,FALSE)","v":"いなべ市"},"ハーモニーハウスいなべ","511-0428","いなべ市北勢町\n阿下喜3698","0594-82-1144","0594-72-6655","株式会社\nハピネライフ一光",53]
[10,{"$f":"VLOOKUP(I12,地区名一覧!B3:C34,2,FALSE)","v":"いなべ市"},"サービス付き高齢者向け住宅\n大安ひまわり","511-0273","いなべ市大安町\n平塚1774-1","0594-88-1165","0594-88-1110","株式会社ひまわり",53]
[11,{"$f":"VLOOKUP(I13,地区名一覧!B2:C33,2,FALSE)","v":"員弁郡"},"介護付有料老人ホーム\nあおい","511-0255","員弁郡東員町\n長深2126-1","0594-76-1110","0594-76-1120","株式会社キタイセ",54]
[12,{"$f":"VLOOKUP(I14,地区名一覧!B2:C33,2,FALSE)","v":"鈴鹿市"},"特定施設南山","513-0016","鈴鹿市山辺町\n1055-1","059-374-1056","059-374-5512","社会福祉法人天年会",55]
[13,{"$f":"VLOOKUP(I15,地区名一覧!B2:C33,2,FALSE)","v":"鈴鹿市"},"介護付有料老人ホーム\n夢眠すずか","513-0816","鈴鹿市南玉垣町\n6507-1","059-381-5111","059-381-5113","株式会社夢眠ホーム",55]
[14,{"$f":"VLOOKUP(I16,地区名一覧!B2:C33,2,FALSE)","v":"鈴鹿市"},"介護付有料老人ホーム\nメディカルヴィラはなみずき","513-0844","鈴鹿市平田一丁目\n2-22","059-370-8731","059-370-8732","医療法人誠仁会",55]
[15,{"$f":"VLOOKUP(I17,地区名一覧!B2:C33,2,FALSE)","v":"亀山市"},"ファミニュー亀山","519-0211","亀山市川崎町\n字貢1586-1","0595-85-8860","0595-85-8861","メディカル・ケア・サービス\n三重株式会社",56]
[16,{"$f":"VLOOKUP(I18,地区名一覧!B2:C33,2,FALSE)","v":"亀山市"},"清和の里（介護予防）\n特定施設\n入居者生活介護事業所","519-0162","亀山市住山町\n大掛590-1","0595-82-0637","0595-82-0676","社会福祉法人\n安全福祉会",56]

{"sheet":"福祉用具","index":9,"n_rows":42,"n_cols":10,"rows_kept":42,"cut":false,"hidden":false,"merged":[[20,0,20,7],[0,0,0,7]]}
["福祉用具貸与"]
["No","所在地","事業所名","事業所〒","事業所住所","事業所電話","事業所FAX","申請(開設)者名","地区CD","町名CD"]
[1,{"$f":"VLOOKUP(I3,地区名一覧!B2:C33,2,FALSE)","v":"本　庁"},"パーソナルケアくろべ","510-0074","鵜の森一丁目4-3\nメディカルセンター\nビル１階","059-325-6701","059-325-6702","有限会社くろべ",1,7]
[2,{"$f":"VLOOKUP(I4,地区名一覧!B3:C34,2,FALSE)","v":"富　田"},"生活のおたすけ　えくぼ","510-8006","東富田町\n1747-20-102","080-1627-7767","050-3457-8413","株式会社BeGATE",3,7]
[3,{"$f":"VLOOKUP(I5,地区名一覧!B2:C33,2,FALSE)","v":"羽　津"},"さん・あーす","510-0007","別名五丁目\n1574-2","059-330-7055","059-330-7056","合同会社\nＳun Ｅarth Ｃaring",4,18]
[4,{"$f":"VLOOKUP(I6,地区名一覧!B3:C34,2,FALSE)","v":"常　磐"},"福祉用具ショップ\nインクル","510-0827","赤堀南町6‐7","059-340-6703","059-373-7201","株式会社ＨＡＢＩＬＩＳ",5,1]
[5,{"$f":"VLOOKUP(I7,地区名一覧!B2:C33,2,FALSE)","v":"常　磐"},"ゴールドエイジ\n福祉レンタル","510-0829","城西町7-32","059-340-5125","059-340-5126","ゴールドエイジ株式会社",5,6]
[6,{"$f":"VLOOKUP(I8,地区名一覧!B2:C33,2,FALSE)","v":"常　磐"},"株式会社ヤマシタ\n三重営業所","510-0829","城西町15-41","059-359-6357","059-359-6358","株式会社ヤマシタ",5,6]
[7,{"$f":"VLOOKUP(I9,地区名一覧!B2:C33,2,FALSE)","v":"常　磐"},"日本ケアシステム株式会社\n四日市営業所","510-0834","ときわ二丁目\n12-23","059-355-5125","059-355-5540","日本ケアシステム\n株式会社",5,25]
[8,{"$f":"VLOOKUP(I10,地区名一覧!B2:C33,2,FALSE)","v":"日　永"},"株式会社\nスズキ自販三重","510-0885","日永五丁目1-3","059-346-1221","059-346-2567","株式会社\nスズキ自販三重",6,5]
[9,{"$f":"VLOOKUP(I11,地区名一覧!B3:C34,2,FALSE)","v":"四　郷"},"福祉サポートとまと","510-0944","笹川一丁目182番地1","059-340-0036","059-321-7779","JAYACARE株式会社",7,11]
[10,{"$f":"VLOOKUP(I12,地区名一覧!B2:C33,2,FALSE)","v":"塩　浜"},"近鉄スマイルライフ\n株式会社","510-0861","柳町81","059-347-3100","059-347-3111","近鉄スマイルライフ\n株式会社",9,22]
[11,{"$f":"VLOOKUP(I13,地区名一覧!B2:C33,2,FALSE)","v":"神　前"},"ハートケアサポート\n株式会社","512-0922","曽井町1532-1","059-326-7701","059-325-4041","ハートケアサポート\n株式会社",12,4]
[12,{"$f":"VLOOKUP(I14,地区名一覧!B3:C34,2,FALSE)","v":"三　重"},"株式会社JUデザイン","512-0904","東坂部町53-1","090-2925-5560",null,"株式会社JUデザイン",14,1]
[13,{"$f":"VLOOKUP(I15,地区名一覧!B3:C34,2,FALSE)","v":"三　重"},"福ちゃん","512-0902","小杉町299-1","059-327-7770","059-340-0031","株式会社福福",14,3]
[14,{"$f":"VLOOKUP(I16,地区名一覧!B2:C33,2,FALSE)","v":"三　重"},"ダスキンヘルスレント\n三重北ステーション","512-0911","生桑町榎本233-5","059-340-9955","059-340-2500","株式会社マツザカ",14,11]
[15,{"$f":"VLOOKUP(I17,地区名一覧!B2:C33,2,FALSE)","v":"大矢知"},"日本ケアシステム株式会社\n北勢営業所","510-8031","川北三丁目1-11","059-361-7666","059-361-7667","日本ケアシステム\n株式会社",18,22]
[16,{"$f":"VLOOKUP(I18,地区名一覧!B14:C45,2,FALSE)","v":"河原田"},"ライフ・テクノサービス\n四日市","510-0875","大治田二丁目\n18-19","059-226-8217","059-226-8240","株式会社\nライフ・テクノサービス",19,7]
[17,{"$f":"VLOOKUP(I19,地区名一覧!B2:C33,2,FALSE)","v":"橋　北"},"シルバーサポート三重中央店","510-0033","川原町23-23","059-340-0778","059-340-0779","ラミコジャパン\n株式会社",23,5]
[]
["特定福祉用具販売"]
["No","所在地","事業所名","事業所〒","事業所住所","事業所電話","事業所FAX","申請(開設)者名","地区CD","町名CD"]
[1,{"$f":"VLOOKUP(I23,地区名一覧!B2:C33,2,FALSE)","v":"本　庁"},"パーソナルケアくろべ","510-0074","鵜の森一丁目4-3\nメディカルセンター\nビル１階","059-325-6701","059-325-6702","有限会社くろべ",1,7]
[2,{"$f":"VLOOKUP(I24,地区名一覧!B3:C34,2,FALSE)","v":"本　庁"},"株式会社星医療酸器\n四日市営業所","510-0064","新正2-15-2","059-355-1102","059-340-0282","株式会社星医療酸器",1,25]
[3,{"$f":"VLOOKUP(I25,地区名一覧!B4:C35,2,FALSE)","v":"富　田"},"生活のおたすけ　えくぼ","510-8006","東富田町1747-20-102","080-1627-7767","050-3457-8413","株式会社BeGATE",3,7]
[4,{"$f":"VLOOKUP(I26,地区名一覧!B2:C33,2,FALSE)","v":"羽　津"},"さん・あーす","510-0007","別名五丁目\n1574-2","059-330-7055","059-330-7056","合同会社\nＳun Ｅarth Ｃaring",4,18]
[5,{"$f":"VLOOKUP(I27,地区名一覧!B3:C34,2,FALSE)","v":"常　磐"},"福祉用具ショップ\nインクル","510-0827","赤堀南町6‐7","059-340-6703","059-373-7201","株式会社ＨＡＢＩＬＩＳ",5,1]
[6,{"$f":"VLOOKUP(I28,地区名一覧!B2:C33,2,FALSE)","v":"常　磐"},"ゴールドエイジ\n福祉レンタル","510-0829","城西町7-32","059-340-5125","059-340-5126","ゴールドエイジ株式会社",5,6]
[7,{"$f":"VLOOKUP(I29,地区名一覧!B2:C33,2,FALSE)","v":"常　磐"},"株式会社ヤマシタ\n三重営業所","510-0829","城西町15-41","059-359-6357","059-359-6358","株式会社ヤマシタ",5,6]
[8,{"$f":"VLOOKUP(I30,地区名一覧!B2:C33,2,FALSE)","v":"常　磐"},"株式会社マルトアステム","510-0822","芝田一丁目1-2","059-352-8151","059-353-3311","株式会社\nマルトアステム",5,12]
[9,{"$f":"VLOOKUP(I31,地区名一覧!B2:C33,2,FALSE)","v":"常　磐"},"日本ケアシステム株式会社\n四日市営業所","510-0834","ときわ二丁目\n12-23","059-355-5125","059-355-5540","日本ケアシステム\n株式会社",5,25]
[10,{"$f":"VLOOKUP(I32,地区名一覧!B3:C34,2,FALSE)","v":"四　郷"},"福祉サポートとまと","510-0944","笹川一丁目182番地1","059-340-0036","059-321-7779","JAYACARE株式会社",7,11]
[11,{"$f":"VLOOKUP(I33,地区名一覧!B2:C33,2,FALSE)","v":"塩　浜"},"近鉄スマイルライフ\n株式会社","510-0861","柳町81","059-347-3100","059-347-3111","近鉄スマイルライフ\n株式会社",9,22]
[12,{"$f":"VLOOKUP(I34,地区名一覧!B2:C33,2,FALSE)","v":"神　前"},"ハートケアサポート\n株式会社","512-0922","曽井町1532-1","059-326-7701","059-325-4041","ハートケアサポート\n株式会社",12,4]
[13,{"$f":"VLOOKUP(I35,地区名一覧!B2:C33,2,FALSE)","v":"桜"},"有限会社オガタ","512-1214","桜台一丁目43-3","059-326-1425","059-326-7474","有限会社オガタ",13,3]
[14,{"$f":"VLOOKUP(I36,地区名一覧!B3:C34,2,FALSE)","v":"三　重"},"株式会社JUデザイン","512-0904","東坂部町53-1","090-2925-5560",null,"株式会社JUデザイン",14,1]
[15,{"$f":"VLOOKUP(I37,地区名一覧!B4:C35,2,FALSE)","v":"三　重"},"福ちゃん","512-0902","小杉町299-1","059-327-7770","059-340-0031","株式会社福福",14,3]
[16,{"$f":"VLOOKUP(I38,地区名一覧!B2:C33,2,FALSE)","v":"三　重"},"ダスキンヘルスレント\n三重北ステーション","512-0911","生桑町榎本233-5","059-340-9955","059-340-2500","株式会社マツザカ",14,11]
[17,{"$f":"VLOOKUP(I39,地区名一覧!B2:C33,2,FALSE)","v":"大矢知"},"日本ケアシステム株式会社\n北勢営業所","510-8031","川北三丁目1-11","059-361-7666","059-361-7667","日本ケアシステム\n株式会社",18,22]
[18,{"$f":"VLOOKUP(I40,地区名一覧!B15:C46,2,FALSE)","v":"河原田"},"ライフ・テクノサービス\n四日市","510-0875","大治田二丁目\n18-19","059-226-8217","059-226-8240","株式会社\nライフ・テクノサービス",19,7]
[19,{"$f":"VLOOKUP(I41,地区名一覧!B2:C33,2,FALSE)","v":"水　沢"},"株式会社尾張屋","512-1105","水沢町5660-1","059-329-3151","059-329-3152","株式会社尾張屋",20,2]
[20,{"$f":"VLOOKUP(I42,地区名一覧!B2:C33,2,FALSE)","v":"橋　北"},"シルバーサポート\n三重中央店","510-0033","川原町23-23","059-340-0778","059-340-0779","ラミコジャパン\n株式会社",23,5]

{"sheet":"介護老人福祉施設","index":10,"n_rows":69,"n_cols":10,"rows_kept":69,"cut":false,"hidden":false,"merged":[[0,0,0,7]]}
["介護老人福祉施設"]
["No","所在地","事業所名","事業所〒","事業所住所","事業所電話","事業所FAX","申請(開設)者名","地区CD","町名CD"]
[1,{"$f":"VLOOKUP(I3,地区名一覧!B2:C33,2,FALSE)","v":"富　田"},"富田浜\n特別養護老人ホーム浜風","510-8008","富田浜町25-10","059-365-1665","059-365-1675","社会福祉法人\n富田浜福祉会",3,6]
[2,{"$f":"VLOOKUP(I4,地区名一覧!B2:C33,2,FALSE)","v":"羽　津"},"特別養護老人ホーム\nかすみの里","510-0018","白須賀一丁目\n12-8","059-334-1171","059-334-1172","社会福祉法人永甲会",4,8]
[3,{"$f":"VLOOKUP(I5,地区名一覧!B2:C33,2,FALSE)","v":"日　永"},"特別養護老人ホーム\n日永英水苑","510-0885","日永5530-23","059-340-3668","059-340-3667","社会福祉法人英水会",6,21]
[4,{"$f":"VLOOKUP(I6,地区名一覧!B2:C33,2,FALSE)","v":"内　部"},"特別養護老人ホーム\nうねめの里","510-0954","釆女町418-1","059-348-7760","059-348-7761","社会福祉法人永甲会",8,7]
[5,{"$f":"VLOOKUP(I7,地区名一覧!B2:C33,2,FALSE)","v":"塩　浜"},"特別養護老人ホーム\nアリビオ","510-0863","塩浜149-1","059-325-7762","059-325-7763","社会福祉法人風薫会",9,26]
[6,{"$f":"VLOOKUP(I8,地区名一覧!B2:C33,2,FALSE)","v":"塩　浜"},"特別養護老人ホーム\n風の路","510-0863","塩浜栄町471","059-349-6383","059-349-6384","社会福祉法人風薫会",9,26]
[7,{"$f":"VLOOKUP(I9,地区名一覧!B2:C33,2,FALSE)","v":"小山田"},"小山田\n特別養護老人ホーム　","512-1111","山田町5500-1","059-358-0255","059-358-0288","社会福祉法人\n青山里会",10,1]
[8,{"$f":"VLOOKUP(I10,地区名一覧!B2:C33,2,FALSE)","v":"小山田"},"第二小山田\n特別養護老人ホーム　","512-1111","山田町5513","059-328-2276","059-328-2905","社会福祉法人\n青山里会",10,1]
[9,{"$f":"VLOOKUP(I11,地区名一覧!B2:C33,2,FALSE)","v":"神　前"},"介護総合センター\nかんざき","512-0924","寺方町986-4","059-327-2177","059-327-2228","社会福祉法人\n青山里会",12,2]
[10,{"$f":"VLOOKUP(I12,地区名一覧!B2:C33,2,FALSE)","v":"桜"},"特別養護老人ホーム\n英水苑","512-1212","智積町34-1","059-326-7511","059-326-7557","社会福祉法人英水会",13,1]
[11,{"$f":"VLOOKUP(I13,地区名一覧!B2:C33,2,FALSE)","v":"三　重"},"特別養護老人ホーム\n陽光苑","512-0913","西坂部町1127","059-331-5183","059-331-5184","社会福祉法人\n三重福祉会",14,10]
[12,{"$f":"VLOOKUP(I14,地区名一覧!B2:C33,2,FALSE)","v":"県"},"くぬぎの木\n特別養護老人ホーム","512-1204","赤水町1245-7","059-327-2826","059-327-1177","社会福祉法人\nあがた福祉の会",15,1]
[13,{"$f":"VLOOKUP(I15,地区名一覧!B2:C33,2,FALSE)","v":"下　野"},"特別養護老人ホーム\nよっかいち諧朋苑","512-8052","西大鐘町1580","059-338-3000","059-338-3008","社会福祉法人宏育会",17,5]
[14,{"$f":"VLOOKUP(I16,地区名一覧!B2:C33,2,FALSE)","v":"大矢知"},"介護老人福祉施設\nヴィラ四日市","510-8037","垂坂町8-2","059-363-2121","059-363-3737","社会福祉法人\n平成福祉会",18,5]
[15,{"$f":"VLOOKUP(I17,地区名一覧!B2:C33,2,FALSE)","v":"河原田"},"南部陽光苑","510-0874","河原田町2146","059-347-7337","059-347-7338","社会福祉法人\n三重福祉会",19,4]
[16,{"$f":"VLOOKUP(I18,地区名一覧!B2:C33,2,FALSE)","v":"橋　北"},"特別養護老人ホーム\nさくらスマイル","510-0031","浜一色町15-14-1","059-340-0001","059-340-0101","社会福祉法人\n桜コミュニティ",23,3]
[17,{"$f":"VLOOKUP(I19,地区名一覧!B2:C33,2,FALSE)","v":"橋　北"},"特別養護老人ホーム\n高浜楽々館","510-0026","高浜町8-26","059-334-8587","059-334-8589","社会福祉法人\nすずらん福祉会",23,6]
[18,{"$f":"VLOOKUP(I20,地区名一覧!B2:C33,2,FALSE)","v":"楠"},"介護老人福祉施設\nみのりの里","510-0106","楠町本郷1139-1","059-398-2110","059-398-2123","社会福祉法人徳寿会",24,7]
[19,{"$f":"VLOOKUP(I21,地区名一覧!B2:C33,2,FALSE)","v":"三重郡"},"特別養護老人ホーム\nみずほ寮","510-1233","三重郡菰野町\n菰野5833-1","059-394-1121","059-394-5868","三重県三重郡\n老人福祉施設組合",50]
[20,{"$f":"VLOOKUP(I22,地区名一覧!B2:C33,2,FALSE)","v":"三重郡"},"特別養護老人ホーム\n菰野聖十字の家","510-1232","三重郡菰野町\n宿野1433-69","059-394-2511","059-394-0081","社会福祉法人\n鈴鹿聖十字会",50]
[21,{"$f":"VLOOKUP(I23,地区名一覧!B2:C33,2,FALSE)","v":"三重郡"},"特別養護老人ホーム往還","510-8103","三重郡朝日町\n柿564","059-377-6011","059-377-6001","社会福祉法人\n三重健寿会",50]
[22,{"$f":"VLOOKUP(I24,地区名一覧!B2:C33,2,FALSE)","v":"桑名市"},"特別養護老人ホーム\n長寿苑","511-0911","桑名市額田\n1256-2","0594-31-7200","0594-31-4720","社会福祉法人\n花園福祉会",51]
[23,{"$f":"VLOOKUP(I25,地区名一覧!B2:C33,2,FALSE)","v":"桑名市"},"特別養護老人ホーム\nいこい","511-0922","桑名市西金井170","0594-25-2666","0594-25-2668","社会福祉法人憩",51]
[24,{"$f":"VLOOKUP(I26,地区名一覧!B2:C33,2,FALSE)","v":"桑名市"},"特別養護老人ホーム\nソフトハウス","511-0112","桑名市多度町\n福永440-48","0594-49-3300","0594-48-6555","社会福祉法人憲甚会",51]
[25,{"$f":"VLOOKUP(I27,地区名一覧!B2:C33,2,FALSE)","v":"桑名市"},"特別養護老人ホーム\nほほえみ桑名","511-0923","桑名市桑部681-4","0594-82-7711","0594-82-7722","社会福祉法人\nほほえみ福祉会",51]
[26,{"$f":"VLOOKUP(I28,地区名一覧!B2:C33,2,FALSE)","v":"桑名市"},"特別養護老人ホーム\nアパティア長島苑","511-1143","桑名市長島町\n西外面1070","0594-42-1600","0594-42-2701","社会福祉法人\nアパティア福祉会",51]
[27,{"$f":"VLOOKUP(I29,地区名一覧!B2:C33,2,FALSE)","v":"桑名郡"},"特別養護老人ホーム\nすいせんの里","498-0823","桑名郡木曽岬町\n和富10-8","0567-68-6565","0567-68-6580","社会福祉法人慈幸会",52]
[28,{"$f":"VLOOKUP(I30,地区名一覧!B2:C33,2,FALSE)","v":"いなべ市"},"特別養護老人ホーム\n翠明院","511-0507","いなべ市藤原町\n上之山田1433-3","0594-46-4678","0594-46-3993","社会福祉法人翠明院",53]
[29,{"$f":"VLOOKUP(I31,地区名一覧!B2:C33,2,FALSE)","v":"いなべ市"},"特別養護老人ホーム\nアイリス","511-0428","いなべ市北勢町\n阿下喜3728-2","0594-72-7722","0594-72-7744","社会福祉法人光風会",53]
[30,{"$f":"VLOOKUP(I32,地区名一覧!B2:C33,2,FALSE)","v":"員弁郡"},"特別養護老人ホーム\nパークレジデンス","511-0255","員弁郡東員町\n長深3140-2","0594-76-0760","0594-86-2711","社会福祉法人健和会",54]
[31,{"$f":"VLOOKUP(I33,地区名一覧!B3:C34,2,FALSE)","v":"員弁郡"},"北部陽光苑","511-0251","員弁郡東員町\n3600-1","0594-87-7730","0594-87-7731","社会福祉法人\n三重福祉会",54]
[32,{"$f":"VLOOKUP(I34,地区名一覧!B2:C33,2,FALSE)","v":"鈴鹿市"},"介護老人福祉施設\nくすのき園","510-0222","鈴鹿市若松西\n六丁目28-18","059-385-3100","059-385-7200","社会福祉法人慈童会",55]
[33,{"$f":"VLOOKUP(I35,地区名一覧!B2:C33,2,FALSE)","v":"鈴鹿市"},"特別養護老人ホーム\n鈴鹿グリーンホーム","519-0321","鈴鹿市深溝町2956","059-374-4600","059-374-4543","社会福祉法人\n鈴鹿福祉会",55]
[34,{"$f":"VLOOKUP(I36,地区名一覧!B2:C33,2,FALSE)","v":"鈴鹿市"},"特別養護老人ホーム\nひまわり苑","513-0034","鈴鹿市須賀一丁目28-23","059-383-3077","059-383-3078","社会福祉法人陽光会",55]
[35,{"$f":"VLOOKUP(I37,地区名一覧!B2:C33,2,FALSE)","v":"鈴鹿市"},"鈴鹿特別養護老人ホーム\nかなしょうず園","513-0821","鈴鹿市地子町\n814-30","059-383-0955","059-383-0972","社会福祉法人天年会",55]
[36,{"$f":"VLOOKUP(I38,地区名一覧!B2:C33,2,FALSE)","v":"鈴鹿市"},"特別養護老人ホーム\nルーエハイム","510-0266","鈴鹿市長法寺町763","059-372-3811","059-372-3814","社会福祉法人博愛会",55]
[37,{"$f":"VLOOKUP(I39,地区名一覧!B2:C33,2,FALSE)","v":"鈴鹿市"},"特別養護老人ホーム\n伊勢マリンホーム","510-0227","鈴鹿市南若松町1","059-387-6868","059-387-6662","社会福祉法人\n伊勢湾福祉会",55]
[38,{"$f":"VLOOKUP(I40,地区名一覧!B2:C33,2,FALSE)","v":"鈴鹿市"},"特別養護老人ホーム\n鈴鹿聖十字の家","513-0015","鈴鹿市木田町1961","059-374-0318","059-374-0077","社会福祉法人\n鈴鹿聖十字会",55]
[39,{"$f":"VLOOKUP(I41,地区名一覧!B2:C33,2,FALSE)","v":"鈴鹿市"},"特別養護老人ホーム\n桜の森白子ホーム","513-0816","鈴鹿市南玉垣町\n7300-2","059-373-4650","059-373-4659","社会福祉法人サムス会",55]
[40,{"$f":"VLOOKUP(I42,地区名一覧!B2:C33,2,FALSE)","v":"鈴鹿市"},"特別養護老人ホーム\n鈴鹿香寿苑","510-0204","鈴鹿市稲生西\n三丁目17-17","059-389-7666","059-389-7676","社会福祉法人\nけやき福祉会",55]
[41,{"$f":"VLOOKUP(I43,地区名一覧!B3:C34,2,FALSE)","v":"鈴鹿市"},"特別養護老人ホーム　\nルーエハイム庄野","513-0831","鈴鹿市庄野町856番地","059-373-5190","059-373-5191","社会福祉法人博愛会",55]
[42,{"$f":"VLOOKUP(I44,地区名一覧!B2:C33,2,FALSE)","v":"亀山市"},"特別養護老人ホーム\n亀寿苑","519-0137","亀山市阿野田町\n2443-1","0595-84-1212","0595-83-2202","社会福祉法人\nケアフル亀山",56]
[43,{"$f":"VLOOKUP(I45,地区名一覧!B2:C33,2,FALSE)","v":"亀山市"},"特別養護老人ホーム\n華旺寿","519-1101","亀山市関町坂下252","0595-96-3131","0595-96-3155","社会福祉法人柊会",56]
[44,{"$f":"VLOOKUP(I46,地区名一覧!B2:C33,2,FALSE)","v":"亀山市"},"特別養護老人ホーム\n安全の里","519-0162","亀山市住山町\n590-1","0595-83-1294","0595-83-1950","社会福祉法人\n安全福祉会",56]
[45,{"$f":"VLOOKUP(I47,地区名一覧!B2:C33,2,FALSE)","v":"亀山市"},"特別養護老人ホーム\n亀山愛の里","519-0103","亀山市川合町\n1288-4","0595-84-1500","0595-84-1501","社会福祉法人如水会",56]
[]
[]
[]
[]
[]
[]
[]
[]
[]
[]
[]
[]
[]
[]
[]
[]
[]
[]
[]
[]
[58]
[59]

{"sheet":"介護老人保健施設、介護療養型、医療院","index":11,"n_rows":53,"n_cols":10,"rows_kept":53,"cut":false,"hidden":false,"merged":[[0,0,0,7],[32,0,32,7]]}
["介護老人保健施設"]
["No","所在地","事業所名","事業所〒","事業所住所","事業所電話","事業所FAX","申請(開設)者名","地区CD","町名CD"]
[1,{"$f":"VLOOKUP(I3,地区名一覧!B2:C33,2,FALSE)","v":"本　庁"},"介護老人保健施設ちゅうぶ","510-0082","中部8-15","059-355-5611","059-355-5615","医療法人里仁会",1,14]
[2,{"$f":"VLOOKUP(I4,地区名一覧!B2:C33,2,FALSE)","v":"富　田"},"富田浜老人保健施設","510-8008","富田浜町26-14","059-365-0066","059-365-0412","医療法人富田浜病院",3,13]
[3,{"$f":"VLOOKUP(I5,地区名一覧!B2:C33,2,FALSE)","v":"富　田"},"小規模介護老人保健施設\n浜っこサテライト","510-8008","富田浜町29-20","059-361-2251","059-365-0508","医療法人富田浜病院",3,13]
[4,{"$f":"VLOOKUP(I6,地区名一覧!B2:C33,2,FALSE)","v":"羽　津"},"四日市羽津医療センター附属\n介護老人保健施設","510-0016","羽津山町10-8","059-334-3388","059-334-3377","独立行政法人\n地域医療機能推進機構",4,5]
[5,{"$f":"VLOOKUP(I7,地区名一覧!B2:C33,2,FALSE)","v":"常　磐"},"介護老人保健施設\nみえ川村老健","510-0824","城東町3-21","059-355-3838","059-355-3831","医療法人社団主体会",5,5]
[6,{"$f":"VLOOKUP(I8,地区名一覧!B2:C33,2,FALSE)","v":"内　部"},"介護老人保健施設\n老健クローバー","510-0952","小古曽町2728-1","059-347-9608","059-349-0990","医療法人正和会",8,6]
[7,{"$f":"VLOOKUP(I9,地区名一覧!B2:C33,2,FALSE)","v":"小山田"},"小山田老人保健施設","512-1111","山田町5501-1","059-328-2847","059-328-2905","社会福祉法人\n青山里会",10,1]
[8,{"$f":"VLOOKUP(I10,地区名一覧!B2:C33,2,FALSE)","v":"小山田"},"介護老人保健施設\nみえの郷","512-1111","山田町5538-1","059-328-2116","059-328-1868","医療法人社団主体会",10,1]
[9,{"$f":"VLOOKUP(I11,地区名一覧!B2:C33,2,FALSE)","v":"三重郡"},"介護老人保健施設\n聖十字ハイツ","510-1232","三重郡菰野町\n宿野1641-10","059-394-5880","059-394-5882","社会福祉法人\n鈴鹿聖十字会",50]
[10,{"$f":"VLOOKUP(I12,地区名一覧!B2:C33,2,FALSE)","v":"三重郡"},"介護老人保健施設\n友愛トピア","510-1232","三重郡菰野町\n宿野371","059-394-4000","059-394-4010","医療法人社団\nプログレス",50]
[11,{"$f":"VLOOKUP(I13,地区名一覧!B2:C33,2,FALSE)","v":"三重郡"},"湯の山介護老人保健施設","510-1251","三重郡菰野町\n千草7045-73","059-392-2500","059-392-3003","医療法人尚徳会",50]
[12,{"$f":"VLOOKUP(I14,地区名一覧!B2:C33,2,FALSE)","v":"三重郡"},"介護老人保健施設あさけ","510-8122","三重郡川越町\n豊田302-1","059-363-3240","059-363-3326","医療法人社団\n川越伊藤医院",50]
[13,{"$f":"VLOOKUP(I15,地区名一覧!B2:C33,2,FALSE)","v":"桑名市"},"東新苑介護老人保健施設","511-0836","桑名市江場20","0594-21-3113","0594-21-1659","医療法人喬生会",51]
[14,{"$f":"VLOOKUP(I16,地区名一覧!B2:C33,2,FALSE)","v":"桑名市"},"介護老人保健施設ハート","511-0864","桑名市西方\n1306-10","0594-22-6111","0594-22-6110","医療法人社団青藍会",51]
[15,{"$f":"VLOOKUP(I17,地区名一覧!B2:C33,2,FALSE)","v":"桑名市"},"介護老人保健施設だいそう","511-0101","桑名市多度町\n柚井132","0594-48-5323","0594-49-3232","医療法人財団青木会",51]
[16,{"$f":"VLOOKUP(I18,地区名一覧!B2:C33,2,FALSE)","v":"桑名市"},"介護老人保健施設ことぶき","511-0065","桑名市大央町\n21-15","0594-23-6811","0594-23-3537","医療法人（社団）\n佐藤病院",51]
[17,{"$f":"VLOOKUP(I19,地区名一覧!B2:C33,2,FALSE)","v":"桑名市"},"ヨナハ介護老人保健施設","511-0834","桑名市大福雀塚\n471-2","0594-24-0478","0594-22-7662","医療法人尚徳会",51]
[18,{"$f":"VLOOKUP(I20,地区名一覧!B2:C33,2,FALSE)","v":"桑名市"},"介護老人保健施設\nながしま","511-1137","桑名市長島町\n福吉271","0594-45-1200","0594-45-1201","医療法人（社団）\n佐藤病院",51]
[19,{"$f":"VLOOKUP(I21,地区名一覧!B2:C33,2,FALSE)","v":"桑名市"},"ケアセンター　ビオトープ","511-0038","桑名市内堀28-1","0594-25-8140","0594-25-0260","医療法人普照会",51]
[20,{"$f":"VLOOKUP(I22,地区名一覧!B2:C33,2,FALSE)","v":"桑名郡"},"ビオトープさくら","498-0823","桑名郡木曽岬町\n10-17","0567-68-7321","0567-68-7322","医療法人普照会",52]
[21,{"$f":"VLOOKUP(I23,地区名一覧!B2:C33,2,FALSE)","v":"桑名郡"},"老健きそさき","498-0823","桑名郡木曽岬町\n10-17","0567-68-7234","0567-68-7235","医療法人普照会",52]
[22,{"$f":"VLOOKUP(I24,地区名一覧!B2:C33,2,FALSE)","v":"いなべ市"},"介護老人保健施設\nオアシス","511-0428","いなべ市北勢町\n阿下喜3732","0594-82-1211","0594-82-1305","医療法人（社団）\n大和会",53]
[23,{"$f":"VLOOKUP(I25,地区名一覧!B2:C33,2,FALSE)","v":"いなべ市"},"介護老人保健施設銀花","511-0428","いなべ市北勢町\n阿下喜680","0594-72-6811","0594-72-4075","医療法人（社団）\n大和会",53]
[24,{"$f":"VLOOKUP(I26,地区名一覧!B2:C33,2,FALSE)","v":"鈴鹿市"},"介護老人保健施設\nパークヒルズ高塚","513-0011","鈴鹿市高塚町2036","059-375-5525","059-375-5526","医療法人誠仁会",55]
[25,{"$f":"VLOOKUP(I27,地区名一覧!B2:C33,2,FALSE)","v":"鈴鹿市"},"介護老人保健施設鈴の丘","513-0831","鈴鹿市庄野町2550","059-375-2350","059-375-2385","医療法人白鳳会",55]
[26,{"$f":"VLOOKUP(I28,地区名一覧!B2:C33,2,FALSE)","v":"鈴鹿市"},"介護老人保健施設\nひまわり","513-0801","鈴鹿市神戸\n三丁目12-10","059-382-8300","059-382-8301","医療法人博仁会",55]
[27,{"$f":"VLOOKUP(I29,地区名一覧!B2:C33,2,FALSE)","v":"鈴鹿市"},"介護老人保健施設\nアルテハイム鈴鹿","513-0844","鈴鹿市平田\n一丁目3-5","059-370-0653","059-370-0887","医療法人誠仁会",55]
[28,{"$f":"VLOOKUP(I30,地区名一覧!B2:C33,2,FALSE)","v":"亀山市"},"亀山老人保健施設","519-0164","亀山市羽若町\n645-14","0595-83-5921","0595-83-5929","社会福祉法人\n青山里会",56]
[]
[]
["介護医療院"]
["No","所在地","事業所名","事業所〒","事業所住所","事業所電話","事業所FAX","申請(開設)者名","地区CD","町名CD"]
[1,{"$f":"VLOOKUP(I35,地区名一覧!B2:C33,2,FALSE)","v":"桑名市"},"長島中央病院介護医療院","511-1137","桑名市長島町\n福吉271","0594-45-0555","0594-45-0575","医療法人（社団）\n佐藤病院",51]
[]
[]
[]
[]
[]
[]
[]
[]
[]
[]
[]
[]
[]
[]
[]
[]
[58]
[59]

{"sheet":"地域密着型通所介護","index":12,"n_rows":33,"n_cols":10,"rows_kept":33,"cut":false,"hidden":false,"merged":[[0,0,0,7]]}
["地域密着型通所介護"]
["No","所在地","事業所名","事業所〒","事業所住所","事業所電話","事業所FAX","申請(開設)者名","地区CD","町名CD"]
["1",{"$f":"VLOOKUP(I3,地区名一覧!B2:C33,2,FALSE)","v":"本　庁"},"楽しく鍛える\nリハビリデイサービス\nたのきん倶楽部","510-0076","堀木一丁目3-1","059-353-8800","059-353-8800","たなかヘルスケアサービス\n株式会社",1,1]
["2",{"$f":"VLOOKUP(I4,地区名一覧!B2:C33,2,FALSE)","v":"本　庁"},"デイサービスフィジオ","510-0092","新町4-2","059-358-2300","059-358-2301","株式会社\nＰＨＹＳＩＯ　ＢＲＡＩＮ",1,33]
["3",{"$f":"VLOOKUP(I5,地区名一覧!B2:C33,2,FALSE)","v":"富　田"},"認知症・一般通所介護\n織りがみの郷","510-8012","茂福町1-21","059-364-1165","059-361-5765","株式会社\nライフステージ",3,9]
["4",{"$f":"VLOOKUP(I6,地区名一覧!B2:C33,2,FALSE)","v":"羽　津"},"地域密着型通所介護事業所\nかすみの里","510-0018","白須賀一丁目\n12-8","059-334-1125","059-334-1126","社会福祉法人永甲会",4,8]
["5",{"$f":"VLOOKUP(I7,地区名一覧!B2:C33,2,FALSE)","v":"常　磐"},"リハビリテーションスタジオ\nあすか","510-0827","赤堀南町6-7","059-329-5511","059-373-7201","株式会社ＨＡＢＩＬＩＳ",5,1]
["6",{"$f":"VLOOKUP(I8,地区名一覧!B2:C33,2,FALSE)","v":"常　磐"},"デイサービスセンター\n石塚ひまわり","510-0828","石塚町10-23","059-340-6000","059-340-6006","株式会社ひまわり",5,7]
["7",{"$f":"VLOOKUP(I9,地区名一覧!B2:C33,2,FALSE)","v":"常　磐"},"ＡＱＵＡデイサービス","510-0822","芝田二丁目3-1","059-351-5777","059-325-7092","株式会社たっとく",5,13]
["8",{"$f":"VLOOKUP(I10,地区名一覧!B2:C33,2,FALSE)","v":"常　磐"},"デイサービス　オリーブ","510-0822","芝田二丁目3-35","059-355-3001","059-355-3010","ゴールドエイジ株式会社",5,13]
["9",{"$f":"VLOOKUP(I11,地区名一覧!B2:C33,2,FALSE)","v":"常　磐"},"デイサービス　エクラ","510-0834","ときわ二丁目12-8","059-355-2000","059-355-2020","ゴールドエイジ株式会社",5,25]
["10",{"$f":"VLOOKUP(I12,地区名一覧!B2:C33,2,FALSE)","v":"常　磐"},"デイサービスセンター\n松本ひまわり","510-0836","松本3-1","059-340-8888","059-340-8999","株式会社ひまわり",5,30]
["11",{"$f":"VLOOKUP(I13,地区名一覧!B2:C33,2,FALSE)","v":"常　磐"},"機能訓練型デイサービス\nデイウォークまつもと","510-0836","松本三丁目10-24","059-355-1220","059-355-1221","株式会社三重平安閣",5,34]
["12",{"$f":"VLOOKUP(I14,地区名一覧!B2:C33,2,FALSE)","v":"日　永"},"リハビリデイサービス\nみんなの家　四日市日永","510-0885","日永四丁目1-49","059-328-5701","059-328-5702","合同会社ｆａｉｔｈ",6,4]
["13",{"$f":"VLOOKUP(I15,地区名一覧!B2:C33,2,FALSE)","v":"日　永"},"リハビリデイサービス\nみんなの家　＠ｏｎｅ　四日市日永","510-0885","日永四丁目1-49","059-328-5701","059-328-5702","株式会社\nケアプロフェッショナル",6,4]
["14",{"$f":"VLOOKUP(I16,地区名一覧!B2:C33,2,FALSE)","v":"日　永"},"デイサービス\nクラス四日市南","510-0886","日永東三丁目\n15-21","059-336-6981","059-336-6982","介護ジャパン株式会社",6,26]
["15",{"$f":"VLOOKUP(I17,地区名一覧!B2:C33,2,FALSE)","v":"四　郷"},"デイサービス杉の木","510-0942","東日野町354-6","059-321-0078","059-318-8877","株式会社悠",7,10]
["16",{"$f":"VLOOKUP(I18,地区名一覧!B2:C33,2,FALSE)","v":"四　郷"},"デイサービスつばめ","510-0944","笹川八丁目67-11","059-358-9059","059-328-5428","キョウユウサービス\n株式会社",7,18]
["17",{"$f":"VLOOKUP(I19,地区名一覧!B2:C33,2,FALSE)","v":"内　部"},"デイサービスセンター\nクラナひまわり","510-0954","釆女町1115-1","059-348-6377","059-348-6378","株式会社クラナ",8,7]
["18",{"$f":"VLOOKUP(I20,地区名一覧!B2:C33,2,FALSE)","v":"内　部"},"デイサービスセンター\nおり鶴","510-0971","南小松町629","059-322-0771","059-322-0778","株式会社\n中央ライフサービス",8,11]
["19",{"$f":"VLOOKUP(I21,地区名一覧!B2:C33,2,FALSE)","v":"塩　浜"},"北勢デイサービス","510-0863","塩浜1014","059-348-3820","059-340-6212","笑老寿合同会社",9,26]
["20",{"$f":"VLOOKUP(I22,地区名一覧!B2:C33,2,FALSE)","v":"桜"},"リハビリレストラン\nKicori（きこり）","512-1213","桜台本町51-1","059-329-7956","059-329-7957","株式会社Toytree",13,5]
["21",{"$f":"VLOOKUP(I23,地区名一覧!B2:C33,2,FALSE)","v":"桜"},"デイサービスさくらしんまち","512-1215","桜新町一丁目218","059-326-7775","059-326-7783","ゴールドエイジ株式会社",13,9]
["22",{"$f":"VLOOKUP(I24,地区名一覧!B2:C33,2,FALSE)","v":"三　重"},"デイサービス夏詩","512-0904","東坂部町1693-4","059-330-5073","059-330-5067","株式会社チューブ",14,1]
["23",{"$f":"VLOOKUP(I25,地区名一覧!B2:C33,2,FALSE)","v":"三　重"},"げんき教室　生桑","512-0911","生桑町333-4","059-340-3190","059-340-3189","株式会社インベス",14,11]
["24",{"$f":"VLOOKUP(I26,地区名一覧!B2:C33,2,FALSE)","v":"三　重"},"デイサービス\nすこやかテラス","512-0911","生桑町655-1","059-330-0131","059-330-0134","株式会社有隣会",14,11]
["25",{"$f":"VLOOKUP(I27,地区名一覧!B2:C33,2,FALSE)","v":"三　重"},"デイサービス渚園四日市","512-0911","生桑町1863-1","059-331-2122","059-331-2100","有限会社\n介護センター田中",14,11]
["26",{"$f":"VLOOKUP(I28,地区名一覧!B2:C33,2,FALSE)","v":"八　郷"},"デイサービスセンター\n四日市北にじ","512-8064","伊坂町1636-4","059-328-5058","059-328-5058","イシズム株式会社",16,4]
["27",{"$f":"VLOOKUP(I29,地区名一覧!B2:C33,2,FALSE)","v":"八　郷"},"侘助デイサービス","512-8061","広永町592-1","059-358-3889","059-358-3903","合同会社侘助看護",16,12]
["28",{"$f":"VLOOKUP(I30,地区名一覧!B2:C33,2,FALSE)","v":"大矢知"},"リハビリデイこころゆたか","510-8034","大矢知町1076-3","059-327-7444","059-327-7445","合同会社\nステップバイステップ",18,7]
["29",{"$f":"VLOOKUP(I31,地区名一覧!B2:C33,2,FALSE)","v":"大矢知"},"デイサービスセンター\nニコニコ","510-8021","松寺三丁目6-29","059-365-7576","059-365-7622","有限会社\nハートケアホーム松寺",18,19]
["30",{"$f":"VLOOKUP(I32,地区名一覧!B2:C33,2,FALSE)","v":"楠"},"デイサービス四日市楠館","510-0101","楠町小倉764-1","059-342-0018","059-398-2007","株式会社マザアス",24,5]
["31",{"$f":"VLOOKUP(I33,地区名一覧!B2:C33,2,FALSE)","v":"楠"},"みのりの里\nデイサービスセンター","510-0106","楠町本郷1139-1","059-398-2110","059-398-2123","社会福祉法人徳寿会",24,7]

{"sheet":"認知症デイ等","index":13,"n_rows":36,"n_cols":10,"rows_kept":36,"cut":false,"hidden":false,"merged":[[9,0,9,7],[0,0,0,7]]}
["認知症対応型通所介護"]
["No","所在地","事業所名","事業所〒","事業所住所","事業所電話","事業所FAX","申請(開設)者名","地区CD","町名CD"]
[1,{"$f":"VLOOKUP(I3,地区名一覧!B3:C34,2,FALSE)","v":"四　郷"},"ピオーネささがわ","510-0944","笹川三丁目48","059-325-6062","059-320-0321","有限会社コーブンシャ",7,13]
[2,{"$f":"VLOOKUP(I4,地区名一覧!B3:C34,2,FALSE)","v":"三　重"},"みえ医療福祉生協\nデイサービスいくわ","512-0911","生桑町1455","059-333-6756","059-333-6765","みえ医療福祉\n生活協同組合",14,11]
[3,{"$f":"VLOOKUP(I5,地区名一覧!B2:C33,2,FALSE)","v":"県"},"くぬぎの木デイサービス\nセンターさくら","512-1204","赤水町1245-7","059-327-2826","059-327-1177","社会福祉法人\nあがた福祉の会",15,1]
[4,{"$f":"VLOOKUP(I6,地区名一覧!B2:C33,2,FALSE)","v":"八　郷"},"共用型デイサービス\n楽家生広永","512-8061","広永町1163-1","059-340-0303","059-340-0400","有限会社\nメーセーサービス",16,12]
[5,{"$f":"VLOOKUP(I7,地区名一覧!B2:C33,2,FALSE)","v":"大矢知"},"共用型デイ\n織りがみ・大矢知","510-8031","川北一丁目11-11","059-365-4765","050-3153-2111","株式会社\nライフステージ",18,20]
[6,{"$f":"VLOOKUP(I8,地区名一覧!B2:C33,2,FALSE)","v":"大矢知"},"大矢知\n福祉サービスセンター","510-8031","川北三丁目1-11","059-361-0800","059-361-0700","日本ケアシステム\n株式会社",18,22]
[]
["認知症対応型共同生活介護"]
["No","所在地","事業所名","事業所〒","事業所住所","事業所電話","事業所FAX","申請(開設)者名","地区CD","町名CD"]
[1,{"$f":"VLOOKUP(I12,地区名一覧!B1:C32,2,FALSE)","v":"本　庁"},"グループホーム\n花びよりいなば","510-0041","稲葉町4-25-2","059-350-1780","059-350-1781","株式会社福村屋",1,45]
[2,{"$f":"VLOOKUP(I13,地区名一覧!B2:C33,2,FALSE)","v":"富洲原"},"グループホーム白砂","510-8001","天カ須賀一丁目\n1-17","059-361-7001","059-366-1060","社会福祉法人徳寿会",2,1]
[3,{"$f":"VLOOKUP(I14,地区名一覧!B2:C33,2,FALSE)","v":"富　田"},"グループホーム\n四季の郷富田","510-8011","東茂福町4-4","059-361-7537","059-361-7538","株式会社四季の郷",3,10]
[4,{"$f":"VLOOKUP(I15,地区名一覧!B2:C33,2,FALSE)","v":"羽　津"},"グループホーム\n四季の郷羽津","510-0018","白須賀二丁目\n11-4","059-330-0880","059-330-0881","株式会社四季の郷",4,9]
[5,{"$f":"VLOOKUP(I16,地区名一覧!B2:C33,2,FALSE)","v":"常　磐"},"色えんぴつ・四日市","510-0826","赤堀一丁目6-2","059-350-4165","059-350-4166","有限会社\n日本サポートリンク",5,2]
[6,{"$f":"VLOOKUP(I17,地区名一覧!B2:C33,2,FALSE)","v":"日　永"},"うぃるグループホーム泊","510-0892","泊山崎町2-11","059-345-1611","059-337-8841","株式会社Ｗ",6,6]
[7,{"$f":"VLOOKUP(I18,地区名一覧!B2:C33,2,FALSE)","v":"四　郷"},"四郷グループホーム","510-0943","西日野町4014","059-322-1859","059-322-1896","社会福祉法人\n青山里会",7,9]
[8,{"$f":"VLOOKUP(I19,地区名一覧!B2:C33,2,FALSE)","v":"四　郷"},"グループホーム ほのぼの","510-0944","笹川二丁目175","059-322-3305","059-322-3390","有限会社\nコーブンシャ",7,12]
[9,{"$f":"VLOOKUP(I20,地区名一覧!B2:C33,2,FALSE)","v":"内　部"},"グループホームおり鶴","510-0971","南小松町632","059-320-3577","059-320-3578","株式会社\n中央ライフサービス",8,11]
[10,{"$f":"VLOOKUP(I21,地区名一覧!B2:C33,2,FALSE)","v":"塩　浜"},"うぃるグループホーム塩浜","510-0863","塩浜4147-1","059-348-6500","059-348-6501","株式会社Ｗ",9,26]
[11,{"$f":"VLOOKUP(I22,地区名一覧!B2:C33,2,FALSE)","v":"小山田"},"小山田グループホーム","512-1111","山田町5516-1","059-328-8027","059-328-2905","社会福祉法人\n青山里会",10,1]
[12,{"$f":"VLOOKUP(I23,地区名一覧!B2:C33,2,FALSE)","v":"川　島"},"グループホーム\n織りがみ・川島","512-0934","川島町6659","059-340-6262","059-320-1134","株式会社\nライフステージ",11,1]
[13,{"$f":"VLOOKUP(I24,地区名一覧!B2:C33,2,FALSE)","v":"神　前"},"うぃるグループホーム尾平","512-0921","尾平町3803-11","059-332-4500","059-336-5010","株式会社Ｗ",12,5]
[14,{"$f":"VLOOKUP(I25,地区名一覧!B2:C33,2,FALSE)","v":"桜"},"桜グループホーム","512-1212","智積町1095","059-318-5671","059-318-5672","社会福祉法人\n青山里会",13,1]
[15,{"$f":"VLOOKUP(I26,地区名一覧!B2:C33,2,FALSE)","v":"三　重"},"グループホーム\n渚園四日市","512-0911","生桑町1863-1","059-331-2121","059-331-2100","有限会社\n介護センター田中",14,11]
[16,{"$f":"VLOOKUP(I27,地区名一覧!B2:C33,2,FALSE)","v":"県"},"グループホーム\nほのぼの平尾の家","512-1205","平尾町78-12","059-325-3771","059-325-3771","有限会社コーブンシャ",15,7]
[17,{"$f":"VLOOKUP(I28,地区名一覧!B2:C33,2,FALSE)","v":"八　郷"},"グループホーム\n楽家生　広永","512-8061","広永町1163-1","059-340-0303","059-340-0400","有限会社\nメーセーサービス",16,12]
[18,{"$f":"VLOOKUP(I29,地区名一覧!B2:C33,2,FALSE)","v":"下　野"},"うぃるグループホーム山城","512-8048","山城町1148-1","059-338-3533","059-340-3007","株式会社Ｗ",17,2]
[19,{"$f":"VLOOKUP(I30,地区名一覧!B2:C33,2,FALSE)","v":"大矢知"},"グループホーム 織りがみ","510-8031","川北一丁目11-11","059-365-4765","050-3153-2111","株式会社\nライフステージ",18,20]
[20,{"$f":"VLOOKUP(I31,地区名一覧!B2:C33,2,FALSE)","v":"河原田"},"グループホーム\nゆう・河原田","510-0874","河原田町1973‐6","059-347-4165","059-347-4167","高砂ライフケア\n株式会社",19,4]
[21,{"$f":"VLOOKUP(I32,地区名一覧!B2:C33,2,FALSE)","v":"水　沢"},"グループホームしあわせ","512-1105","水沢町5137-1","059-329-2780","059-329-2780","有限会社しあわせ",20,1]
[22,{"$f":"VLOOKUP(I33,地区名一覧!B2:C33,2,FALSE)","v":"保　々"},"うぃるグループホーム小牧","512-1303","小牧町2630-4","059-329-7251","059-329-7252","株式会社Ｗ",21,1]
[23,{"$f":"VLOOKUP(I34,地区名一覧!B2:C33,2,FALSE)","v":"海　蔵"},"グループホーム\n花びよりかいぞう","510-0815","野田二丁目6-12","059-340-0888","059-327-7555","株式会社福村屋",22,9]
[24,{"$f":"VLOOKUP(I35,地区名一覧!B2:C33,2,FALSE)","v":"橋　北"},"グループホーム桜園三聖","510-0026","高浜町5-7","059-330-6665","059-330-6669","株式会社Loveulumelia",23,6]
[25,{"$f":"VLOOKUP(I36,地区名一覧!B2:C33,2,FALSE)","v":"楠"},"けあビジョンホーム四日市","510-0103","楠町北五味塚\n914-3","059-398-0588","059-398-0580","株式会社\nビジュアルビジョン",24,3]

{"sheet":"小多機等","index":14,"n_rows":59,"n_cols":10,"rows_kept":59,"cut":false,"hidden":false,"merged":[[0,0,0,7],[8,0,8,7],[15,0,15,7]]}
["小規模多機能型居宅介護"]
["No","所在地","事業所名","事業所〒","事業所住所","事業所電話","事業所FAX","申請(開設)者名","地区CD","町名CD"]
[1,{"$f":"VLOOKUP(I3,地区名一覧!B2:C33,2,FALSE)","v":"常　磐"},"クレヨン・四日市","510-0826","赤堀一丁目6-5","059-340-3904","059-340-7804","有限会社\n日本サポートリンク",5,2]
[2,{"$f":"VLOOKUP(I4,地区名一覧!B2:C33,2,FALSE)","v":"日　永"},"セントケア日永","510-0885","日永5450-59","059-348-6677","059-345-7788","セントケア三重株式会社",6,21]
[3,{"$f":"VLOOKUP(I5,地区名一覧!B2:C33,2,FALSE)","v":"神　前"},"小規模多機能型居宅介護\nりょうわ","512-0921","尾平町2643","059-329-6621","059-329-6631","株式会社\n良和生活支援事業所",12,5]
[4,{"$f":"VLOOKUP(I6,地区名一覧!B3:C34,2,FALSE)","v":"三　重"},"コミュニティケアホーム\n三重西","512-0912","三重七丁目109","059-318-2812","059-318-2813","社会福祉法人\n青山里会",14,18]
[]
[]
["複合型サービス（看護小規模多機能型居宅介護）"]
["No","所在地","事業所名","事業所〒","事業所住所","事業所電話","事業所FAX","申請(開設)者名","地区CD","町名CD"]
[1,{"$f":"VLOOKUP(I11,地区名一覧!B2:C33,2,FALSE)","v":"富洲原"},"富洲原複合型サービスセンター\n（小規模多機能型居宅介護・\n訪問看護）","510-8016","富州原町2-80","059-336-6712","059-336-6713","社会福祉法人\n平成福祉会",2,9]
[2,{"$f":"VLOOKUP(I12,地区名一覧!B2:C33,2,FALSE)","v":"常　磐"},"ゴールドエイジさつき","510-0829","城西町6-13","059-342-6622","059-342-6623","ゴールドエイジ\n株式会社",5,6]
[3,{"$f":"VLOOKUP(I13,地区名一覧!B2:C33,2,FALSE)","v":"下　野"},"ナーシングホーム\nもも四日市","512-8054","朝明町441-1","059-336-3330","059-328-4440","有限会社だいち",17,1]
[]
[]
["定期巡回・随時対応型訪問介護看護"]
["No","所在地","事業所名","事業所〒","事業所住所","事業所電話","事業所FAX","申請(開設)者名","地区CD","町名CD"]
[1,{"$f":"VLOOKUP(I18,地区名一覧!B2:C33,2,FALSE)","v":"常　磐"},"ゴールドエイジ地域巡回センター\n四日市営業所","510-0829","城西町7-32","059-327-5899","059-350-6989","ゴールドエイジ\n株式会社",5,6]
[2,{"$f":"VLOOKUP(I19,地区名一覧!B2:C33,2,FALSE)","v":"四　郷"},"定期巡回・随時対応型\n訪問介護看護ステーション\nこまち四日市","510-0948","室山町225番地1","080-4842-4794","059-323-0582","社会福祉法人悠和会",7,8]
[]
[]
[]
[]
[]
[]
[]
[]
[]
[]
[]
[]
[]
[]
[]
[]
[]
[]
[]
[]
[]
[]
[]
[]
[]
[]
[null,null,null,null,null,null,"059-336-6145"]
[]
[]
[]
[]
[]
[]
[]
[]
[]
[]
[]
[58]
[59]

{"sheet":"地密特養","index":15,"n_rows":52,"n_cols":10,"rows_kept":52,"cut":false,"hidden":false,"merged":[[0,0,0,7]]}
["地域密着型介護老人福祉施設"]
["No","所在地","事業所名","事業所〒","事業所住所","事業所電話","事業所FAX","申請(開設)者名","地区CD","町名CD"]
[1,{"$f":"VLOOKUP(I3,地区名一覧!B2:C33,2,FALSE)","v":"本　庁"},"特別養護老人ホーム\nサテライトみなと","510-0042","高砂町6-5","059-329-5210","059-329-5212","社会福祉法人風薫会",1,46]
[2,{"$f":"VLOOKUP(I4,地区名一覧!B2:C33,2,FALSE)","v":"富洲原"},"特別養護老人ホーム\n天カ須賀","510-8001","天カ須賀一丁目\n1-17","059-366-1050","059-366-1060","社会福祉法人徳寿会",2,1]
[3,{"$f":"VLOOKUP(I5,地区名一覧!B2:C33,2,FALSE)","v":"常　磐"},"介護総合センターかんざき\nサテライト常磐","510-0829","城西町13-45","059-353-7750","059-353-7766","社会福祉法人\n青山里会",5,6]
[4,{"$f":"VLOOKUP(I6,地区名一覧!B2:C33,2,FALSE)","v":"四　郷"},"小山田特別養護老人ホーム\nサテライト四郷","510-0943","西日野町4008","059-322-3101","059-322-3104","社会福祉法人\n青山里会",7,9]
[5,{"$f":"VLOOKUP(I7,地区名一覧!B2:C33,2,FALSE)","v":"川　島"},"介護総合センターかんざき\nサテライト川島","512-0934","川島町4037","059-320-3113","059-320-3112","社会福祉法人\n青山里会",11,1]
[6,{"$f":"VLOOKUP(I8,地区名一覧!B2:C33,2,FALSE)","v":"八　郷"},"地域密着型介護老人福祉\n施設入所者生活介護\nハピネスちよだ","512-8065","千代田町323-1","059-329-5833","059-329-5832","社会福祉法人\nアパティア福祉会",16,11]
[7,{"$f":"VLOOKUP(I9,地区名一覧!B3:C34,2,FALSE)","v":"水　沢"},"特別養護老人ホーム\n和らぎ水沢","512-1105","水沢町2378番1","059-329-8011","059-329-8022","社会福祉法人\n双和福祉会",20,2]
[8,{"$f":"VLOOKUP(I10,地区名一覧!B2:C33,2,FALSE)","v":"保　々"},"聖十字四日市\n老人福祉施設","512-1304","中野町2494-1","059-339-2000","059-339-0077","社会福祉法人\n鈴鹿聖十字会",21,4]
[9,{"$f":"VLOOKUP(I11,地区名一覧!B2:C33,2,FALSE)","v":"海　蔵"},"地域密着型特別養護老人ホーム\nかいぞうの里","510-0815","野田一丁目\n6-25","059-328-5550","059-331-5600","社会福祉法人永甲会",22]
[]
[]
[]
[]
[]
[]
[]
[]
[]
[]
[]
[]
[]
[]
[]
[]
[]
[]
[]
[]
[]
[]
[]
[]
[]
[]
[]
[]
[]
[]
[]
[]
[]
[]
[]
[]
[]
[]
[]
[58]
[59]

{"sheet":"サービスA ","index":16,"n_rows":43,"n_cols":10,"rows_kept":43,"cut":false,"hidden":false,"merged":[[0,0,0,7],[5,0,5,7]]}
["基準緩和訪問型サービス"]
["No","所在地","事業所名","事業所〒","事業所住所","事業所電話","事業所FAX","申請(開設)者名","地区CD","町名CD"]
[1,"全　域","基準緩和訪問型サービス","510-0063","十七軒町9-10","059-350-1775","059-354-3676","公益社団法人四日市市\nシルバー人材センター"]
[]
[]
["基準緩和通所型サービス"]
["No","所在地","事業所名","事業所〒","事業所住所","事業所電話","事業所FAX","申請(開設)者名","地区CD","町名CD"]
[1,"中　部","テラスみなと","510-0042","高砂町7-6","059-359-6611","059-359-6612","社会福祉法人風薫会",1]
[2,"富洲原","ふれあいサロン天カ須賀","510-8001","天カ須賀四丁目\n7-25","059-361-5361","059-361-5362","社会福祉法人徳寿会",2]
[3,"富　田","富田浜\n在宅介護支援センター\n基準緩和通所型サービス","510-8008","富田浜町26-14","059-365-0066","059-365-0412","社会福祉法人\n富田浜福祉会",3]
[4,"常　磐","ユートピア\n在宅介護サービスセンター","510-0821","久保田二丁目\n12-8","059-355-2500","059-355-3571","社会福祉法人\nユートピア",5]
[5,"日　永","基準緩和通所型サービス　梅の里","510-0885","日永5530-23","059-347-9977","059-347-6661","社会福祉法人英水会",6]
[6,"内　部","うねめの里\n在宅介護サービスセンター","510-0954","釆女町418-1","059-348-2668","059-348-3989","社会福祉法人永甲会",8]
[7,"塩　浜","しおはま元気塾","510-0863","塩浜栄町471","059-349-6381","059-349-6382","社会福祉法人風薫会",9]
[8,"小山田","よかよか倶楽部　小山田","512-1111","山田町5500-1","059-328-3709","059-328-3432","社会福祉法人\n青山里会",10]
[9,"神　前","よかよか倶楽部　神前","512-0924","寺方町986-4","059-327-2177","059-327-2228","社会福祉法人\n青山里会",12]
[10,"桜","桜わいわい","512-1212","智積町34-1","059-326-7571","059-326-7557","社会福祉法人英水会",13]
[11,"三　重","陽光苑","512-0913","西坂部町1127","059-333-7225\n059-333-4622","059-334-7841","社会福祉法人\n三重福祉会",14]
[12,"県","くぬぎの木\n在宅介護サービスセンター","512-1204","赤水町1274-14","059-327-2266","059-327-1160","社会福祉法人\nあがた福祉の会",15]
[13,"下　野","ぽかぽかサロン","512-8052","西大鐘町1580","059-338-3003","059-338-3008","社会福祉法人宏育会",17]
[14,"水　沢","よかよか倶楽部　水沢","512-1105","水沢町1990-1","059-329-3553","059-329-3554","社会福祉法人\n青山里会",20]
[15,"楠","ゆりかもめＡ","510-0103","楠町北五味塚\n1450-1","059-398-2000\n059-398-2001","059-397-6861","社会福祉法人\n四日市社会福祉協議会",24]
[]
[]
[]
[]
[]
[]
[]
[]
[]
[]
[]
[]
[]
[]
[]
[]
[]
[]
[]
[58]
[59]

{"sheet":"サービスB ","index":17,"n_rows":50,"n_cols":10,"rows_kept":50,"cut":false,"hidden":false,"merged":[[0,0,0,7],[29,0,29,7]]}
["住民主体訪問型サービス"]
["No","所在地","事業所名","事業所〒","事業所住所","事業所電話","事業所FAX","申請(開設)者名","地区CD","町名CD"]
[1,"本　庁","ソーシャルサポートゆうゆう\n訪問型","510-0097","八幡町14-8","090-3569-4666",null,"ソーシャルサポート\nゆうゆう",1,29]
[2,"富　田","お手伝い・よってこ家","510-8014","富田三丁目14-14","059-365-3717",null,"特定非営利活動法人\n元気な笑顔",3,3]
[3,"富　田","あした葉パートナー","510-8006","東富田町9-3","059-315-0623",null,"一般社団法人あした葉",3,7]
[4,"羽　津","羽津生活支援隊\n「ねこの手」","510-0003","大宮町14-9","059-324-2286","059-324-2286","さろんde志氐我野\n運営委員会",4]
[5,"日　永","まごころサポート","510-0881","六呂見750-2","059-348-7945","059-348-7945","まごころサポート",6,20]
[6,"四　郷","ちょっと手を貸して運動","510-0945","高花平三丁目1-71","059-324-4343","059-324-4343","ちょっと手を貸して運動",7,3]
[7,"四　郷","ふれあいネット笹川西","510-0944","笹川五丁目62","059-321-4547","059-321-4547","ふれあいネット笹川西",7,15]
[8,"四　郷","ふれあいサロンわかさ","510-0944","笹川七丁目105","059-324-8392","059-324-8392","ふれあいネット笹川東",7,17]
[9,"内　部","波木が丘フレンドリーネット","510-0962","波木が丘町20-12","059-324-9974",null,"波木が丘\nフレンドリーネット",8]
[10,"川島","ゆーライドかわしま","512-0933","三滝台２－１２－３","080-1593-3395",null,"ゆーライドかわしま",11]
[11,"桜","アシスト咲楽（訪問）","512-1214","桜台一丁目27-8","059-327-1294","059-327-1294","NPO法人\n桜ボランティア協会",13]
[12,"三　重","いきいき塾","512-0912","三重六丁目130-3","059-324-6658","059-324-6658","NPO法人\nライフサポート三重西",14]
[13,"県","あがた　ささえ愛","512-1202","あがたが丘一丁目\n18-5","080-6909-4954",null,"あがたささえ愛",15]
[14,"八　郷","やさにし・スマイルネット","512-8046","あかつき台三丁目\n7-15","090-3556-5129",null,"やさにし・スマイルネット",16]
[15,"下　野","暮らしのお手伝い","512-8055","あさけが丘二丁目\n1-39","059-324-9341","059-324-9341","特定非営利活動法人\n下野・活き域ネット",17]
[16,"大矢知","いきいきネット訪問事業所","510-8031","川北二丁目12-3",null,null,"川北町自治会",18,21]
[17,"河原田","ささえ愛ステーション\nかわらだ","510-0875","大治田二丁目2-13","059-347-3470","059-347-3470","ささえ愛ステーション\nかわらだ",19]
[18,"橋　北","困りごと支援事業（訪問）","510-0033","川原町33-7","080-3640-7978","059-331-6889","特定非営利活動法人\nニコニコ共和国",23,5]
[]
[]
[]
[]
[]
[]
[]
[]
[]
["住民主体通所型サービス"]
["No","所在地","事業所名","事業所〒","事業所住所","事業所電話","事業所FAX","申請(開設)者名","地区CD","町名CD"]
[1,"本　庁","おしゃべり広場","510-0082","中部7-8","059-350-8661","059-350-8662","特定非営利活動法人\nウィミンよっかいち",1,14]
[2,"本　庁","ソーシャルサポートゆうゆう\n通所型","510-0097","八幡町14-8","090-3569-4666",null,"ソーシャルサポート\nゆうゆう",1,29]
[3,"富　田","ケアルーム・よってこ家","510-8014","富田三丁目14-14","059-365-3717",null,"特定非営利活動法人\n元気な笑顔",3,3]
[4,"富　田","コミュニティカフェあした葉","510-8006","東富田町9-3","059-315-0623","059-321-4706","一般社団法人あした葉",3,7]
[5,"羽　津","さろんde志氐我野","510-0003","大宮町14-9","059-324-2286","059-324-2286","さろんde志氐我野\n運営委員会",4]
[6,"常　磐","ふれあいカフェ　えがお","510-0824","城東町14-6","059-359-5355","059-359-5356","まちづくり城東倶楽部\nサロン事業運営委員会",5]
[7,"四　郷","いこいっこ","510-0945","高花平三丁目1-71","059-324-4343","059-324-4343","いこいっこ",7,3]
[8,"四　郷","サロンくろがねもち","510-0943","西日野町3262","090-9174-4545",null,"連心通心",7,9]
[9,"四　郷","いきいきサロン微笑","510-0944","笹川七丁目102-3","059-324-4418","059-324-4418","ふれあいネット笹川東",7,17]
[10,"小山田","山田町　楽","512-1111","山田町2248",null,null,"山田町　楽",10,1]
[11,"小山田","古民家カフェ里山","512-1102","小山町1928","059-328-1929",null,"小山町高齢者生活支援\nスペース\n「古民家カフェ里山」の会",10,3]
[12,"桜","アシスト咲楽（通所）","512-1214","桜台一丁目27-8","059-327-1294","059-327-1294","NPO法人\n桜ボランティア協会",13]
[13,"三　重","いきいき塾","512-0912","三重六丁目130-3","059-324-6658","059-324-6658","NPO法人\nライフサポート三重西",14]
[14,"県","あがた夢クラブ","512-1202","あがたが丘二丁目\n12-6","059-326-3522","059-326-3522","あがた夢クラブ",15]
[15,"下　野","すこやかサロン","512-8055","あさけが丘二丁目\n1-39","059-324-9341","059-324-9341","特定非営利活動法人\n下野・活き域ネット",17]
[16,"大矢知","いきいきネット通所事業所","510-8031","川北二丁目12-3",null,null,"川北町自治会",18,21]
[17,"河原田","ふるさとサロンかわらだ","510-0874","河原田町2368-6",null,null,"ふるさとサロンかわらだ",19,4]
[18,"橋　北","ニコニコ茶屋(通所）","510-0033","川原町33-7","080-3640-7978","059-331-6889","特定非営利活動法人\nニコニコ共和国",23,5]
[19,"楠","楠の木るすばん隊","510-0103","楠町北五味塚1750","059-397-3729","059-397-3729","楠の木るすばん隊",24]

{"sheet":"表紙","index":18,"n_rows":78,"n_cols":5,"rows_kept":78,"cut":false,"hidden":false,"merged":[[77,0,77,5],[72,0,73,5],[62,0,63,5],[0,0,0,5],[75,0,75,5],[68,0,70,5]]}
["介護保険サービス事業者一覧表（四日市市）"]
[null,null,null,"令和7年12月1日現在"]
[]
[]
["【居宅サービス】"]
["〇","居宅介護支援","・・・・・・・・","・・・・・・・・",1]
[]
["〇","介護予防支援","・・・・・・・・","・・・・・・・・",4]
[]
["〇","訪問介護","・・・・・・・・","・・・・・・・・",5]
[]
["〇","訪問入浴","・・・・・・・・","・・・・・・・・",9]
[]
["〇","訪問看護","・・・・・・・・","・・・・・・・・",10]
[]
["〇","訪問リハビリテーション","・・・・・・・・","・・・・・・・・",11]
[]
["〇","通所介護","・・・・・・・・","・・・・・・・・",12]
["　"]
["〇","通所リハビリテーション","・・・・・・・・","・・・・・・・・",15]
[]
["〇","短期入所生活介護","・・・・・・・・","・・・・・・・・",16]
["　"]
["〇","短期入所療養介護","・・・・・・・・","・・・・・・・・",17]
["　"]
["〇","特定施設入居者生活介護","・・・・・・・・","・・・・・・・・",18]
[]
["〇","福祉用具貸与","・・・・・・・・","・・・・・・・・",19]
["　"]
["〇","特定福祉用具販売","・・・・・・・・","・・・・・・・・",20]
["　"]
["【施設サービス】"]
["〇","介護老人福祉施設","・・・・・・・・","・・・・・・・・",21]
[]
["〇","介護老人保健施設","・・・・・・・・","・・・・・・・・",23]
[]
["〇","介護医療院","・・・・・・・・","・・・・・・・・",24]
[]
["【地域密着型サービス】"]
["○","地域密着型通所介護","・・・・・・・・","・・・・・・・・",25]
[]
["〇","認知症対応型通所介護","・・・・・・・・","・・・・・・・・",27]
[]
["〇","認知症対応型共同生活介護","・・・・・・・・","・・・・・・・・",28]
[]
["〇","小規模多機能型居宅介護","・・・・・・・・","・・・・・・・・",29]
[]
["〇","複合型サービス\n（看護小規模多機能型居宅介護）","・・・・・・・・","・・・・・・・・",29]
[]
["〇","定期巡回・随時対応型訪問介護看護","・・・・・・・・","・・・・・・・・",29]
[]
["〇","地域密着型介護老人福祉施設","・・・・・・・・","・・・・・・・・",30]
[]
["【介護予防・生活支援サービス】"]
["〇","基準緩和型サービス（訪問／通所）","・・・・・・・・","・・・・・・・・",31]
[]
["〇","住民主体型サービス（訪問／通所）","・・・・・・・・","・・・・・・・・",32]
[]
[]
[]
[]
[]
["〈お問合せ〉四日市市役所介護保険課　TEL059-354-8425"]
[]
[]
[]
["※この一覧表の記載内容について※"]
[]
["注１）　この一覧表は、三重県長寿介護課のHP（https://www.pref.mie.lg.jp/CHOJUS/HP/23833022856.htm）の「介護保険指定事業者・施設等一覧」及び「介護事業所生活関連情報検索　介護サービス情報公表システム」（https://www.kaigokensaku.mhlw.go.jp/24/index.php）等を元に四日市市の事業者について所在地順に作成したものです。（ただし、特定施設入居者生活介護及び施設サービスについては近隣市町の施設も掲載しています。）"]
[]
[]
[]
["注２）訪問看護、訪問リハビリテーションについては、病院、診療所等によるいわゆる「みなし」指定は掲載していません。"]
[]
[]
["注３）介護予防サービスはサービスの提供が無い事業所も一部ありますので、利用にあたっては事業所へ直接お問い合わせください。"]
[]
["注４）基準該当サービスについては、四日市市の被保険者の方しか利用できません。"]

{"sheet":"地区名一覧","index":19,"n_rows":33,"n_cols":4,"rows_kept":33,"cut":false,"hidden":false,"merged":[]}
[]
[null,"コード","名称（漢字）","名称（カナ）"]
[null,1,"本　庁","ホンチヨウ"]
[null,2,"富洲原","トミスハラ"]
[null,3,"富　田","トミダ"]
[null,4,"羽　津","ハヅ"]
[null,5,"常　磐","トキワ"]
[null,6,"日　永","ヒナガ"]
[null,7,"四　郷","ヨゴウ"]
[null,8,"内　部","ウツベ"]
[null,9,"塩　浜","シオハマ"]
[null,10,"小山田","オヤマダ"]
[null,11,"川　島","カワシマ"]
[null,12,"神　前","カンザキ"]
[null,13,"桜","サクラ"]
[null,14,"三　重","ミエ"]
[null,15,"県","アガタ"]
[null,16,"八　郷","ヤサト"]
[null,17,"下　野","シモノ"]
[null,18,"大矢知","オオヤチ"]
[null,19,"河原田","カワラダ"]
[null,20,"水　沢","スイザワ"]
[null,21,"保　々","ホボ"]
[null,22,"海　蔵","カイゾウ"]
[null,23,"橋　北","キヨウホク"]
[null,24,"楠","クス"]
[null,50,"三重郡"]
[null,51,"桑名市"]
[null,52,"桑名郡"]
[null,53,"いなべ市"]
[null,54,"員弁郡"]
[null,55,"鈴鹿市"]
[null,56,"亀山市"]

{"sheet":"公称町名一覧","index":20,"n_rows":485,"n_cols":4,"rows_kept":485,"cut":false,"hidden":false,"merged":[]}
[]
[null,"コード",null,"町名"]
[null,1,1,"堀木一丁目"]
[null,1,2,"堀木二丁目"]
[null,1,3,"西浦一丁目"]
[null,1,4,"西浦二丁目"]
[null,1,5,"安島一丁目"]
[null,1,6,"安島二丁目"]
[null,1,7,"鵜の森一丁目"]
[null,1,8,"鵜の森二丁目"]
[null,1,9,"西町"]
[null,1,10,"元町"]
[null,1,11,"西新地"]
[null,1,12,"諏訪栄町"]
[null,1,13,"諏訪町"]
[null,1,14,"中部"]
[null,1,15,"北町"]
[null,1,16,"三栄町"]
[null,1,17,"幸町"]
[null,1,18,"朝日町"]
[null,1,19,"浜田町"]
[null,1,20,"北浜田町"]
[null,1,21,"中浜田町"]
[null,1,22,"南浜田町"]
[null,1,23,"十七軒町"]
[null,1,24,"新正一丁目"]
[null,1,25,"新正二丁目"]
[null,1,26,"新正三丁目"]
[null,1,27,"新正四丁目"]
[null,1,28,"新正五丁目"]
[null,1,29,"幡町"]
[null,1,30,"北条町"]
[null,1,31,"中町"]
[null,1,32,"元新町"]
[null,1,33,"新町"]
[null,1,34,"新々町"]
[null,1,35,"沖の島町"]
[null,1,36,"栄町"]
[null,1,37,"本町"]
[null,1,38,"北浜町"]
[null,1,39,"浜町"]
[null,1,40,"蔵町"]
[null,1,41,"相生町"]
[null,1,42,"北納屋町"]
[null,1,43,"中納屋町"]
[null,1,44,"南納屋町"]
[null,1,45,"稲葉町"]
[null,1,46,"高砂町"]
[null,1,47,"末広町"]
[null,1,48,"西末広町"]
[null,1,49,"昌栄町"]
[null,1,50,"南起町"]
[null,1,51,"曙町"]
[null,1,52,"曙一丁目"]
[null,1,53,"曙二丁目"]
[null,1,54,"寿町"]
[null,1,55,"千歳町"]
[null,1,56,"尾上町"]
[null,1,57,"大協町一丁目"]
[null,1,58,"浜田"]
[null,1,59,"九の城町"]
[null,1,60,"西浜田町"]
[null,1,61,"四日市字西浦"]
[null,1,62,"四日市字諏訪西"]
[null,1,63,"袋町"]
[null,1,64,"赤堀"]
[null,1,65,"大字赤堀"]
[null,2,1,"天カ須賀一丁目"]
[null,2,2,"天カ須賀二丁目"]
[null,2,3,"天カ須賀三丁目"]
[null,2,4,"天カ須賀四丁目"]
[null,2,5,"天カ須賀五丁目"]
[null,2,6,"住吉町"]
[null,2,7,"富田一色町"]
[null,2,8,"平町"]
[null,2,9,"富州原町"]
[null,2,10,"松原町"]
[null,2,11,"富双二丁目"]
[null,2,12,"天カ須賀新町"]
[null,3,1,"富田一丁目"]
[null,3,2,"富田二丁目"]
[null,3,3,"富田三丁目"]
[null,3,4,"富田四丁目"]
[null,3,5,"富田浜元町"]
[null,3,6,"富田浜町"]
[null,3,7,"東富田町"]
[null,3,8,"南富田町"]
[null,3,9,"茂福町"]
[null,3,10,"東茂福町"]
[null,3,11,"富双一丁目"]
[null,3,12,"大字茂福"]
[null,3,13,"霞二丁目"]
[null,3,14,"浜園町"]
[null,3,15,"富田栄町"]
[null,3,16,"大字茂福甲"]
[null,3,17,"大字茂福乙"]
[null,3,18,"富田浜町甲"]
[null,3,19,"富田浜元町乙"]
[null,3,20,"南富田町甲"]
[null,3,21,"南富田町乙"]
[null,3,22,"茂福町甲"]
[null,4,1,"富士町"]
[null,4,2,"金場町"]
[null,4,3,"大宮町"]
[null,4,4,"大宮西町"]
[null,4,5,"羽津山町"]
[null,4,6,"羽津町"]
[null,4,7,"城山町"]
[null,4,8,"白須賀一丁目"]
[null,4,9,"白須賀二丁目"]
[null,4,10,"白須賀三丁目"]
[null,4,11,"八田一丁目"]
[null,4,12,"八田二丁目"]
[null,4,13,"八田三丁目"]
[null,4,14,"別名一丁目"]
[null,4,15,"別名二丁目"]
[null,4,16,"別名三丁目"]
[null,4,17,"別名四丁目"]
[null,4,18,"別名五丁目"]
[null,4,19,"別名六丁目"]
[null,4,20,"羽津中一丁目"]
[null,4,21,"羽津中二丁目"]
[null,4,22,"羽津中三丁目"]
[null,4,23,"南いかるが町"]
[null,4,24,"緑丘町"]
[null,4,25,"山手町"]
[null,4,26,"霞一丁目"]
[null,4,27,"大字羽津"]
[null,4,28,"大字羽津甲"]
[null,4,29,"大字羽津乙"]
[null,4,30,"大字羽津丙"]
[null,4,31,"大字羽津丁"]
[null,4,32,"大字羽津戊"]
[null,5,1,"赤堀南町"]
[null,5,2,"赤堀一丁目"]
[null,5,3,"赤堀二丁目"]
[null,5,4,"赤堀三丁目"]
[null,5,5,"城東町"]
[null,5,6,"城西町"]
[null,5,7,"石塚町"]
[null,5,8,"中川原一丁目"]
[null,5,9,"中川原二丁目"]
[null,5,10,"中川原三丁目"]
[null,5,11,"中川原四丁目"]
[null,5,12,"芝田一丁目"]
[null,5,13,"芝田二丁目"]
[null,5,14,"伊倉一丁目"]
[null,5,15,"伊倉二丁目"]
[null,5,16,"伊倉三丁目"]
[null,5,17,"西伊倉町"]
[null,5,18,"保田一丁目"]
[null,5,19,"保田二丁目"]
[null,5,20,"大井手一丁目"]
[null,5,21,"大井手二丁目"]
[null,5,22,"松本一丁目"]
[null,5,23,"松本二丁目"]
[null,5,24,"ときわ一丁目"]
[null,5,25,"ときわ二丁目"]
[null,5,26,"ときわ三丁目"]
[null,5,27,"ときわ四丁目"]
[null,5,28,"ときわ五丁目"]
[null,5,29,"大字赤堀"]
[null,5,30,"大字松本"]
[null,5,31,"大字大井手"]
[null,5,33,"青葉町"]
[null,5,34,"松本三丁目"]
[null,5,35,"松本四丁目"]
[null,5,36,"松本五丁目"]
[null,5,37,"松本六丁目"]
[null,5,38,"大井手三丁目"]
[null,5,39,"城北町"]
[null,5,40,"赤堀新町"]
[null,5,41,"西松本町"]
[null,5,42,"南松本町"]
[null,5,43,"大字伊倉"]
[null,5,44,"大字保田"]
[null,5,45,"大字芝田"]
[null,5,46,"大字中川原"]
[null,6,1,"日永一丁目"]
[null,6,2,"日永二丁目"]
[null,6,3,"日永三丁目"]
[null,6,4,"日永四丁目"]
[null,6,5,"日永五丁目"]
[null,6,6,"泊山崎町"]
[null,6,7,"泊町"]
[null,6,8,"追一丁目"]
[null,6,9,"追二丁目"]
[null,6,10,"追三丁目"]
[null,6,11,"前田町"]
[null,6,18,"雨池町"]
[null,6,20,"大字六呂見"]
[null,6,21,"大字日永"]
[null,6,22,"大字泊村"]
[null,6,23,"大字大治田"]
[null,6,24,"日永東一丁目"]
[null,6,25,"日永東二丁目"]
[null,6,26,"日永東三丁目"]
[null,6,27,"泊小柳町"]
[null,6,28,"日永西一丁目"]
[null,6,29,"日永西二丁目"]
[null,6,30,"日永西三丁目"]
[null,6,31,"日永西四丁目"]
[null,6,32,"日永西五丁目"]
[null,6,33,"大字馳出"]
[null,7,1,"小林町"]
[null,7,2,"高花平一丁目"]
[null,7,3,"高花平二丁目"]
[null,7,4,"高花平三丁目"]
[null,7,5,"高花平四丁目"]
[null,7,6,"高花平五丁目"]
[null,7,7,"王子町"]
[null,7,8,"室山町"]
[null,7,9,"西日野町"]
[null,7,10,"東日野町"]
[null,7,11,"笹川一丁目"]
[null,7,12,"笹川二丁目"]
[null,7,13,"笹川三丁目"]
[null,7,14,"笹川四丁目"]
[null,7,15,"笹川五丁目"]
[null,7,16,"笹川六丁目"]
[null,7,17,"笹川七丁目"]
[null,7,18,"笹川丁目"]
[null,7,19,"笹川九丁目"]
[null,7,20,"東日野一丁目"]
[null,7,21,"東日野二丁目"]
[null,8,1,"小古曽一丁目"]
[null,8,2,"小古曽二丁目"]
[null,8,3,"小古曽三丁目"]
[null,8,4,"小古曽四丁目"]
[null,8,5,"小古曽五丁目"]
[null,8,6,"小古曽六丁目"]
[null,8,7,"釆女町"]
[null,8,8,"波木町"]
[null,8,9,"貝家町"]
[null,8,10,"北小松町"]
[null,8,11,"南小松町"]
[null,8,12,"森カ山町"]
[null,8,13,"小古曽町"]
[null,8,14,"小古曽東一丁目"]
[null,8,15,"小古曽東二丁目"]
[null,8,16,"小古曽東三丁目"]
[null,8,17,"波木が丘町"]
[null,8,18,"釆女が丘一丁目"]
[null,8,19,"釆女が丘二丁目"]
[null,8,20,"釆女が丘三丁目"]
[null,8,21,"釆女が丘四丁目"]
[null,8,22,"釆女が丘五丁目"]
[null,8,23,"国町"]
[null,8,24,"国"]
[null,8,25,"河原田"]
[null,8,26,"波木南台一丁目"]
[null,8,27,"波木南台二丁目"]
[null,8,28,"波木南台三丁目"]
[null,8,29,"波木南台四丁目"]
[null,9,1,"塩浜本町一丁目"]
[null,9,2,"塩浜本町二丁目"]
[null,9,3,"塩浜本町三丁目"]
[null,9,4,"馳出町一丁目"]
[null,9,5,"馳出町二丁目"]
[null,9,6,"馳出町三丁目"]
[null,9,7,"宮東町一丁目"]
[null,9,8,"宮東町二丁目"]
[null,9,9,"宮東町三丁目"]
[null,9,10,"七つ屋町"]
[null,9,11,"高旭町"]
[null,9,12,"東邦町"]
[null,9,13,"石原町"]
[null,9,14,"三田町"]
[null,9,15,"塩浜町"]
[null,9,16,"浜旭町"]
[null,9,17,"川合町"]
[null,9,18,"御薗町一丁目"]
[null,9,19,"御薗町二丁目"]
[null,9,20,"中里町"]
[null,9,21,"小浜町"]
[null,9,22,"柳町"]
[null,9,23,"大池町"]
[null,9,24,"松泉町"]
[null,9,25,"宝町"]
[null,9,26,"大字塩浜"]
[null,9,27,"大字馳出"]
[null,9,28,"海山道町一丁目"]
[null,9,29,"海山道町二丁目"]
[null,9,30,"海山道町三丁目"]
[null,9,31,"大井の川町一丁目"]
[null,9,32,"大井の川町二丁目"]
[null,9,33,"大井の川町三丁目"]
[null,9,34,"大浜町"]
[null,10,1,"山田町"]
[null,10,2,"西山町"]
[null,10,3,"小山町"]
[null,10,4,"内山町"]
[null,10,5,"六名町"]
[null,10,6,"堂ケ山町"]
[null,10,7,"美里町"]
[null,10,8,"鹿間町"]
[null,10,9,"和無田町"]
[null,11,1,"川島町"]
[null,11,2,"小生町"]
[null,11,3,"三滝台一丁目"]
[null,11,4,"三滝台二丁目"]
[null,11,5,"三滝台三丁目"]
[null,11,6,"三滝台四丁目"]
[null,11,7,"浮橋一丁目"]
[null,11,8,"浮橋二丁目"]
[null,11,10,"川島新町"]
[null,11,11,"別山一丁目"]
[null,11,12,"別山二丁目"]
[null,11,13,"別山三丁目"]
[null,11,14,"別山四丁目"]
[null,12,1,"菅原町"]
[null,12,2,"寺方町"]
[null,12,3,"高角町"]
[null,12,4,"曽井町"]
[null,12,5,"尾平町"]
[null,13,1,"智積町"]
[null,13,2,"桜町"]
[null,13,3,"桜台一丁目"]
[null,13,4,"桜台二丁目"]
[null,13,5,"桜台本町"]
[null,13,6,"桜台三丁目"]
[null,13,7,"桜花台一丁目"]
[null,13,8,"桜花台二丁目"]
[null,13,9,"桜新町一丁目"]
[null,13,10,"桜新町二丁目"]
[null,14,1,"東坂部町"]
[null,14,2,"山之一色町"]
[null,14,3,"小杉町"]
[null,14,4,"東ケ谷"]
[null,14,5,"坂部が丘一丁目"]
[null,14,6,"坂部が丘二丁目"]
[null,14,7,"坂部が丘三丁目"]
[null,14,8,"坂部が丘四丁目"]
[null,14,9,"坂部が丘五丁目"]
[null,14,10,"西坂部町"]
[null,14,11,"生桑町"]
[null,14,12,"三重一丁目"]
[null,14,13,"三重二丁目"]
[null,14,14,"三重三丁目"]
[null,14,15,"三重四丁目"]
[null,14,16,"三重五丁目"]
[null,14,17,"三重六丁目"]
[null,14,18,"三重七丁目"]
[null,14,19,"三重丁目"]
[null,14,20,"三重九丁目"]
[null,14,21,"小杉新町"]
[null,14,22,"大谷台一丁目"]
[null,14,23,"大谷台二丁目"]
[null,14,24,"南坂部町"]
[null,14,25,"坂部台一丁目"]
[null,14,26,"坂部台二丁目"]
[null,15,1,"赤水町"]
[null,15,2,"下海老町"]
[null,15,3,"江村町"]
[null,15,4,"北野町"]
[null,15,5,"黒田町"]
[null,15,6,"上海老町"]
[null,15,7,"平尾町"]
[null,15,8,"あがたが丘一丁目"]
[null,15,9,"あがたが丘二丁目"]
[null,15,10,"あがたが丘三丁目"]
[null,16,1,"萱生町"]
[null,16,2,"中村町"]
[null,16,3,"平津町"]
[null,16,4,"伊坂町"]
[null,16,5,"山村町"]
[null,16,6,"山町"]
[null,16,7,"平津新町"]
[null,16,8,"あかつき台一丁目"]
[null,16,9,"あかつき台二丁目"]
[null,16,10,"あかつき台三丁目"]
[null,16,11,"千代田町"]
[null,16,12,"広永町"]
[null,16,13,"黄金町"]
[null,16,14,"あかつき台四丁目"]
[null,16,15,"あかつき台五丁目"]
[null,16,16,"あかつき台六丁目"]
[null,16,17,"伊坂台一丁目"]
[null,16,18,"伊坂台二丁目"]
[null,16,19,"伊坂台三丁目"]
[null,16,20,"大字赤尾"]
[null,17,1,"朝明町"]
[null,17,2,"山城町"]
[null,17,3,"札場町"]
[null,17,4,"北山町"]
[null,17,5,"西大鐘町"]
[null,17,6,"大鐘町"]
[null,17,7,"あさけが丘一丁目"]
[null,17,8,"あさけが丘二丁目"]
[null,17,9,"あさけが丘三丁目"]
[null,17,10,"千代台一丁目"]
[null,17,11,"千代台二丁目"]
[null,17,12,"千代台三丁目"]
[null,18,1,"下之宮町"]
[null,18,2,"川北町"]
[null,18,4,"十志町"]
[null,18,5,"垂坂町"]
[null,18,6,"南垂坂町"]
[null,18,7,"大矢知町"]
[null,18,8,"蒔田町"]
[null,18,9,"西富田町"]
[null,18,11,"西富田二丁目"]
[null,18,12,"西富田三丁目"]
[null,18,13,"蒔田一丁目"]
[null,18,14,"蒔田二丁目"]
[null,18,15,"蒔田三丁目"]
[null,18,16,"蒔田四丁目"]
[null,18,17,"松寺一丁目"]
[null,18,18,"松寺二丁目"]
[null,18,19,"松寺三丁目"]
[null,18,20,"川北一丁目"]
[null,18,21,"川北二丁目"]
[null,18,22,"川北三丁目"]
[null,18,23,"下さざらい町"]
[null,18,24,"東垂坂町"]
[null,18,25,"松寺町"]
[null,18,26,"大矢知新町"]
[null,18,27,"垂坂新町"]
[null,19,1,"貝塚町"]
[null,19,2,"内堀町"]
[null,19,3,"川尻町"]
[null,19,4,"河原田町"]
[null,19,5,"大治田町"]
[null,19,6,"大治田一丁目"]
[null,19,7,"大治田二丁目"]
[null,19,8,"大治田三丁目"]
[null,20,1,"水沢野田町"]
[null,20,2,"水沢町"]
[null,21,1,"小牧町"]
[null,21,2,"市場町"]
[null,21,3,"西村町"]
[null,21,4,"中野町"]
[null,21,5,"高見台一丁目"]
[null,21,6,"高見台二丁目"]
[null,21,7,"まきの木台一丁目"]
[null,21,8,"まきの木台二丁目"]
[null,21,9,"まきの木台三丁目"]
[null,22,1,"阿倉川町"]
[null,22,2,"万古町"]
[null,22,3,"三ツ谷町"]
[null,22,4,"本郷町"]
[null,22,5,"末永町"]
[null,22,6,"三ツ谷東町"]
[null,22,7,"清水町"]
[null,22,8,"野田一丁目"]
[null,22,9,"野田二丁目"]
[null,22,10,"みゆきケ丘一丁目"]
[null,22,11,"みゆきケ丘二丁目"]
[null,22,12,"大字西阿倉川"]
[null,22,13,"大字東阿倉川"]
[null,22,14,"大字末永"]
[null,22,15,"大字野田"]
[null,22,16,"阿倉川新町"]
[null,23,1,"陶栄町"]
[null,23,2,"滝川町"]
[null,23,3,"浜一色町"]
[null,23,4,"京町"]
[null,23,5,"川原町"]
[null,23,6,"高浜町"]
[null,23,7,"東新町"]
[null,23,8,"新浜町"]
[null,23,9,"午起一丁目"]
[null,23,10,"午起二丁目"]
[null,23,11,"午起三丁目"]
[null,23,12,"高浜新町"]
[null,23,13,"大協町二丁目"]
[null,23,14,"三郎町"]
[null,23,15,"四日市字午起"]
[null,23,16,"大協町"]
[null,23,17,"四日市字中島"]
[null,23,18,"浜一色"]
[null,23,19,"四日市字古川"]
[null,24,1,"楠町南川"]
[null,24,2,"楠町南五味"]
[null,24,3,"楠町北五味"]
[null,24,4,"楠町吉崎"]
[null,24,5,"楠町小倉"]
[null,24,6,"楠町北一色"]
[null,24,7,"楠町本郷"]
[null,77,1,"四ツ谷新町"]
[null,77,2,"大字天ケ須賀"]
[null,77,3,"大字富田一色"]
[null,77,4,"大字松原"]
[null,77,5,"大字東富田"]
[null,77,6,"蒔田町"]

{"sheet":"入力注意","index":21,"n_rows":0,"n_cols":0,"rows_kept":0,"cut":false,"hidden":false,"merged":[]}